Body Name,Body,Service Area Catergorisation,Service Division Catergorisation,Responsible Unit,Expenses Type,Detailed Expenses Type,Expenses Code,Date,Transaction Number,Amount,Capital / Revenue,Supplier Name,Supplier ID
North East Lincolnshire Council,http://statistics.data.gov.uk/id/local-authority/00FC),Cap Dep Chief Exec,Ad Adult Serv-Hlth Improvement,Hps-Disabled Fac. Grants,Cap Grants To O/Side Sources,Cap Grants To O/Side Sources,YJ101,22/11/2016,439879,9340,CAPITAL,WESSEX LIFT CO LTD,126902
North East Lincolnshire Council,http://statistics.data.gov.uk/id/local-authority/00FC),Cap Dep Chief Exec,Ad Adult Serv-Hlth Improvement,Hps-Disabled Fac. Grants,Cap Grants To O/Side Sources,Cap Grants To O/Side Sources,YJ101,03/11/2016,437415,10827.67,CAPITAL,KES BUILDING MAINTENANCE LIMITED,100786
North East Lincolnshire Council,http://statistics.data.gov.uk/id/local-authority/00FC),Cap Dep Chief Exec,Ad Adult Serv-Hlth Improvement,Hps-Disabled Fac. Grants,Cap Grants To O/Side Sources,Cap Grants To O/Side Sources,YJ101,21/11/2016,439878,15220.45,CAPITAL,TOPCON CONSTRUCTION LTD,108462
North East Lincolnshire Council,http://statistics.data.gov.uk/id/local-authority/00FC),Cap Dep Chief Exec,Ad Adult Serv-Hlth Improvement,Hps-Disabled Fac. Grants,Cap Grants To O/Side Sources,Cap Grants To O/Side Sources,YJ101,08/11/2016,437438,4075,CAPITAL,OBAM LIFT SERVICES LTD,112666
North East Lincolnshire Council,http://statistics.data.gov.uk/id/local-authority/00FC),Cap Dep Chief Exec,Ad Adult Serv-Hlth Improvement,Hps-Disabled Fac. Grants,Cap Grants To O/Side Sources,Cap Grants To O/Side Sources,YJ101,15/11/2016,439004,5886.32,CAPITAL,KES BUILDING MAINTENANCE LIMITED,100786
North East Lincolnshire Council,http://statistics.data.gov.uk/id/local-authority/00FC),Cap Dep Chief Exec,Ad Adult Serv-Hlth Improvement,Hps-Disabled Fac. Grants,Cap Grants To O/Side Sources,Cap Grants To O/Side Sources,YJ101,22/11/2016,439954,-1000,CAPITAL,WESSEX LIFT CO LTD,126902
North East Lincolnshire Council,http://statistics.data.gov.uk/id/local-authority/00FC),Cap Dep Chief Exec,Ad Adult Serv-Hlth Improvement,Hps-Disabled Fac. Grants,Cap Grants To O/Side Sources,Cap Grants To O/Side Sources,YJ101,14/11/2016,438385,2039,CAPITAL,OBAM LIFT SERVICES LTD,112666
North East Lincolnshire Council,http://statistics.data.gov.uk/id/local-authority/00FC),Cap Dep Chief Exec,Ad Adult Serv-Hlth Improvement,Hps-Disabled Fac. Grants,Cap Grants To O/Side Sources,Cap Grants To O/Side Sources,YJ101,15/11/2016,439013,1495,CAPITAL,OBAM LIFT SERVICES LTD,112666
North East Lincolnshire Council,http://statistics.data.gov.uk/id/local-authority/00FC),Cap Dep Chief Exec,Ad Adult Serv-Hlth Improvement,Hps-Disabled Fac. Grants,Cap Grants To O/Side Sources,Cap Grants To O/Side Sources,YJ101,24/11/2016,440603,6110.75,CAPITAL,TOPCON CONSTRUCTION LTD,108462
North East Lincolnshire Council,http://statistics.data.gov.uk/id/local-authority/00FC),Cap Dep Chief Exec,Ad Adult Serv-Hlth Improvement,Hps-Disabled Fac. Grants,Cap Grants To O/Side Sources,Cap Grants To O/Side Sources,YJ101,22/11/2016,439671,5597.94,CAPITAL,TOPCON CONSTRUCTION LTD,108462
North East Lincolnshire Council,http://statistics.data.gov.uk/id/local-authority/00FC),Cap Dep Chief Exec,Ad Adult Serv-Hlth Improvement,Hps-Disabled Fac. Grants,Cap Grants To O/Side Sources,Cap Grants To O/Side Sources,YJ101,21/11/2016,439665,12070.41,CAPITAL,KES BUILDING MAINTENANCE LIMITED,100786
North East Lincolnshire Council,http://statistics.data.gov.uk/id/local-authority/00FC),Cap Dep Chief Exec,Ad Adult Serv-Hlth Improvement,Hps-Disabled Fac. Grants,Cap Grants To O/Side Sources,Cap Grants To O/Side Sources,YJ101,21/11/2016,439880,4002.25,CAPITAL,TOTAL HYGIENE LTD,100849
North East Lincolnshire Council,http://statistics.data.gov.uk/id/local-authority/00FC),Cap Dep Chief Exec,Ad Adult Serv-Hlth Improvement,Hps-Disabled Fac. Grants,Cap Grants To O/Side Sources,Cap Grants To O/Side Sources,YJ101,24/11/2016,440617,3645,CAPITAL,HANDICARE ACCESSIIBILITY LTD,102647
North East Lincolnshire Council,http://statistics.data.gov.uk/id/local-authority/00FC),Cap Dep Chief Exec,Ad Adult Serv-Hlth Improvement,Hps-Disabled Fac. Grants,Cap Grants To O/Side Sources,Cap Grants To O/Side Sources,YJ101,01/11/2016,436739,1710,CAPITAL,OBAM LIFT SERVICES LTD,112666
North East Lincolnshire Council,http://statistics.data.gov.uk/id/local-authority/00FC),Cap Dep Chief Exec,Ad Adult Serv-Hlth Improvement,Hps-Disabled Fac. Grants,Cap Grants To O/Side Sources,Cap Grants To O/Side Sources,YJ101,01/11/2016,436008,1699,CAPITAL,OBAM LIFT SERVICES LTD,112666
North East Lincolnshire Council,http://statistics.data.gov.uk/id/local-authority/00FC),Cap Dep Chief Exec,Ad Adult Serv-Hlth Improvement,Hps-Disabled Fac. Grants,Cap Grants To O/Side Sources,Cap Grants To O/Side Sources,YJ101,30/11/2016,441067,8391,CAPITAL,MARK BENNETT,101838
North East Lincolnshire Council,http://statistics.data.gov.uk/id/local-authority/00FC),Cap Dep Chief Exec,Ad Adult Serv-Hlth Improvement,Hps-Disabled Fac. Grants,Cap Grants To O/Side Sources,Cap Grants To O/Side Sources,YJ101,24/11/2016,439669,7410,CAPITAL,VIC HANSEN BUILDING & JOINERY LTD,103981
North East Lincolnshire Council,http://statistics.data.gov.uk/id/local-authority/00FC),Cap Dep Chief Exec,Ad Adult Serv-Hlth Improvement,Hps-Disabled Fac. Grants,Cap Grants To O/Side Sources,Cap Grants To O/Side Sources,YJ101,21/11/2016,439672,4515,CAPITAL,OBAM LIFT SERVICES LTD,112666
North East Lincolnshire Council,http://statistics.data.gov.uk/id/local-authority/00FC),Cap Dep Chief Exec,Ad Adult Serv-Hlth Improvement,Hps-Disabled Fac. Grants,Cap Grants To O/Side Sources,Cap Grants To O/Side Sources,YJ101,01/11/2016,435994,1794,CAPITAL,OBAM LIFT SERVICES LTD,112666
North East Lincolnshire Council,http://statistics.data.gov.uk/id/local-authority/00FC),Cap Dep Chief Exec,Ad Adult Serv-Hlth Improvement,Hps-Disabled Fac. Grants,Cap Grants To O/Side Sources,Cap Grants To O/Side Sources,YJ101,01/11/2016,436117,1544,CAPITAL,OBAM LIFT SERVICES LTD,112666
North East Lincolnshire Council,http://statistics.data.gov.uk/id/local-authority/00FC),Cap Dep Chief Exec,Ad Adult Serv-Hlth Improvement,Hps-Disabled Fac. Grants,Cap Grants To O/Side Sources,Cap Grants To O/Side Sources,YJ101,30/11/2016,441074,9091.78,CAPITAL,KES BUILDING MAINTENANCE LIMITED,100786
North East Lincolnshire Council,http://statistics.data.gov.uk/id/local-authority/00FC),Cap Dep Chief Exec,Ad Adult Serv-Hlth Improvement,Hps-Disabled Fac. Grants,Cap Grants To O/Side Sources,Cap Grants To O/Side Sources,YJ101,01/11/2016,436737,1505,CAPITAL,OBAM LIFT SERVICES LTD,112666
North East Lincolnshire Council,http://statistics.data.gov.uk/id/local-authority/00FC),Cap Dep Chief Exec,Ad Adult Serv-Hlth Improvement,Hps-Disabled Fac. Grants,Cap Grants To O/Side Sources,Cap Grants To O/Side Sources,YJ101,21/11/2016,439633,7468.1,CAPITAL,P G INGOLDBY & SONS LTD,100591
North East Lincolnshire Council,http://statistics.data.gov.uk/id/local-authority/00FC),Cap Dep Chief Exec,Ad Adult Serv-Hlth Improvement,Hps-Disabled Fac. Grants,Cap Grants To O/Side Sources,Cap Grants To O/Side Sources,YJ101,14/11/2016,437616,4027,CAPITAL,TOTAL HYGIENE LTD,100849
North East Lincolnshire Council,http://statistics.data.gov.uk/id/local-authority/00FC),Cap Dep Chief Exec,Ad Adult Serv-Hlth Improvement,Hps-Disabled Fac. Grants,Cap Grants To O/Side Sources,Cap Grants To O/Side Sources,YJ101,24/11/2016,440523,2450,CAPITAL,OBAM LIFT SERVICES LTD,112666
North East Lincolnshire Council,http://statistics.data.gov.uk/id/local-authority/00FC),Cap Dep Chief Exec,Ad Adult Serv-Hlth Improvement,Housing Assist Grants And Loan,Cap Grants To O/Side Sources,Cap Grants To O/Side Sources,YJ101,10/11/2016,438371,6648,CAPITAL,ETON-LINCS LIMITED,101510
North East Lincolnshire Council,http://statistics.data.gov.uk/id/local-authority/00FC),Cap Dep Chief Exec,Ad Adult Serv-Hlth Improvement,Derelict Land & Comm Prop,Cap Grants To O/Side Sources,Cap Grants To O/Side Sources,YJ101,07/11/2016,435997,850,CAPITAL,MARTIN MASLIN PROFESSIONAL ESTATE AGENTS,134751
North East Lincolnshire Council,http://statistics.data.gov.uk/id/local-authority/00FC),Cap Dep Chief Exec,Ad Adult Serv-Hlth Improvement,Derelict Land & Comm Prop,Cap Grants To O/Side Sources,Cap Grants To O/Side Sources,YJ101,24/11/2016,440337,700,CAPITAL,VPS (UK) LTD,135305
North East Lincolnshire Council,http://statistics.data.gov.uk/id/local-authority/00FC),Cap Dep Chief Exec,Director Of Public Health,New Leisure Centre At Grimsby,Cap Land/Build-Prof Fees,Cap Land/Build-Prof Fees,YA103,21/11/2016,439641,6500,CAPITAL,ENGIE SERVICES LTD,133267
North East Lincolnshire Council,http://statistics.data.gov.uk/id/local-authority/00FC),Cap Dep Chief Exec,Director Of Public Health,Immingham Pool,Cap Land/Build-Build Enh Wrk,Cap Land/Build-Build Enh Wrk,YA102,10/11/2016,438657,19501.21,CAPITAL,F PARKINSON LTD,123944
North East Lincolnshire Council,http://statistics.data.gov.uk/id/local-authority/00FC),Chief Executive,Director Of Finance,Backlog Maintenance,Cap Land/Build-Build Enh Wrk,Cap Land/Build-Build Enh Wrk,YA102,22/11/2016,439957,16602.5,CAPITAL,CONSTRUCTION SERVICES DIRECT LTD,124419
North East Lincolnshire Council,http://statistics.data.gov.uk/id/local-authority/00FC),Chief Executive,Director Of Finance,Backlog Maintenance,Cap Land/Build-Build Enh Wrk,Cap Land/Build-Build Enh Wrk,YA102,10/11/2016,438429,460,CAPITAL,LINCS ELECTRICAL SERVICES LTD,102044
North East Lincolnshire Council,http://statistics.data.gov.uk/id/local-authority/00FC),Chief Executive,Director Of Finance,Backlog Maintenance,Cap Land/Build-Build Enh Wrk,Cap Land/Build-Build Enh Wrk,YA102,10/11/2016,438753,9965,CAPITAL,ETON-LINCS LIMITED,101510
North East Lincolnshire Council,http://statistics.data.gov.uk/id/local-authority/00FC),Chief Executive,Director Of Finance,Backlog Maintenance,Cap Land/Build-Build Enh Wrk,Cap Land/Build-Build Enh Wrk,YA102,15/11/2016,439271,850,CAPITAL,FUTURE CLEANING SERVICES LTD,102557
North East Lincolnshire Council,http://statistics.data.gov.uk/id/local-authority/00FC),Chief Executive,Director Of Finance,Backlog Maintenance,Cap Land/Build-Build Enh Wrk,Cap Land/Build-Build Enh Wrk,YA102,21/11/2016,439960,3247.55,CAPITAL,HAITHS HEATING LTD,101342
North East Lincolnshire Council,http://statistics.data.gov.uk/id/local-authority/00FC),Chief Executive,Director Of Finance,Backlog Maintenance,Cap Land/Build-Build Enh Wrk,Cap Land/Build-Build Enh Wrk,YA102,22/11/2016,439490,873,CAPITAL,LINCS ELECTRICAL SERVICES LTD,102044
North East Lincolnshire Council,http://statistics.data.gov.uk/id/local-authority/00FC),Chief Executive,Director Of Finance,Backlog Maintenance,Cap Land/Build-Build Enh Wrk,Cap Land/Build-Build Enh Wrk,YA102,21/11/2016,439963,1900,CAPITAL,LINCS ELECTRICAL SERVICES LTD,102044
North East Lincolnshire Council,http://statistics.data.gov.uk/id/local-authority/00FC),Chief Executive,Director Of Finance,Backlog Maintenance,Cap Land/Build-Build Enh Wrk,Cap Land/Build-Build Enh Wrk,YA102,22/11/2016,439468,1114,CAPITAL,LINCS ELECTRICAL SERVICES LTD,102044
North East Lincolnshire Council,http://statistics.data.gov.uk/id/local-authority/00FC),Chief Executive,Director Of Finance,Backlog Maintenance,Cap Land/Build-Build Enh Wrk,Cap Land/Build-Build Enh Wrk,YA102,28/11/2016,435797,250,CAPITAL,ENGIE SERVICES LTD,133267
North East Lincolnshire Council,http://statistics.data.gov.uk/id/local-authority/00FC),Chief Executive,Director Of Finance,Backlog Maintenance,Cap Land/Build-Build Enh Wrk,Cap Land/Build-Build Enh Wrk,YA102,28/11/2016,435810,455.04,CAPITAL,ENGIE SERVICES LTD,133267
North East Lincolnshire Council,http://statistics.data.gov.uk/id/local-authority/00FC),Chief Executive,Director Of Finance,Backlog Maintenance,Cap Land/Build-Build Enh Wrk,Cap Land/Build-Build Enh Wrk,YA102,28/11/2016,435799,514.8,CAPITAL,ENGIE SERVICES LTD,133267
North East Lincolnshire Council,http://statistics.data.gov.uk/id/local-authority/00FC),Chief Executive,Director Of Finance,Backlog Maintenance,Cap Land/Build-Build Enh Wrk,Cap Land/Build-Build Enh Wrk,YA102,28/11/2016,435796,425.97,CAPITAL,ENGIE SERVICES LTD,133267
North East Lincolnshire Council,http://statistics.data.gov.uk/id/local-authority/00FC),Chief Executive,Director Of Finance,Backlog Maintenance,Cap Land/Build-Build Enh Wrk,Cap Land/Build-Build Enh Wrk,YA102,28/11/2016,435795,661.63,CAPITAL,ENGIE SERVICES LTD,133267
North East Lincolnshire Council,http://statistics.data.gov.uk/id/local-authority/00FC),Chief Executive,Director Of Finance,Backlog Maintenance,Cap Land/Build-Prof Fees,Cap Land/Build-Prof Fees,YA103,28/11/2016,435798,250,CAPITAL,ENGIE SERVICES LTD,133267
North East Lincolnshire Council,http://statistics.data.gov.uk/id/local-authority/00FC),Chief Executive,Director Of Finance,Backlog Maintenance,Cap Land/Build-Build Enh Wrk,Cap Land/Build-Build Enh Wrk,YA102,10/11/2016,438756,1750,CAPITAL,OXLEY SHUTTERS LIMITED,100931
North East Lincolnshire Council,http://statistics.data.gov.uk/id/local-authority/00FC),Chief Executive,Director Of Finance,Backlog Maintenance,Cap Land/Build-Build Enh Wrk,Cap Land/Build-Build Enh Wrk,YA102,21/11/2016,439956,17796.65,CAPITAL,BURROWS DAVIES LIMITED,102722
North East Lincolnshire Council,http://statistics.data.gov.uk/id/local-authority/00FC),Chief Executive,Director Of Finance,Backlog Maintenance,Cap Land/Build-Build Enh Wrk,Cap Land/Build-Build Enh Wrk,YA102,17/11/2016,439458,5487,CAPITAL,HAITHS HEATING LTD,101342
North East Lincolnshire Council,http://statistics.data.gov.uk/id/local-authority/00FC),Chief Executive,Director Of Finance,Backlog Maintenance,Cap Land/Build-Build Enh Wrk,Cap Land/Build-Build Enh Wrk,YA102,28/11/2016,435792,18843.51,CAPITAL,ENGIE SERVICES LTD,133267
North East Lincolnshire Council,http://statistics.data.gov.uk/id/local-authority/00FC),Chief Executive,Director Of Finance,Property Rationalisation Prog,Cap Land/Build-Build Enh Wrk,Cap Land/Build-Build Enh Wrk,YA102,10/11/2016,438752,1494.44,CAPITAL,KES BUILDING MAINTENANCE LIMITED,100786
North East Lincolnshire Council,http://statistics.data.gov.uk/id/local-authority/00FC),Chief Executive,Director Of Finance,Property Rationalisation Prog,Cap Land/Build-Build Enh Wrk,Cap Land/Build-Build Enh Wrk,YA102,28/11/2016,435794,450,CAPITAL,ENGIE SERVICES LTD,133267
North East Lincolnshire Council,http://statistics.data.gov.uk/id/local-authority/00FC),Chief Executive,Shared Services,New Ict Framework,Cap Veh Plt Eqp-Purchase,Cap Veh Plt Eqp-Purchase,YB101,08/11/2016,438059,284,CAPITAL,RESPOND GROUP LIMITED,102963
North East Lincolnshire Council,http://statistics.data.gov.uk/id/local-authority/00FC),Chief Executive,Shared Services,New Ict Framework,Cap Intangible Assets,Cap Intangible Assets,YH101,30/11/2016,438107,12600,CAPITAL,FIRMSTEP,108310
North East Lincolnshire Council,http://statistics.data.gov.uk/id/local-authority/00FC),Chief Executive,Shared Services,New Ict Framework,Cap Intangible Assets,Cap Intangible Assets,YH101,30/11/2016,438107,656.25,CAPITAL,FIRMSTEP,108310
North East Lincolnshire Council,http://statistics.data.gov.uk/id/local-authority/00FC),Chief Executive,Shared Services,New Ict Framework,Cap Intangible Assets,Cap Intangible Assets,YH101,30/11/2016,438107,15000,CAPITAL,FIRMSTEP,108310
North East Lincolnshire Council,http://statistics.data.gov.uk/id/local-authority/00FC),Chief Executive,Shared Services,New Ict Framework,Cap Intangible Assets,Cap Intangible Assets,YH101,30/11/2016,438107,1100,CAPITAL,FIRMSTEP,108310
North East Lincolnshire Council,http://statistics.data.gov.uk/id/local-authority/00FC),Chief Executive,Shared Services,New Ict Framework,Cap Intangible Assets,Cap Intangible Assets,YH101,24/11/2016,440086,950,CAPITAL,ENGIE SERVICES LTD,133267
North East Lincolnshire Council,http://statistics.data.gov.uk/id/local-authority/00FC),Chief Executive,Shared Services,New Ict Framework,Cap Land/Build-Build Enh Wrk,Cap Land/Build-Build Enh Wrk,YA102,30/11/2016,439339,64500,CAPITAL,CIVICA UK LIMITED,103029
North East Lincolnshire Council,http://statistics.data.gov.uk/id/local-authority/00FC),Chief Executive,Shared Services,Ict Refresh 16-17,Cap Land/Build-Build Enh Wrk,Cap Land/Build-Build Enh Wrk,YA102,10/11/2016,438754,3581.52,CAPITAL,HAITHS HEATING LTD,101342
North East Lincolnshire Council,http://statistics.data.gov.uk/id/local-authority/00FC),Chief Executive,Shared Services,Ict Refresh 16-17,Cap Land/Build-Build Enh Wrk,Cap Land/Build-Build Enh Wrk,YA102,07/11/2016,427166,3797.5,CAPITAL,COMPUTACENTER UK LTD,101303
North East Lincolnshire Council,http://statistics.data.gov.uk/id/local-authority/00FC),Chief Executive,Shared Services,Ict Refresh 16-17,Cap Land/Build-Build Enh Wrk,Cap Land/Build-Build Enh Wrk,YA102,22/11/2016,440160,1259,CAPITAL,XMA LIMITED,100699
North East Lincolnshire Council,http://statistics.data.gov.uk/id/local-authority/00FC),Chief Executive,Shared Services,Ict Refresh 16-17,Cap Land/Build-Build Enh Wrk,Cap Land/Build-Build Enh Wrk,YA102,08/11/2016,436817,6300,CAPITAL,XMA LIMITED,100699
North East Lincolnshire Council,http://statistics.data.gov.uk/id/local-authority/00FC),Chief Executive,Shared Services,Ict Refresh 16-17,Cap Land/Build-Build Enh Wrk,Cap Land/Build-Build Enh Wrk,YA102,08/11/2016,436817,414.55,CAPITAL,XMA LIMITED,100699
North East Lincolnshire Council,http://statistics.data.gov.uk/id/local-authority/00FC),Chief Executive,Shared Services,Ict Refresh 16-17,Cap Land/Build-Build Enh Wrk,Cap Land/Build-Build Enh Wrk,YA102,15/11/2016,438722,2133.04,CAPITAL,XMA LIMITED,100699
North East Lincolnshire Council,http://statistics.data.gov.uk/id/local-authority/00FC),Chief Executive,Shared Services,Ict Refresh 16-17,Cap Land/Build-Build Enh Wrk,Cap Land/Build-Build Enh Wrk,YA102,15/11/2016,438722,1953.75,CAPITAL,XMA LIMITED,100699
North East Lincolnshire Council,http://statistics.data.gov.uk/id/local-authority/00FC),Chief Executive,Shared Services,Ict Refresh 16-17,Cap Land/Build-Build Enh Wrk,Cap Land/Build-Build Enh Wrk,YA102,15/11/2016,438722,2559.96,CAPITAL,XMA LIMITED,100699
North East Lincolnshire Council,http://statistics.data.gov.uk/id/local-authority/00FC),Chief Executive,Shared Services,Ict Refresh 16-17,Cap Land/Build-Build Enh Wrk,Cap Land/Build-Build Enh Wrk,YA102,15/11/2016,438725,39381.1,CAPITAL,XMA LIMITED,100699
North East Lincolnshire Council,http://statistics.data.gov.uk/id/local-authority/00FC),Chief Executive,Shared Services,Ict Refresh 16-17,Cap Land/Build-Build Enh Wrk,Cap Land/Build-Build Enh Wrk,YA102,03/11/2016,437090,15590,CAPITAL,INSIGHT DIRECT (UK) LTD,101011
North East Lincolnshire Council,http://statistics.data.gov.uk/id/local-authority/00FC),Chief Executive,Shared Services,Ict Refresh 16-17,Cap Land/Build-Build Enh Wrk,Cap Land/Build-Build Enh Wrk,YA102,17/11/2016,439074,440.31,CAPITAL,XMA LIMITED,100699
North East Lincolnshire Council,http://statistics.data.gov.uk/id/local-authority/00FC),Chief Executive,Shared Services,Ict Refresh 16-17,Cap Land/Build-Build Enh Wrk,Cap Land/Build-Build Enh Wrk,YA102,24/11/2016,440332,10463.2,CAPITAL,DELL COMPUTER CORPORATION LTD,100892
North East Lincolnshire Council,http://statistics.data.gov.uk/id/local-authority/00FC),Chief Executive,Shared Services,Ict Refresh 16-17,Cap Land/Build-Build Enh Wrk,Cap Land/Build-Build Enh Wrk,YA102,21/11/2016,439242,35801,CAPITAL,XMA LIMITED,100699
North East Lincolnshire Council,http://statistics.data.gov.uk/id/local-authority/00FC),Chief Executive,Shared Services,Ict Refresh 16-17,Cap Land/Build-Build Enh Wrk,Cap Land/Build-Build Enh Wrk,YA102,22/11/2016,440159,2133.04,CAPITAL,XMA LIMITED,100699
North East Lincolnshire Council,http://statistics.data.gov.uk/id/local-authority/00FC),Chief Executive,Shared Services,Ict Refresh 16-17,Cap Land/Build-Build Enh Wrk,Cap Land/Build-Build Enh Wrk,YA102,24/11/2016,439588,1435.87,CAPITAL,INSIGHT DIRECT (UK) LTD,101011
North East Lincolnshire Council,http://statistics.data.gov.uk/id/local-authority/00FC),Chief Executive,Director Of Economy & Growth,Local Transport Plan Schemes,Cap Land/Build-Build Enh Wrk,Cap Land/Build-Build Enh Wrk,YA102,03/11/2016,437521,1018.11,CAPITAL,J MCCANN & CO LTD,100841
North East Lincolnshire Council,http://statistics.data.gov.uk/id/local-authority/00FC),Chief Executive,Director Of Economy & Growth,Local Transport Plan Schemes,Cap Infrastr-Build Enh Wrk,Cap Infrastr-Build Enh Wrk,YC102,28/11/2016,440601,1260,CAPITAL,ONEWAY TM LIMITED,128602
North East Lincolnshire Council,http://statistics.data.gov.uk/id/local-authority/00FC),Chief Executive,Director Of Economy & Growth,Local Transport Plan Schemes,Cap Land/Build-Build Enh Wrk,Cap Land/Build-Build Enh Wrk,YA102,24/11/2016,439524,4675.32,CAPITAL,J MCCANN & CO LTD,100841
North East Lincolnshire Council,http://statistics.data.gov.uk/id/local-authority/00FC),Chief Executive,Director Of Economy & Growth,Local Transport Plan Schemes,Cap Land/Build-Build Enh Wrk,Cap Land/Build-Build Enh Wrk,YA102,03/11/2016,437521,11629.75,CAPITAL,J MCCANN & CO LTD,100841
North East Lincolnshire Council,http://statistics.data.gov.uk/id/local-authority/00FC),Chief Executive,Director Of Economy & Growth,Local Transport Plan Schemes,Cap Infrastr-Build Enh Wrk,Cap Infrastr-Build Enh Wrk,YC102,21/11/2016,439630,5330,CAPITAL,LINDSEY TREE SERVICES LTD,100981
North East Lincolnshire Council,http://statistics.data.gov.uk/id/local-authority/00FC),Chief Executive,Director Of Economy & Growth,Local Transport Plan Schemes,Cap Infrastr-Build Enh Wrk,Cap Infrastr-Build Enh Wrk,YC102,15/11/2016,439068,5197.2,CAPITAL,PBS CONSTRUCTION (NORTH EAST) LTD,127459
North East Lincolnshire Council,http://statistics.data.gov.uk/id/local-authority/00FC),Chief Executive,Director Of Economy & Growth,Local Transport Plan Schemes,Cap Infrastr-Build Enh Wrk,Cap Infrastr-Build Enh Wrk,YC102,10/11/2016,435992,5850,CAPITAL,P H CONSTRUCTION SERVICES LTD,102107
North East Lincolnshire Council,http://statistics.data.gov.uk/id/local-authority/00FC),Chief Executive,Director Of Economy & Growth,Local Transport Plan Schemes,Cap Infrastr-Build Enh Wrk,Cap Infrastr-Build Enh Wrk,YC102,03/11/2016,436630,9718.2,CAPITAL,SPECIALIST SURFACING LIMITED,100579
North East Lincolnshire Council,http://statistics.data.gov.uk/id/local-authority/00FC),Chief Executive,Director Of Economy & Growth,Local Transport Plan Schemes,Cap Infrastr-Build Enh Wrk,Cap Infrastr-Build Enh Wrk,YC102,10/11/2016,437451,1020,CAPITAL,ONEWAY TM LIMITED,128602
North East Lincolnshire Council,http://statistics.data.gov.uk/id/local-authority/00FC),Chief Executive,Director Of Economy & Growth,Local Transport Plan Schemes,Cap Land/Build-Build Enh Wrk,Cap Land/Build-Build Enh Wrk,YA102,24/11/2016,439524,298.01,CAPITAL,J MCCANN & CO LTD,100841
North East Lincolnshire Council,http://statistics.data.gov.uk/id/local-authority/00FC),Chief Executive,Director Of Economy & Growth,Local Transport Plan Schemes,Cap Land/Build-Build Enh Wrk,Cap Land/Build-Build Enh Wrk,YA102,10/11/2016,436790,1300,CAPITAL,ADVANTAGE TSC & D LTD,109136
North East Lincolnshire Council,http://statistics.data.gov.uk/id/local-authority/00FC),Chief Executive,Director Of Economy & Growth,Local Transport Plan Schemes,Cap Land/Build-Build Enh Wrk,Cap Land/Build-Build Enh Wrk,YA102,17/11/2016,437808,750,CAPITAL,J MCCANN & CO LTD,100841
North East Lincolnshire Council,http://statistics.data.gov.uk/id/local-authority/00FC),Chief Executive,Director Of Economy & Growth,Local Transport Plan Schemes,Cap Infrastr-Purchase,Cap Infrastr-Purchase,YC101,10/11/2016,438465,7099.66,CAPITAL,LITTLETHORPE OF LEICESTER LTD,134866
North East Lincolnshire Council,http://statistics.data.gov.uk/id/local-authority/00FC),Chief Executive,Director Of Economy & Growth,A18 - A180 Link Road,Cap Infrastr-Build Enh Wrk,Cap Infrastr-Build Enh Wrk,YC102,10/11/2016,438098,430.95,CAPITAL,NEWBURN POWER RENTAL LTD,134135
North East Lincolnshire Council,http://statistics.data.gov.uk/id/local-authority/00FC),Chief Executive,Director Of Economy & Growth,A18 - A180 Link Road,Cap Infrastr-Build Enh Wrk,Cap Infrastr-Build Enh Wrk,YC102,10/11/2016,438100,560.15,CAPITAL,NEWBURN POWER RENTAL LTD,134135
North East Lincolnshire Council,http://statistics.data.gov.uk/id/local-authority/00FC),Chief Executive,Director Of Economy & Growth,A18 - A180 Link Road,Cap Infrastr-Build Enh Wrk,Cap Infrastr-Build Enh Wrk,YC102,15/11/2016,438728,634.2,CAPITAL,NEWBURN POWER RENTAL LTD,134135
North East Lincolnshire Council,http://statistics.data.gov.uk/id/local-authority/00FC),Chief Executive,Director Of Economy & Growth,A18 - A180 Link Road,Cap Infrastr-Build Enh Wrk,Cap Infrastr-Build Enh Wrk,YC102,10/11/2016,435699,50000,CAPITAL,ENGIE SERVICES LTD,133267
North East Lincolnshire Council,http://statistics.data.gov.uk/id/local-authority/00FC),Chief Executive,Director Of Economy & Growth,Pinchpoint Scheme,Cap Land/Build-Build Enh Wrk,Cap Land/Build-Build Enh Wrk,YA102,03/11/2016,430453,5200.2,CAPITAL,VOLKERLASER LTD,126094
North East Lincolnshire Council,http://statistics.data.gov.uk/id/local-authority/00FC),Chief Executive,Director Of Economy & Growth,Victoria Mills,Cap Land/Build-Build Enh Wrk,Cap Land/Build-Build Enh Wrk,YA102,10/11/2016,438432,2000,CAPITAL,MASON CLARK ASSOCIATES,100793
North East Lincolnshire Council,http://statistics.data.gov.uk/id/local-authority/00FC),Chief Executive,Director Of Economy & Growth,Victoria Mills,Cap Land/Build-Prof Fees,Cap Land/Build-Prof Fees,YA103,14/11/2016,437872,1656,CAPITAL,ENGIE SERVICES LTD,133267
North East Lincolnshire Council,http://statistics.data.gov.uk/id/local-authority/00FC),Chief Executive,Director Of Economy & Growth,Victoria Mills,Cap Land/Build-Prof Fees,Cap Land/Build-Prof Fees,YA103,10/11/2016,437871,4249,CAPITAL,ENGIE SERVICES LTD,133267
North East Lincolnshire Council,http://statistics.data.gov.uk/id/local-authority/00FC),Chief Executive,Director Of Economy & Growth,Victoria Mills,Cap Land/Build-Prof Fees,Cap Land/Build-Prof Fees,YA103,03/11/2016,437535,900,CAPITAL,MR PIERS HILL,128239
North East Lincolnshire Council,http://statistics.data.gov.uk/id/local-authority/00FC),Chief Executive,Director Of Economy & Growth,Cartergate Office Development,Cap Invest Prop-Build Enh Wrk,Cap Invest Prop-Build Enh Wrk,YE102,24/11/2016,439524,421.98,CAPITAL,J MCCANN & CO LTD,100841
North East Lincolnshire Council,http://statistics.data.gov.uk/id/local-authority/00FC),Chief Executive,Director Of Economy & Growth,Cartergate Office Development,Cap Invest Prop-Build Enh Wrk,Cap Invest Prop-Build Enh Wrk,YE102,10/11/2016,438248,320,CAPITAL,ONEWAY TM LIMITED,128602
North East Lincolnshire Council,http://statistics.data.gov.uk/id/local-authority/00FC),Chief Executive,Director Of Economy & Growth,Cartergate Office Development,Cap Invest Prop-Build Enh Wrk,Cap Invest Prop-Build Enh Wrk,YE102,15/11/2016,438991,420,CAPITAL,J MCCANN & CO LTD,100841
North East Lincolnshire Council,http://statistics.data.gov.uk/id/local-authority/00FC),Chief Executive,Director Of Economy & Growth,Cartergate Office Development,Cap Invest Prop-Prof Fees,Cap Invest Prop-Prof Fees,YE103,29/11/2016,441110,383,CAPITAL,JACKSONS LAW FIRM,135583
North East Lincolnshire Council,http://statistics.data.gov.uk/id/local-authority/00FC),Chief Executive,Director Of Economy & Growth,Town Centre Works Lep,Cap Infrastr-Build Enh Wrk,Cap Infrastr-Build Enh Wrk,YC102,03/11/2016,437521,4966.35,CAPITAL,J MCCANN & CO LTD,100841
North East Lincolnshire Council,http://statistics.data.gov.uk/id/local-authority/00FC),Chief Executive,Director Of Economy & Growth,Town Centre Works Lep,Cap Infrastr-Build Enh Wrk,Cap Infrastr-Build Enh Wrk,YC102,17/11/2016,439085,2652,CAPITAL,CAMPBELL DESIGN AND ENGINEERING LTD,128191
North East Lincolnshire Council,http://statistics.data.gov.uk/id/local-authority/00FC),Chief Executive,Director Of Economy & Growth,Town Centre Works Lep,Cap Infrastr-Build Enh Wrk,Cap Infrastr-Build Enh Wrk,YC102,17/11/2016,438993,2009,CAPITAL,J MCCANN & CO LTD,100841
North East Lincolnshire Council,http://statistics.data.gov.uk/id/local-authority/00FC),Chief Executive,Director Of Economy & Growth,Town Centre Works Lep,Cap Infrastr-Build Enh Wrk,Cap Infrastr-Build Enh Wrk,YC102,28/11/2016,440517,1261.5,CAPITAL,J MCCANN & CO LTD,100841
North East Lincolnshire Council,http://statistics.data.gov.uk/id/local-authority/00FC),Chief Executive,Director Of Economy & Growth,Clee Strategic Acquisition,Cap Land/Build-Build Enh Wrk,Cap Land/Build-Build Enh Wrk,YA102,10/11/2016,438430,871.65,CAPITAL,ENGIE SERVICES LTD,133267
North East Lincolnshire Council,http://statistics.data.gov.uk/id/local-authority/00FC),Chief Executive,Director Of Economy & Growth,Shiip Scheme,Cap Infrastr-Build Enh Wrk,Cap Infrastr-Build Enh Wrk,YC102,17/11/2016,439014,6956.25,CAPITAL,ATKINS LTD,101751
North East Lincolnshire Council,http://statistics.data.gov.uk/id/local-authority/00FC),Chief Executive,Director Of Economy & Growth,Shiip Scheme,Cap Infrastr-Build Enh Wrk,Cap Infrastr-Build Enh Wrk,YC102,17/11/2016,439016,756,CAPITAL,ATKINS LTD,101751
North East Lincolnshire Council,http://statistics.data.gov.uk/id/local-authority/00FC),Chief Executive,Director Of Economy & Growth,Shiip Scheme,Cap Infrastr-Prof Fees,Cap Infrastr-Prof Fees,YC103,17/11/2016,439015,2651.25,CAPITAL,ATKINS LTD,101751
North East Lincolnshire Council,http://statistics.data.gov.uk/id/local-authority/00FC),Chief Executive,Director Of Economy & Growth,Catch Offshore,Cap Infrastr-Prof Fees,Cap Infrastr-Prof Fees,YC103,10/11/2016,438790,1550,CAPITAL,NORTH EAST LINDSEY DRAINAGE BOARD,108853
North East Lincolnshire Council,http://statistics.data.gov.uk/id/local-authority/00FC),Chief Executive,Director Of Economy & Growth,Catch Offshore,Cap Infrastr-Prof Fees,Cap Infrastr-Prof Fees,YC103,21/11/2016,439987,1285,CAPITAL,TECHNICAL UTILITIES SERVICES UK LTD,135036
North East Lincolnshire Council,http://statistics.data.gov.uk/id/local-authority/00FC),Chief Executive,Ad Environment,Safer Communities P/Ship,Government Departments,Third Party Prov - Govt Depts,PE101,24/11/2016,440348,7500,REVENUE,PCC HUMBERSIDE,120398
North East Lincolnshire Council,http://statistics.data.gov.uk/id/local-authority/00FC),Chief Executive,Ad Environment,Cemeteries & Crematorium,Rep Alterations Maint Building,Buildings - Repairs And Maint,GA102,17/11/2016,438988,946.04,REVENUE,ENGIE SERVICES LTD,133267
North East Lincolnshire Council,http://statistics.data.gov.uk/id/local-authority/00FC),Chief Executive,Ad Environment,Cemeteries & Crematorium,Rep Alterations Maint Building,Buildings - Repairs And Maint,GA102,17/11/2016,438992,4140.39,REVENUE,ENGIE SERVICES LTD,133267
North East Lincolnshire Council,http://statistics.data.gov.uk/id/local-authority/00FC),Chief Executive,Ad Environment,Cemeteries & Crematorium,Grounds Maintenance Costs,Grounds Maintenance,GJ101,14/11/2016,438706,500,REVENUE,DEREK COMMANDER,128309
North East Lincolnshire Council,http://statistics.data.gov.uk/id/local-authority/00FC),Chief Executive,Ad Environment,Cemeteries & Crematorium,Rep Alterations Maint Building,Buildings - Repairs And Maint,GA102,17/11/2016,438990,1483.8,REVENUE,ENGIE SERVICES LTD,133267
North East Lincolnshire Council,http://statistics.data.gov.uk/id/local-authority/00FC),Chief Executive,Ad Environment,Cemeteries & Crematorium,Equip / Furniture / Materials,Equipment - Purchase,LA101,22/11/2016,439676,394,REVENUE,S P DAVIS MEMORIALS LIMITED,130000
North East Lincolnshire Council,http://statistics.data.gov.uk/id/local-authority/00FC),Chief Executive,Ad Environment,Cemeteries & Crematorium,Equip / Furniture / Materials,Equipment - Purchase,LA101,17/11/2016,439080,453.2,REVENUE,S P DAVIS MEMORIALS LIMITED,130000
North East Lincolnshire Council,http://statistics.data.gov.uk/id/local-authority/00FC),Chief Executive,Ad Environment,Cemeteries & Crematorium,Equip / Furniture / Materials,Equipment - Purchase,LA101,10/11/2016,437856,491,REVENUE,THE COLUMBARIA COMPANY,100621
North East Lincolnshire Council,http://statistics.data.gov.uk/id/local-authority/00FC),Chief Executive,Ad Environment,Cemeteries & Crematorium,Equip / Furniture / Materials,Equipment - Purchase,LA101,01/11/2016,436734,349,REVENUE,E BACON & CO LTD,104090
North East Lincolnshire Council,http://statistics.data.gov.uk/id/local-authority/00FC),Chief Executive,Ad Environment,Cemeteries & Crematorium,Equip / Furniture / Materials,Equipment - Purchase,LA101,22/11/2016,439681,444,REVENUE,S P DAVIS MEMORIALS LIMITED,130000
North East Lincolnshire Council,http://statistics.data.gov.uk/id/local-authority/00FC),Chief Executive,Ad Environment,Cemeteries & Crematorium,Equip / Furniture / Materials,Equipment - Purchase,LA101,22/11/2016,439680,297.01,REVENUE,BRIDGE INSURANCE BROKERS LTD,128411
North East Lincolnshire Council,http://statistics.data.gov.uk/id/local-authority/00FC),Chief Executive,Ad Environment,Cemeteries & Crematorium,Private Contractors,Third Party Prov - Private,PH101,03/11/2016,436804,7346.51,REVENUE,THE YABOO COMPANY LTD,121780
North East Lincolnshire Council,http://statistics.data.gov.uk/id/local-authority/00FC),Chief Executive,Ad Environment,Garage & Fleet Strategy,Direct Transport Costs,Vehicles - Repairs And Maint,JA105,17/11/2016,439318,-463.6,REVENUE,FLEET FACTORS LTD,100886
North East Lincolnshire Council,http://statistics.data.gov.uk/id/local-authority/00FC),Chief Executive,Ad Environment,Garage & Fleet Strategy,Direct Transport Costs,Vehicles - Repairs And Maint,JA105,07/11/2016,435827,741.81,REVENUE,FLEET FACTORS LTD,100886
North East Lincolnshire Council,http://statistics.data.gov.uk/id/local-authority/00FC),Chief Executive,Ad Environment,Garage & Fleet Strategy,Direct Transport Costs,Vehicles - Repairs And Maint,JA105,03/11/2016,437120,262.54,REVENUE,B A BUSH & SON LTD,101828
North East Lincolnshire Council,http://statistics.data.gov.uk/id/local-authority/00FC),Chief Executive,Ad Environment,Garage & Fleet Strategy,Direct Transport Costs,Vehicles - Repairs And Maint,JA105,03/11/2016,437121,262.54,REVENUE,B A BUSH & SON LTD,101828
North East Lincolnshire Council,http://statistics.data.gov.uk/id/local-authority/00FC),Chief Executive,Ad Environment,Garage & Fleet Strategy,Direct Transport Costs,Vehicles - Repairs And Maint,JA105,03/11/2016,437123,476.66,REVENUE,B A BUSH & SON LTD,101828
North East Lincolnshire Council,http://statistics.data.gov.uk/id/local-authority/00FC),Chief Executive,Ad Environment,Garage & Fleet Strategy,Direct Transport Costs,Vehicles - Repairs And Maint,JA105,03/11/2016,437124,430,REVENUE,B A BUSH & SON LTD,101828
North East Lincolnshire Council,http://statistics.data.gov.uk/id/local-authority/00FC),Chief Executive,Ad Environment,Garage & Fleet Strategy,Direct Transport Costs,Vehicles - Repairs And Maint,JA105,03/11/2016,437118,430,REVENUE,B A BUSH & SON LTD,101828
North East Lincolnshire Council,http://statistics.data.gov.uk/id/local-authority/00FC),Chief Executive,Ad Environment,Garage & Fleet Strategy,Direct Transport Costs,Vehicles - Repairs And Maint,JA105,03/11/2016,437116,354.32,REVENUE,B A BUSH & SON LTD,101828
North East Lincolnshire Council,http://statistics.data.gov.uk/id/local-authority/00FC),Chief Executive,Ad Environment,Garage & Fleet Strategy,Direct Transport Costs,Vehicles - Repairs And Maint,JA105,03/11/2016,437125,430,REVENUE,B A BUSH & SON LTD,101828
North East Lincolnshire Council,http://statistics.data.gov.uk/id/local-authority/00FC),Chief Executive,Ad Environment,Garage & Fleet Strategy,Direct Transport Costs,Vehicles - Repairs And Maint,JA105,03/11/2016,437127,415.04,REVENUE,B A BUSH & SON LTD,101828
North East Lincolnshire Council,http://statistics.data.gov.uk/id/local-authority/00FC),Chief Executive,Ad Environment,Garage & Fleet Strategy,Direct Transport Costs,Vehicles - Repairs And Maint,JA105,03/11/2016,437139,2696.49,REVENUE,FLEET FACTORS LTD,100886
North East Lincolnshire Council,http://statistics.data.gov.uk/id/local-authority/00FC),Chief Executive,Ad Environment,Garage & Fleet Strategy,Direct Transport Costs,Vehicles - Repairs And Maint,JA105,03/11/2016,437157,2515.84,REVENUE,FLEET FACTORS LTD,100886
North East Lincolnshire Council,http://statistics.data.gov.uk/id/local-authority/00FC),Chief Executive,Ad Environment,Garage & Fleet Strategy,Direct Transport Costs,Vehicles - Repairs And Maint,JA105,15/11/2016,437786,554.22,REVENUE,B A BUSH & SON LTD,101828
North East Lincolnshire Council,http://statistics.data.gov.uk/id/local-authority/00FC),Chief Executive,Ad Environment,Garage & Fleet Strategy,Direct Transport Costs,Vehicles - Repairs And Maint,JA105,10/11/2016,437772,287.7,REVENUE,B A BUSH & SON LTD,101828
North East Lincolnshire Council,http://statistics.data.gov.uk/id/local-authority/00FC),Chief Executive,Ad Environment,Garage & Fleet Strategy,Direct Transport Costs,Vehicles - Repairs And Maint,JA105,10/11/2016,437630,292,REVENUE,B A BUSH & SON LTD,101828
North East Lincolnshire Council,http://statistics.data.gov.uk/id/local-authority/00FC),Chief Executive,Ad Environment,Garage & Fleet Strategy,Direct Transport Costs,Vehicles - Repairs And Maint,JA105,10/11/2016,437631,262.54,REVENUE,B A BUSH & SON LTD,101828
North East Lincolnshire Council,http://statistics.data.gov.uk/id/local-authority/00FC),Chief Executive,Ad Environment,Garage & Fleet Strategy,Direct Transport Costs,Vehicles - Repairs And Maint,JA105,10/11/2016,437764,871,REVENUE,B A BUSH & SON LTD,101828
North East Lincolnshire Council,http://statistics.data.gov.uk/id/local-authority/00FC),Chief Executive,Ad Environment,Garage & Fleet Strategy,Direct Transport Costs,Vehicles - Repairs And Maint,JA105,10/11/2016,437766,430,REVENUE,B A BUSH & SON LTD,101828
North East Lincolnshire Council,http://statistics.data.gov.uk/id/local-authority/00FC),Chief Executive,Ad Environment,Garage & Fleet Strategy,Direct Transport Costs,Vehicles - Repairs And Maint,JA105,10/11/2016,437775,431,REVENUE,B A BUSH & SON LTD,101828
North East Lincolnshire Council,http://statistics.data.gov.uk/id/local-authority/00FC),Chief Executive,Ad Environment,Garage & Fleet Strategy,Direct Transport Costs,Vehicles - Repairs And Maint,JA105,15/11/2016,437795,873.78,REVENUE,B A BUSH & SON LTD,101828
North East Lincolnshire Council,http://statistics.data.gov.uk/id/local-authority/00FC),Chief Executive,Ad Environment,Garage & Fleet Strategy,Direct Transport Costs,Vehicles - Repairs And Maint,JA105,08/11/2016,437592,440.45,REVENUE,JOHNSONS APPARELMASTER,100810
North East Lincolnshire Council,http://statistics.data.gov.uk/id/local-authority/00FC),Chief Executive,Ad Environment,Garage & Fleet Strategy,Direct Transport Costs,Vehicles - Repairs And Maint,JA105,15/11/2016,437801,2388,REVENUE,DELTA ENGINEERING GROUP LTD,120523
North East Lincolnshire Council,http://statistics.data.gov.uk/id/local-authority/00FC),Chief Executive,Ad Environment,Garage & Fleet Strategy,Direct Transport Costs,Vehicles - Repairs And Maint,JA105,15/11/2016,437803,2420,REVENUE,DELTA ENGINEERING GROUP LTD,120523
North East Lincolnshire Council,http://statistics.data.gov.uk/id/local-authority/00FC),Chief Executive,Ad Environment,Garage & Fleet Strategy,Direct Transport Costs,Vehicles - Repairs And Maint,JA105,10/11/2016,437804,1780,REVENUE,HODSON & KAUSS,100620
North East Lincolnshire Council,http://statistics.data.gov.uk/id/local-authority/00FC),Chief Executive,Ad Environment,Garage & Fleet Strategy,Direct Transport Costs,Vehicles - Repairs And Maint,JA105,10/11/2016,438211,859.53,REVENUE,FLEET FACTORS LTD,100886
North East Lincolnshire Council,http://statistics.data.gov.uk/id/local-authority/00FC),Chief Executive,Ad Environment,Garage & Fleet Strategy,Direct Transport Costs,Vehicles - Repairs And Maint,JA105,10/11/2016,438209,2405.52,REVENUE,FLEET FACTORS LTD,100886
North East Lincolnshire Council,http://statistics.data.gov.uk/id/local-authority/00FC),Chief Executive,Ad Environment,Garage & Fleet Strategy,Direct Transport Costs,Vehicles - Repairs And Maint,JA105,10/11/2016,438214,2105.8,REVENUE,FLEET FACTORS LTD,100886
North East Lincolnshire Council,http://statistics.data.gov.uk/id/local-authority/00FC),Chief Executive,Ad Environment,Garage & Fleet Strategy,Direct Transport Costs,Vehicles - Repairs And Maint,JA105,10/11/2016,438218,4717.54,REVENUE,FLEET FACTORS LTD,100886
North East Lincolnshire Council,http://statistics.data.gov.uk/id/local-authority/00FC),Chief Executive,Ad Environment,Garage & Fleet Strategy,Direct Transport Costs,Vehicles - Repairs And Maint,JA105,17/11/2016,439237,2285.06,REVENUE,FLEET FACTORS LTD,100886
North East Lincolnshire Council,http://statistics.data.gov.uk/id/local-authority/00FC),Chief Executive,Ad Environment,Garage & Fleet Strategy,Direct Transport Costs,Vehicles - Repairs And Maint,JA105,17/11/2016,439310,5057.78,REVENUE,FLEET FACTORS LTD,100886
North East Lincolnshire Council,http://statistics.data.gov.uk/id/local-authority/00FC),Chief Executive,Ad Environment,Garage & Fleet Strategy,Direct Transport Costs,Vehicles - Repairs And Maint,JA105,17/11/2016,439311,713.94,REVENUE,FLEET FACTORS LTD,100886
North East Lincolnshire Council,http://statistics.data.gov.uk/id/local-authority/00FC),Chief Executive,Ad Environment,Garage & Fleet Strategy,Direct Transport Costs,Vehicles - Repairs And Maint,JA105,17/11/2016,439312,645.7,REVENUE,FLEET FACTORS LTD,100886
North East Lincolnshire Council,http://statistics.data.gov.uk/id/local-authority/00FC),Chief Executive,Ad Environment,Garage & Fleet Strategy,Direct Transport Costs,Vehicles - Repairs And Maint,JA105,24/11/2016,439241,1807.33,REVENUE,FLEET FACTORS LTD,100886
North East Lincolnshire Council,http://statistics.data.gov.uk/id/local-authority/00FC),Chief Executive,Ad Environment,Garage & Fleet Strategy,Direct Transport Costs,Vehicles - Repairs And Maint,JA105,24/11/2016,440147,4110.38,REVENUE,FLEET FACTORS LTD,100886
North East Lincolnshire Council,http://statistics.data.gov.uk/id/local-authority/00FC),Chief Executive,Ad Environment,Garage & Fleet Strategy,Direct Transport Costs,Vehicles - Repairs And Maint,JA105,24/11/2016,440148,892.74,REVENUE,FLEET FACTORS LTD,100886
North East Lincolnshire Council,http://statistics.data.gov.uk/id/local-authority/00FC),Chief Executive,Ad Environment,Garage & Fleet Strategy,Direct Transport Costs,Vehicles - Repairs And Maint,JA105,24/11/2016,440150,2184.47,REVENUE,FLEET FACTORS LTD,100886
North East Lincolnshire Council,http://statistics.data.gov.uk/id/local-authority/00FC),Chief Executive,Ad Environment,Garage & Fleet Strategy,Direct Transport Costs,Vehicles - Repairs And Maint,JA105,28/11/2016,440158,1258.74,REVENUE,FLEET FACTORS LTD,100886
North East Lincolnshire Council,http://statistics.data.gov.uk/id/local-authority/00FC),Chief Executive,Ad Environment,Garage & Fleet Strategy,Direct Transport Costs,Vehicles - Repairs And Maint,JA105,22/11/2016,440123,430,REVENUE,B A BUSH & SON LTD,101828
North East Lincolnshire Council,http://statistics.data.gov.uk/id/local-authority/00FC),Chief Executive,Ad Environment,Garage & Fleet Strategy,Direct Transport Costs,Vehicles - Repairs And Maint,JA105,22/11/2016,440129,430,REVENUE,B A BUSH & SON LTD,101828
North East Lincolnshire Council,http://statistics.data.gov.uk/id/local-authority/00FC),Chief Executive,Ad Environment,Garage & Fleet Strategy,Direct Transport Costs,Vehicles - Repairs And Maint,JA105,24/11/2016,440124,430,REVENUE,B A BUSH & SON LTD,101828
North East Lincolnshire Council,http://statistics.data.gov.uk/id/local-authority/00FC),Chief Executive,Ad Environment,Garage & Fleet Strategy,Direct Transport Costs,Vehicles - Repairs And Maint,JA105,24/11/2016,440125,430,REVENUE,B A BUSH & SON LTD,101828
North East Lincolnshire Council,http://statistics.data.gov.uk/id/local-authority/00FC),Chief Executive,Ad Environment,Garage & Fleet Strategy,Direct Transport Costs,Vehicles - Repairs And Maint,JA105,30/11/2016,441029,3145,REVENUE,TERBERG MATEC UK LTD,101293
North East Lincolnshire Council,http://statistics.data.gov.uk/id/local-authority/00FC),Chief Executive,Ad Environment,Garage & Fleet Strategy,Direct Transport Costs,Vehicles - Repairs And Maint,JA105,30/11/2016,441114,250,REVENUE,P A DE STE CROIX & SON,103824
North East Lincolnshire Council,http://statistics.data.gov.uk/id/local-authority/00FC),Chief Executive,Ad Environment,Garage & Fleet Strategy,Equip / Furniture / Materials,Equipment - Maintenance,LA104,17/11/2016,439253,290.16,REVENUE,ENERGAS LIMITED,129000
North East Lincolnshire Council,http://statistics.data.gov.uk/id/local-authority/00FC),Chief Executive,Ad Environment,Grounds And Street Cleansing,Rep Alterations Maint Building,Buildings - Repairs And Maint,GA102,24/11/2016,440672,1680,REVENUE,ENGIE SERVICES LTD,133267
North East Lincolnshire Council,http://statistics.data.gov.uk/id/local-authority/00FC),Chief Executive,Ad Environment,Grounds And Street Cleansing,Rep Alterations Maint Building,Buildings - Repairs And Maint,GA102,21/11/2016,439913,312,REVENUE,BSB SERVICES,102305
North East Lincolnshire Council,http://statistics.data.gov.uk/id/local-authority/00FC),Chief Executive,Ad Environment,Grounds And Street Cleansing,Rep Alterations Maint Building,Buildings - Repairs And Maint,GA102,21/11/2016,439913,720,REVENUE,BSB SERVICES,102305
North East Lincolnshire Council,http://statistics.data.gov.uk/id/local-authority/00FC),Chief Executive,Ad Environment,Grounds And Street Cleansing,Rep Alterations Maint Building,Buildings - Repairs And Maint,GA102,21/11/2016,439912,550,REVENUE,BSB SERVICES,102305
North East Lincolnshire Council,http://statistics.data.gov.uk/id/local-authority/00FC),Chief Executive,Ad Environment,Grounds And Street Cleansing,Rep Alterations Maint Building,Buildings - Repairs And Maint,GA102,10/11/2016,437870,325,REVENUE,ENGIE SERVICES LTD,133267
North East Lincolnshire Council,http://statistics.data.gov.uk/id/local-authority/00FC),Chief Executive,Ad Environment,Grounds And Street Cleansing,Rep Alterations Maint Building,Buildings - Repairs And Maint,GA102,21/11/2016,439911,400,REVENUE,BSB SERVICES,102305
North East Lincolnshire Council,http://statistics.data.gov.uk/id/local-authority/00FC),Chief Executive,Ad Environment,Grounds And Street Cleansing,Grounds Maintenance Costs,Grounds Maintenance,GJ101,08/11/2016,437171,2835,REVENUE,J MELTON TREE SERVICES LTD,101809
North East Lincolnshire Council,http://statistics.data.gov.uk/id/local-authority/00FC),Chief Executive,Ad Environment,Grounds And Street Cleansing,Direct Transport Costs,Vehicles - Running Costs,JA104,08/11/2016,438149,615.6,REVENUE,ALLSTAR BUSINESS SOLUTIONS LTD,108278
North East Lincolnshire Council,http://statistics.data.gov.uk/id/local-authority/00FC),Chief Executive,Ad Environment,Grounds And Street Cleansing,Equip / Furniture / Materials,Equipment - Maintenance,LA104,21/11/2016,439602,783,REVENUE,F G ADAMSON & SON,100752
North East Lincolnshire Council,http://statistics.data.gov.uk/id/local-authority/00FC),Chief Executive,Ad Environment,Grounds And Street Cleansing,Equip / Furniture / Materials,Equipment - Maintenance,LA104,21/11/2016,439602,700,REVENUE,F G ADAMSON & SON,100752
North East Lincolnshire Council,http://statistics.data.gov.uk/id/local-authority/00FC),Chief Executive,Ad Environment,Grounds And Street Cleansing,Equip / Furniture / Materials,Equipment - Purchase,LA101,03/11/2016,437150,9350,REVENUE,KRN HOUSE PLANTS,100540
North East Lincolnshire Council,http://statistics.data.gov.uk/id/local-authority/00FC),Chief Executive,Ad Environment,Grounds And Street Cleansing,Equip / Furniture / Materials,Equipment - Purchase,LA101,21/11/2016,439067,650,REVENUE,JAMES COLES & SONS LTD,100758
North East Lincolnshire Council,http://statistics.data.gov.uk/id/local-authority/00FC),Chief Executive,Ad Environment,Grounds And Street Cleansing,Equip / Furniture / Materials,Equipment - Purchase,LA101,21/11/2016,439021,6637.5,REVENUE,JAMES COLES & SONS LTD,100758
North East Lincolnshire Council,http://statistics.data.gov.uk/id/local-authority/00FC),Chief Executive,Ad Environment,Grounds And Street Cleansing,Equip / Furniture / Materials,Equipment - Purchase,LA101,21/11/2016,439891,560,REVENUE,SHERRIFF AMENITY SERVICES,101298
North East Lincolnshire Council,http://statistics.data.gov.uk/id/local-authority/00FC),Chief Executive,Ad Environment,Grounds And Street Cleansing,Equip / Furniture / Materials,Equipment - Purchase,LA101,21/11/2016,439891,4492.5,REVENUE,SHERRIFF AMENITY SERVICES,101298
North East Lincolnshire Council,http://statistics.data.gov.uk/id/local-authority/00FC),Chief Executive,Ad Environment,Grounds And Street Cleansing,Equip / Furniture / Materials,Equipment - Purchase,LA101,21/11/2016,439905,345.66,REVENUE,GROUNDSMAN TOOLS & SUPPLIERS LLP,131754
North East Lincolnshire Council,http://statistics.data.gov.uk/id/local-authority/00FC),Chief Executive,Ad Environment,Grounds And Street Cleansing,Clothes Uniforms And Laundry,Protective Clothing,LC101,01/11/2016,436057,384,REVENUE,SMI,134794
North East Lincolnshire Council,http://statistics.data.gov.uk/id/local-authority/00FC),Chief Executive,Ad Environment,Grounds And Street Cleansing,Communications And Computing,Telephones,LF112,24/11/2016,439972,506.25,REVENUE,RADPHONE LTD,101671
North East Lincolnshire Council,http://statistics.data.gov.uk/id/local-authority/00FC),Chief Executive,Ad Environment,Grounds And Street Cleansing,Communications And Computing,Telephones,LF112,10/11/2016,437892,324,REVENUE,RADPHONE LTD,101671
North East Lincolnshire Council,http://statistics.data.gov.uk/id/local-authority/00FC),Chief Executive,Ad Environment,Grounds And Street Cleansing,Private Contractors,Third Party Prov - Private,PH101,29/11/2016,440591,1523.28,REVENUE,GRIMSBY OPERATIONS LTD,101116
North East Lincolnshire Council,http://statistics.data.gov.uk/id/local-authority/00FC),Chief Executive,Ad Environment,Grounds And Street Cleansing,Private Contractors,Third Party Prov - Private,PH101,21/11/2016,439909,456,REVENUE,ENGIE SERVICES LTD,133267
North East Lincolnshire Council,http://statistics.data.gov.uk/id/local-authority/00FC),Chief Executive,Ad Environment,Grounds And Street Cleansing,Private Contractors,Third Party Prov - Private,PH101,08/11/2016,438160,285,REVENUE,HARROQUIP PUMP SYSTEMS,103412
North East Lincolnshire Council,http://statistics.data.gov.uk/id/local-authority/00FC),Chief Executive,Ad Environment,Grounds And Street Cleansing,Equip / Furniture / Materials,Equipment - Purchase,LA101,07/11/2016,435975,796.5,REVENUE,CROMWELL POLYTHENE LTD,101183
North East Lincolnshire Council,http://statistics.data.gov.uk/id/local-authority/00FC),Chief Executive,Ad Environment,Grounds And Street Cleansing,Equip / Furniture / Materials,Equipment - Purchase,LA101,21/11/2016,439892,732,REVENUE,NORTHERN MUNICIPAL SPARES LTD,103102
North East Lincolnshire Council,http://statistics.data.gov.uk/id/local-authority/00FC),Chief Executive,Ad Environment,Grounds And Street Cleansing,Equip / Furniture / Materials,Equipment - Purchase,LA101,21/11/2016,439892,720.3,REVENUE,NORTHERN MUNICIPAL SPARES LTD,103102
North East Lincolnshire Council,http://statistics.data.gov.uk/id/local-authority/00FC),Chief Executive,Ad Environment,Grounds And Street Cleansing,Equip / Furniture / Materials,Equipment - Purchase,LA101,21/11/2016,439892,2853,REVENUE,NORTHERN MUNICIPAL SPARES LTD,103102
North East Lincolnshire Council,http://statistics.data.gov.uk/id/local-authority/00FC),Chief Executive,Ad Environment,Grounds And Street Cleansing,Communications And Computing,Telephones,LF112,24/11/2016,439972,412.5,REVENUE,RADPHONE LTD,101671
North East Lincolnshire Council,http://statistics.data.gov.uk/id/local-authority/00FC),Chief Executive,Ad Environment,Grounds And Street Cleansing,Communications And Computing,Telephones,LF112,10/11/2016,437892,264,REVENUE,RADPHONE LTD,101671
North East Lincolnshire Council,http://statistics.data.gov.uk/id/local-authority/00FC),Chief Executive,Ad Environment,Grounds And Street Cleansing,Miscellaneous Expenses,Other Expenses General,LL119,17/11/2016,439352,4207.58,REVENUE,DRY ICE LIMITED,109830
North East Lincolnshire Council,http://statistics.data.gov.uk/id/local-authority/00FC),Chief Executive,Ad Environment,Grounds And Street Cleansing,Miscellaneous Expenses,Other Expenses General,LL119,21/11/2016,439902,308,REVENUE,JEWSON LIMITED,100991
North East Lincolnshire Council,http://statistics.data.gov.uk/id/local-authority/00FC),Chief Executive,Ad Environment,Grounds And Street Cleansing,Private Contractors,Third Party Prov - Private,PH101,30/11/2016,441009,416.67,REVENUE,RIVER SWAN VETERINARY CENTRE,104349
North East Lincolnshire Council,http://statistics.data.gov.uk/id/local-authority/00FC),Chief Executive,Ad Environment,Grounds And Street Cleansing,Private Contractors,Third Party Prov - Private,PH101,03/11/2016,436758,6705.01,REVENUE,INITIAL MEDICAL SERVICES LTD,102141
North East Lincolnshire Council,http://statistics.data.gov.uk/id/local-authority/00FC),Chief Executive,Ad Environment,Grounds And Street Cleansing,Private Contractors,Third Party Prov - Private,PH101,21/11/2016,439907,260,REVENUE,ENGIE SERVICES LTD,133267
North East Lincolnshire Council,http://statistics.data.gov.uk/id/local-authority/00FC),Chief Executive,Ad Environment,Grounds And Street Cleansing,Private Contractors,Third Party Prov - Private,PH101,17/11/2016,438700,2480,REVENUE,ONEWAY TM LIMITED,128602
North East Lincolnshire Council,http://statistics.data.gov.uk/id/local-authority/00FC),Chief Executive,Ad Environment,Grounds And Street Cleansing,Rep Alterations Maint Building,Buildings - Repairs And Maint,GA102,24/11/2016,439524,2875.16,REVENUE,J MCCANN & CO LTD,100841
North East Lincolnshire Council,http://statistics.data.gov.uk/id/local-authority/00FC),Chief Executive,Ad Environment,Grounds And Street Cleansing,Rep Alterations Maint Building,Buildings - Repairs And Maint,GA102,03/11/2016,437521,1497.64,REVENUE,J MCCANN & CO LTD,100841
North East Lincolnshire Council,http://statistics.data.gov.uk/id/local-authority/00FC),Chief Executive,Ad Environment,Grounds And Street Cleansing,Rep Alterations Maint Building,Buildings - Repairs And Maint,GA102,17/11/2016,438116,765.8,REVENUE,BCJ CONSTRUCTION LTD,112224
North East Lincolnshire Council,http://statistics.data.gov.uk/id/local-authority/00FC),Chief Executive,Ad Environment,Neighbourhood Serv Mgmt A/C,Direct Employee Expenses,Agency Staff,EA105,14/11/2016,438426,7200,REVENUE,CULLETON BROWN LTD,134507
North East Lincolnshire Council,http://statistics.data.gov.uk/id/local-authority/00FC),Chief Executive,Ad Environment,Neighbourhood Serv Mgmt A/C,Miscellaneous Expenses,Legal Fees - General,LL103,30/11/2016,441000,250,REVENUE,BG SOLICITORS LLP,100514
North East Lincolnshire Council,http://statistics.data.gov.uk/id/local-authority/00FC),Chief Executive,Ad Environment,Waste Services,Rep Alterations Maint Building,Buildings - Repairs And Maint,GA102,28/11/2016,440100,252,REVENUE,ENGIE SERVICES LTD,133267
North East Lincolnshire Council,http://statistics.data.gov.uk/id/local-authority/00FC),Chief Executive,Ad Environment,Waste Services,Rep Alterations Maint Building,Buildings - Repairs And Maint,GA102,14/11/2016,437881,380,REVENUE,SIGN OF THE TIMES,100575
North East Lincolnshire Council,http://statistics.data.gov.uk/id/local-authority/00FC),Chief Executive,Ad Environment,Waste Services,Rep Alterations Maint Building,Buildings - Repairs And Maint,GA102,17/11/2016,438655,1443.75,REVENUE,ESE LTD,106583
North East Lincolnshire Council,http://statistics.data.gov.uk/id/local-authority/00FC),Chief Executive,Ad Environment,Waste Services,Clothes Uniforms And Laundry,Protective Clothing,LC101,03/11/2016,436056,600,REVENUE,SMI,134794
North East Lincolnshire Council,http://statistics.data.gov.uk/id/local-authority/00FC),Chief Executive,Ad Environment,Waste Disposal And Strategy,Private Contractors,Contract Payments,PH105,17/11/2016,439449,REDACTED COMMERCIALLY SENSITIVE,REVENUE,NEWLINCS DEVELOPMENT LTD,101125
North East Lincolnshire Council,http://statistics.data.gov.uk/id/local-authority/00FC),Chief Executive,Ad Environment,Waste Disposal And Strategy,Private Contractors,Contract Payments Landfill Tax,PH106,17/11/2016,439449,REDACTED COMMERCIALLY SENSITIVE,REVENUE,NEWLINCS DEVELOPMENT LTD,101125
North East Lincolnshire Council,http://statistics.data.gov.uk/id/local-authority/00FC),Chief Executive,Ad Environment,Safer Communities - Nelc,Communications And Computing,Computer S/Ware - Licences,LF103,08/11/2016,436830,350,REVENUE,GRANTS ONLINE,108664
North East Lincolnshire Council,http://statistics.data.gov.uk/id/local-authority/00FC),Chief Executive,Ad Environment,Community Protection,Private Contractors,Third Party Prov - Private,PH101,14/11/2016,438787,3940,REVENUE,SANGREAT KENNELS,103270
North East Lincolnshire Council,http://statistics.data.gov.uk/id/local-authority/00FC),Chief Executive,Ad Environment,Community Protection,Private Contractors,Third Party Prov - Private,PH101,21/11/2016,439895,293.6,REVENUE,LINCOLNSHIRE RESCUE KENNELS,135401
North East Lincolnshire Council,http://statistics.data.gov.uk/id/local-authority/00FC),Chief Executive,Ad Environment,Community Protection,Private Contractors,Third Party Prov - Private,PH101,30/11/2016,441019,250,REVENUE,EMPOWER EMPLOYABILITY MENTORING PROGRAMME,118831
North East Lincolnshire Council,http://statistics.data.gov.uk/id/local-authority/00FC),Chief Executive,Ad Environment,Community Protection,Other Agencies,Statutory Burials,PJ147,29/11/2016,440604,850.55,REVENUE,KETTLE FUNERAL DIRECTORS,108454
North East Lincolnshire Council,http://statistics.data.gov.uk/id/local-authority/00FC),Chief Executive,Ad Environment,Community Protection,Miscellaneous Expenses,Environmental/Health Analysis,LL120,01/11/2016,436831,378.04,REVENUE,EUROFINS UK 2016 LTD,134666
North East Lincolnshire Council,http://statistics.data.gov.uk/id/local-authority/00FC),Chief Executive,Ad Environment,Community Protection,Miscellaneous Expenses,Environmental/Health Analysis,LL120,08/11/2016,437581,261.38,REVENUE,EUROFINS UK 2016 LTD,134666
North East Lincolnshire Council,http://statistics.data.gov.uk/id/local-authority/00FC),Chief Executive,Ad Environment,Community Protection,Miscellaneous Expenses,Environmental/Health Analysis,LL120,28/11/2016,440607,810,REVENUE,FERA SCIENCE LTD,131671
North East Lincolnshire Council,http://statistics.data.gov.uk/id/local-authority/00FC),Chief Executive,Ad Environment,Community Protection,Equip / Furniture / Materials,Goods For Resale,LA123,24/11/2016,440400,446.42,REVENUE,VIP SYSTEM LTD,101697
North East Lincolnshire Council,http://statistics.data.gov.uk/id/local-authority/00FC),Chief Executive,Ad Environment,Community Protection,Miscellaneous Expenses,Other Supplies & Services,LL110,14/11/2016,438656,304,REVENUE,INTELLIGENT DATA SYSTEMS (UK) LTD,128734
North East Lincolnshire Council,http://statistics.data.gov.uk/id/local-authority/00FC),Chief Executive,Ad Environment,Community Protection,Equip / Furniture / Materials,Equipment - Purchase,LA101,17/11/2016,438250,274.1,REVENUE,ALL PALLETS LTD,135283
North East Lincolnshire Council,http://statistics.data.gov.uk/id/local-authority/00FC),Chief Executive,Ad Environment,Community Protection,Miscellaneous Expenses,Legal Fees - Courts Costs,LL104,24/11/2016,440546,350,REVENUE,PETER YATES,134523
North East Lincolnshire Council,http://statistics.data.gov.uk/id/local-authority/00FC),Chief Executive,Ad Environment,Community Protection,Other Local Authorities,Third Pp - Other Local Auth,PC101,17/11/2016,438438,3175,REVENUE,CITY OF YORK COUNCIL,100874
North East Lincolnshire Council,http://statistics.data.gov.uk/id/local-authority/00FC),Chief Executive,Ad Environment,Community Protection,Equip / Furniture / Materials,Equipment - Purchase,LA101,14/11/2016,437852,632,REVENUE,BRUEL & KJAER UK LTD,105421
North East Lincolnshire Council,http://statistics.data.gov.uk/id/local-authority/00FC),Chief Executive,Ad Environment,Community Protection,Miscellaneous Expenses,Environmental/Health Analysis,LL120,29/11/2016,440666,261.84,REVENUE,ALCONTROL LABORATORIES,100899
North East Lincolnshire Council,http://statistics.data.gov.uk/id/local-authority/00FC),Chief Executive,Director Of Finance,Chief Finance Officer,Consultancy,Consultancy,PL101,14/11/2016,437627,612.5,REVENUE,ANTHONY P WINN ACIB,134636
North East Lincolnshire Council,http://statistics.data.gov.uk/id/local-authority/00FC),Chief Executive,Director Of Finance,Chief Finance Officer,Consultancy,Consultancy,PL101,08/11/2016,437591,775,REVENUE,HEIDI DODSON,134908
North East Lincolnshire Council,http://statistics.data.gov.uk/id/local-authority/00FC),Chief Executive,Director Of Finance,Chief Finance Officer,Consultancy,Consultancy,PL101,08/11/2016,437589,943.69,REVENUE,SARAH BRATTAN,134910
North East Lincolnshire Council,http://statistics.data.gov.uk/id/local-authority/00FC),Chief Executive,Director Of Finance,Chief Finance Officer,Consultancy,Consultancy,PL101,30/11/2016,440991,300,REVENUE,HULL & HUMBER CHAMBER OF COMMERCE,102808
North East Lincolnshire Council,http://statistics.data.gov.uk/id/local-authority/00FC),Chief Executive,Director Of Finance,Chief Exec & Support,Contributions To Provisions,Contributions - Third Sector,LK102,24/11/2016,440512,1000,REVENUE,GY CLEE & DISTRICT YOUTH ORCHESTRA,131409
North East Lincolnshire Council,http://statistics.data.gov.uk/id/local-authority/00FC),Chief Executive,Director Of Finance,Chief Exec & Support,Miscellaneous Expenses,Hospitality,LL112,21/11/2016,439865,2000,REVENUE,GOVERMENT KNOWLEDGE EVENTS LTD,110518
North East Lincolnshire Council,http://statistics.data.gov.uk/id/local-authority/00FC),Chief Executive,Director Of Finance,Cfs Assets & Pc Programme,Print Stationery / Gen Off Exp,Advertising,LD104,28/11/2016,437091,1535,REVENUE,SANDERSON WEATHERALL,134531
North East Lincolnshire Council,http://statistics.data.gov.uk/id/local-authority/00FC),Chief Executive,Director Of Finance,Facilities Management,Rep Alterations Maint Building,Buildings - Repairs And Maint,GA102,17/11/2016,439275,300,REVENUE,SUPERCLEAN SERVICES WOTHORPE LIMITED,133882
North East Lincolnshire Council,http://statistics.data.gov.uk/id/local-authority/00FC),Chief Executive,Director Of Finance,Facilities Management,Energy Costs,Gas,GB101,22/11/2016,440415,672.33,REVENUE,BRITISH GAS TRADING LTD,101507
North East Lincolnshire Council,http://statistics.data.gov.uk/id/local-authority/00FC),Chief Executive,Director Of Finance,Facilities Management,Cleaning And Domestic Supplies,Cleaning - Services,GH102,22/11/2016,440393,603.31,REVENUE,FUTURE CLEANING SERVICES LTD,102557
North East Lincolnshire Council,http://statistics.data.gov.uk/id/local-authority/00FC),Chief Executive,Director Of Finance,Facilities Management,Rep Alterations Maint Building,Buildings - Repairs And Maint,GA102,29/11/2016,441313,355.01,REVENUE,ENGIE SERVICES LTD,133267
North East Lincolnshire Council,http://statistics.data.gov.uk/id/local-authority/00FC),Chief Executive,Director Of Finance,Facilities Management,Energy Costs,Electricity,GB102,22/11/2016,440206,270.2,REVENUE,NPOWER LIMITED,101414
North East Lincolnshire Council,http://statistics.data.gov.uk/id/local-authority/00FC),Chief Executive,Director Of Finance,Facilities Management,Cleaning And Domestic Supplies,Cleaning - Services,GH102,15/11/2016,439286,644,REVENUE,FOR UNDER FIVES LTD,100647
North East Lincolnshire Council,http://statistics.data.gov.uk/id/local-authority/00FC),Chief Executive,Director Of Finance,Facilities Management,Cleaning And Domestic Supplies,Cleaning - Services,GH102,21/11/2016,440177,586,REVENUE,FOR UNDER FIVES LTD,100647
North East Lincolnshire Council,http://statistics.data.gov.uk/id/local-authority/00FC),Chief Executive,Director Of Finance,Facilities Management,Cleaning And Domestic Supplies,Cleaning - Services,GH102,22/11/2016,440200,626,REVENUE,FOR UNDER FIVES LTD,100647
North East Lincolnshire Council,http://statistics.data.gov.uk/id/local-authority/00FC),Chief Executive,Director Of Finance,Facilities Management,Energy Costs,Electricity,GB102,15/11/2016,439305,343.63,REVENUE,NPOWER YORKSHIRE LTD,101525
North East Lincolnshire Council,http://statistics.data.gov.uk/id/local-authority/00FC),Chief Executive,Director Of Finance,Facilities Management,Energy Costs,Electricity,GB102,03/11/2016,436188,278.05,REVENUE,NPOWER LIMITED,101414
North East Lincolnshire Council,http://statistics.data.gov.uk/id/local-authority/00FC),Chief Executive,Director Of Finance,Facilities Management,Energy Costs,Electricity,GB102,15/11/2016,439296,663.41,REVENUE,EASTFIELD PRIMARY ACADEMY,121907
North East Lincolnshire Council,http://statistics.data.gov.uk/id/local-authority/00FC),Chief Executive,Director Of Finance,Facilities Management,Energy Costs,Electricity,GB102,15/11/2016,439298,314.6,REVENUE,EASTFIELD PRIMARY ACADEMY,121907
North East Lincolnshire Council,http://statistics.data.gov.uk/id/local-authority/00FC),Chief Executive,Director Of Finance,Facilities Management,Energy Costs,Electricity,GB102,17/11/2016,439290,324.89,REVENUE,EASTFIELD PRIMARY ACADEMY,121907
North East Lincolnshire Council,http://statistics.data.gov.uk/id/local-authority/00FC),Chief Executive,Director Of Finance,Facilities Management,Energy Costs,Electricity,GB102,17/11/2016,439291,284.66,REVENUE,EASTFIELD PRIMARY ACADEMY,121907
North East Lincolnshire Council,http://statistics.data.gov.uk/id/local-authority/00FC),Chief Executive,Director Of Finance,Facilities Management,Energy Costs,Heating Fuel,GB103,15/11/2016,439297,308.16,REVENUE,EASTFIELD PRIMARY ACADEMY,121907
North East Lincolnshire Council,http://statistics.data.gov.uk/id/local-authority/00FC),Chief Executive,Director Of Finance,Facilities Management,Water Services,Water,GE101,15/11/2016,439292,308.19,REVENUE,EASTFIELD PRIMARY ACADEMY,121907
North East Lincolnshire Council,http://statistics.data.gov.uk/id/local-authority/00FC),Chief Executive,Director Of Finance,Facilities Management,Rep Alterations Maint Building,Buildings - Regulations / Insp,GA103,17/11/2016,439514,752.4,REVENUE,THRUNSCOE PRIMARY AND NURSERY ACADEMY,118749
North East Lincolnshire Council,http://statistics.data.gov.uk/id/local-authority/00FC),Chief Executive,Director Of Finance,Facilities Management,Rep Alterations Maint Building,Buildings - Repairs And Maint,GA102,24/11/2016,440419,261.98,REVENUE,THRUNSCOE PRIMARY AND NURSERY ACADEMY,118749
North East Lincolnshire Council,http://statistics.data.gov.uk/id/local-authority/00FC),Chief Executive,Director Of Finance,Facilities Management,Rep Alterations Maint Building,Buildings - Repairs And Maint,GA102,17/11/2016,439514,273,REVENUE,THRUNSCOE PRIMARY AND NURSERY ACADEMY,118749
North East Lincolnshire Council,http://statistics.data.gov.uk/id/local-authority/00FC),Chief Executive,Director Of Finance,Facilities Management,Rep Alterations Maint Building,Security Alarms And Cctv,GA101,24/11/2016,440419,508.2,REVENUE,THRUNSCOE PRIMARY AND NURSERY ACADEMY,118749
North East Lincolnshire Council,http://statistics.data.gov.uk/id/local-authority/00FC),Chief Executive,Director Of Finance,Facilities Management,Cleaning And Domestic Supplies,Cleaning - Services,GH102,17/11/2016,439514,643.75,REVENUE,THRUNSCOE PRIMARY AND NURSERY ACADEMY,118749
North East Lincolnshire Council,http://statistics.data.gov.uk/id/local-authority/00FC),Chief Executive,Director Of Finance,Facilities Management,Cleaning And Domestic Supplies,Cleaning - Services,GH102,24/11/2016,440419,643.75,REVENUE,THRUNSCOE PRIMARY AND NURSERY ACADEMY,118749
North East Lincolnshire Council,http://statistics.data.gov.uk/id/local-authority/00FC),Chief Executive,Director Of Finance,Facilities Management,Premises Insurance,Premises Insurance - Premiums,GK101,17/11/2016,439514,526.95,REVENUE,THRUNSCOE PRIMARY AND NURSERY ACADEMY,118749
North East Lincolnshire Council,http://statistics.data.gov.uk/id/local-authority/00FC),Chief Executive,Director Of Finance,Facilities Management,Rep Alterations Maint Building,Buildings - Repairs And Maint,GA102,29/11/2016,441309,917.33,REVENUE,ENGIE SERVICES LTD,133267
North East Lincolnshire Council,http://statistics.data.gov.uk/id/local-authority/00FC),Chief Executive,Director Of Finance,Facilities Management,Rep Alterations Maint Building,Buildings - Repairs And Maint,GA102,29/11/2016,441309,428.61,REVENUE,ENGIE SERVICES LTD,133267
North East Lincolnshire Council,http://statistics.data.gov.uk/id/local-authority/00FC),Chief Executive,Director Of Finance,Facilities Management,Cleaning And Domestic Supplies,Refuse Collection,GH104,24/11/2016,440663,352.3,REVENUE,BIFFA WASTE SERVICES LTD,100515
North East Lincolnshire Council,http://statistics.data.gov.uk/id/local-authority/00FC),Chief Executive,Director Of Finance,Facilities Management,Cleaning And Domestic Supplies,Cleaning - Services,GH102,01/11/2016,435754,979.92,REVENUE,FUTURE CLEANING SERVICES LTD,102557
North East Lincolnshire Council,http://statistics.data.gov.uk/id/local-authority/00FC),Chief Executive,Director Of Finance,Facilities Management,Cleaning And Domestic Supplies,Cleaning - Services,GH102,01/11/2016,437222,979.92,REVENUE,FUTURE CLEANING SERVICES LTD,102557
North East Lincolnshire Council,http://statistics.data.gov.uk/id/local-authority/00FC),Chief Executive,Director Of Finance,Facilities Management,Energy Costs,Electricity,GB102,22/11/2016,440420,330,REVENUE,NPOWER YORKSHIRE LTD,101525
North East Lincolnshire Council,http://statistics.data.gov.uk/id/local-authority/00FC),Chief Executive,Director Of Finance,Facilities Management,Cleaning And Domestic Supplies,Cleaning - Services,GH102,14/11/2016,438789,2035.48,REVENUE,OCS LIMITED,101291
North East Lincolnshire Council,http://statistics.data.gov.uk/id/local-authority/00FC),Chief Executive,Director Of Finance,Facilities Management,Energy Costs,Electricity,GB102,03/11/2016,436190,330,REVENUE,NPOWER,125397
North East Lincolnshire Council,http://statistics.data.gov.uk/id/local-authority/00FC),Chief Executive,Director Of Finance,Facilities Management,Energy Costs,Electricity,GB102,29/11/2016,441329,330,REVENUE,NPOWER YORKSHIRE LTD,101525
North East Lincolnshire Council,http://statistics.data.gov.uk/id/local-authority/00FC),Chief Executive,Director Of Finance,Facilities Management,Energy Costs,Heating Fuel,GB103,22/11/2016,439650,896.8,REVENUE,CERTAS ENERGY,124794
North East Lincolnshire Council,http://statistics.data.gov.uk/id/local-authority/00FC),Chief Executive,Director Of Finance,Facilities Management,Energy Costs,Heating Fuel,GB103,24/11/2016,440514,874,REVENUE,CERTAS ENERGY,124794
North East Lincolnshire Council,http://statistics.data.gov.uk/id/local-authority/00FC),Chief Executive,Director Of Finance,Facilities Management,Water Services,Water,GE101,14/11/2016,438457,461.91,REVENUE,ANGLIAN WATER,100508
North East Lincolnshire Council,http://statistics.data.gov.uk/id/local-authority/00FC),Chief Executive,Director Of Finance,Facilities Management,Cleaning And Domestic Supplies,Cleaning - Services,GH102,03/11/2016,437524,46057.72,REVENUE,SUPERCLEAN SERVICES WOTHORPE LIMITED,133882
North East Lincolnshire Council,http://statistics.data.gov.uk/id/local-authority/00FC),Chief Executive,Director Of Finance,Facilities Management,Energy Costs,Electricity,GB102,03/11/2016,437219,330,REVENUE,NPOWER,101368
North East Lincolnshire Council,http://statistics.data.gov.uk/id/local-authority/00FC),Chief Executive,Director Of Finance,Facilities Management,Energy Costs,Electricity,GB102,03/11/2016,437498,538.58,REVENUE,NPOWER LIMITED,101414
North East Lincolnshire Council,http://statistics.data.gov.uk/id/local-authority/00FC),Chief Executive,Director Of Finance,Facilities Management,Energy Costs,Electricity,GB102,07/11/2016,437820,538.65,REVENUE,NPOWER LIMITED,101414
North East Lincolnshire Council,http://statistics.data.gov.uk/id/local-authority/00FC),Chief Executive,Director Of Finance,Facilities Management,Energy Costs,Electricity,GB102,03/11/2016,436186,526.92,REVENUE,NPOWER LIMITED,101414
North East Lincolnshire Council,http://statistics.data.gov.uk/id/local-authority/00FC),Chief Executive,Director Of Finance,Facilities Management,Energy Costs,Electricity,GB102,17/11/2016,439631,387.43,REVENUE,OLD CLEE PRIMARY ACADEMY,119822
North East Lincolnshire Council,http://statistics.data.gov.uk/id/local-authority/00FC),Chief Executive,Director Of Finance,Facilities Management,Energy Costs,Electricity,GB102,07/11/2016,437507,252.8,REVENUE,OLD CLEE PRIMARY ACADEMY,119822
North East Lincolnshire Council,http://statistics.data.gov.uk/id/local-authority/00FC),Chief Executive,Director Of Finance,Commercial Estate,Grounds Maintenance Costs,Grounds Maintenance,GJ101,15/11/2016,439097,1025,REVENUE,ALEXANDER HUBBARD,118790
North East Lincolnshire Council,http://statistics.data.gov.uk/id/local-authority/00FC),Chief Executive,Director Of Finance,Commercial Estate,Water Services,Water,GE101,14/11/2016,438458,581.4,REVENUE,ANGLIAN WATER,100508
North East Lincolnshire Council,http://statistics.data.gov.uk/id/local-authority/00FC),Chief Executive,Director Of Finance,Commercial Estate,Water Services,Water,GE101,14/11/2016,438450,1175.76,REVENUE,ANGLIAN WATER,100508
North East Lincolnshire Council,http://statistics.data.gov.uk/id/local-authority/00FC),Chief Executive,Director Of Finance,Commercial Estate,Cleaning And Domestic Supplies,Refuse Collection,GH104,10/11/2016,438774,304.6,REVENUE,BELL WASTE CONTROL,101433
North East Lincolnshire Council,http://statistics.data.gov.uk/id/local-authority/00FC),Chief Executive,Director Of Finance,Commercial Estate,Cleaning And Domestic Supplies,Cleaning - Consumables,GH103,03/11/2016,437526,450.93,REVENUE,VICTORIA ASSET FINANCE LIMITED,133096
North East Lincolnshire Council,http://statistics.data.gov.uk/id/local-authority/00FC),Chief Executive,Director Of Finance,Commercial Estate,Cleaning And Domestic Supplies,Cleaning - Consumables,GH103,14/11/2016,439091,450.93,REVENUE,VICTORIA ASSET FINANCE LIMITED,133096
North East Lincolnshire Council,http://statistics.data.gov.uk/id/local-authority/00FC),Chief Executive,Director Of Finance,Commercial Estate,Energy Costs,Electricity,GB102,24/11/2016,440734,5594.76,REVENUE,BOURNE LEISURE LTD,109336
North East Lincolnshire Council,http://statistics.data.gov.uk/id/local-authority/00FC),Chief Executive,Director Of Finance,Bus Support & Customer Serv,Equip / Furniture / Materials,Goods For Resale,LA123,10/11/2016,437887,994.25,REVENUE,NORTHGATE PUBLIC SERVICES (UK) LTD,101841
North East Lincolnshire Council,http://statistics.data.gov.uk/id/local-authority/00FC),Chief Executive,Director Of Finance,Bus Support & Customer Serv,Private Contractors,External Security Services,PH103,15/11/2016,438730,4475.81,REVENUE,ALLPAY LIMITED,112919
North East Lincolnshire Council,http://statistics.data.gov.uk/id/local-authority/00FC),Chief Executive,Director Of Finance,Bus Support & Customer Serv,Communications And Computing,Postage,LF111,10/11/2016,438097,1850.12,REVENUE,ROYAL MAIL GROUP PLC,101082
North East Lincolnshire Council,http://statistics.data.gov.uk/id/local-authority/00FC),Chief Executive,Director Of Finance,Bus Support & Customer Serv,Communications And Computing,Postage,LF111,22/11/2016,439968,1456.59,REVENUE,ROYAL MAIL GROUP PLC,101082
North East Lincolnshire Council,http://statistics.data.gov.uk/id/local-authority/00FC),Chief Executive,Director Of Finance,Bus Support & Customer Serv,Communications And Computing,Postage,LF111,29/11/2016,440661,299.92,REVENUE,ROYAL MAIL GROUP PLC,101082
North East Lincolnshire Council,http://statistics.data.gov.uk/id/local-authority/00FC),Chief Executive,Director Of Finance,Bus Support & Customer Serv,Communications And Computing,Postage,LF111,07/11/2016,435786,327.49,REVENUE,NEOPOST LTD,100822
North East Lincolnshire Council,http://statistics.data.gov.uk/id/local-authority/00FC),Chief Executive,Director Of Finance,Comm & Strategic Support Unit,Equip / Furniture / Materials,Equipment - Hire,LA102,03/11/2016,437081,379.49,REVENUE,CASPIAN ACCESS & PLANT HIRE LTD,101225
North East Lincolnshire Council,http://statistics.data.gov.uk/id/local-authority/00FC),Chief Executive,Director Of Economy & Growth,Beach Safety,Equip / Furniture / Materials,Equipment - Purchase,LA101,01/11/2016,436095,252.14,REVENUE,SRP TOILET HIRE LTD,104341
North East Lincolnshire Council,http://statistics.data.gov.uk/id/local-authority/00FC),Chief Executive,Director Of Economy & Growth,Discovery Centre,Equip / Furniture / Materials,Goods For Resale,LA123,14/11/2016,437537,-41.03,REVENUE,HILL INTERIORS,127681
North East Lincolnshire Council,http://statistics.data.gov.uk/id/local-authority/00FC),Chief Executive,Director Of Economy & Growth,Discovery Centre,Private Contractors,Third Party Prov - Private,PH101,15/11/2016,438785,275,REVENUE,JIGSAW DEVELOPMENT SERVICES LIMITED,135321
North East Lincolnshire Council,http://statistics.data.gov.uk/id/local-authority/00FC),Chief Executive,Director Of Economy & Growth,Discovery Centre,Equip / Furniture / Materials,Equipment - Purchase,LA101,28/11/2016,440912,-125.39,REVENUE,SYLVESTER-KEAL LTD,100593
North East Lincolnshire Council,http://statistics.data.gov.uk/id/local-authority/00FC),Chief Executive,Director Of Economy & Growth,Discovery Centre,Equip / Furniture / Materials,Equipment - Purchase,LA101,28/11/2016,440599,2377.83,REVENUE,SYLVESTER-KEAL LTD,100593
North East Lincolnshire Council,http://statistics.data.gov.uk/id/local-authority/00FC),Chief Executive,Director Of Economy & Growth,Discovery Centre,Equip / Furniture / Materials,Goods For Resale,LA123,22/11/2016,439643,398.11,REVENUE,HOLDSWORTH LTD,121021
North East Lincolnshire Council,http://statistics.data.gov.uk/id/local-authority/00FC),Chief Executive,Director Of Economy & Growth,Discovery Centre,Equip / Furniture / Materials,Goods For Resale,LA123,22/11/2016,439643,353.32,REVENUE,HOLDSWORTH LTD,121021
North East Lincolnshire Council,http://statistics.data.gov.uk/id/local-authority/00FC),Chief Executive,Director Of Economy & Growth,Discovery Centre,Equip / Furniture / Materials,Goods For Resale,LA123,22/11/2016,439712,266.3,REVENUE,R W STOKES & SONS LTD,123706
North East Lincolnshire Council,http://statistics.data.gov.uk/id/local-authority/00FC),Chief Executive,Director Of Economy & Growth,Events,Rep Alterations Maint Building,Buildings - Repairs And Maint,GA102,21/11/2016,439961,7509,REVENUE,LINCS ELECTRICAL SERVICES LTD,102044
North East Lincolnshire Council,http://statistics.data.gov.uk/id/local-authority/00FC),Chief Executive,Director Of Economy & Growth,Events,Rep Alterations Maint Building,Buildings - Repairs And Maint,GA102,17/11/2016,438202,1849.35,REVENUE,ENGIE SERVICES LTD,133267
North East Lincolnshire Council,http://statistics.data.gov.uk/id/local-authority/00FC),Chief Executive,Director Of Economy & Growth,Events,Customer And Client Receipts,Fees/Chrgs-O/Side Scope Vat 4,VC125,03/11/2016,437201,2100,REVENUE,OLYMPIC SCOOTER CLUB,131287
North East Lincolnshire Council,http://statistics.data.gov.uk/id/local-authority/00FC),Chief Executive,Director Of Economy & Growth,Tourist Information Centre,Private Contractors,Third Party Prov - Private,PH101,22/11/2016,440412,500,REVENUE,GRIMSBY AUDITORIUM,128160
North East Lincolnshire Council,http://statistics.data.gov.uk/id/local-authority/00FC),Chief Executive,Director Of Economy & Growth,Tourist Information Centre,Private Contractors,Third Party Prov - Private,PH101,24/11/2016,440417,1427.5,REVENUE,THE CAXTON PLAYERS,129590
North East Lincolnshire Council,http://statistics.data.gov.uk/id/local-authority/00FC),Chief Executive,Director Of Economy & Growth,Tourist Information Centre,Private Contractors,Third Party Prov - Private,PH101,22/11/2016,440416,333.5,REVENUE,THE CAXTON PLAYERS,129590
North East Lincolnshire Council,http://statistics.data.gov.uk/id/local-authority/00FC),Chief Executive,Director Of Economy & Growth,Tourist Information Centre,Private Contractors,Third Party Prov - Private,PH101,01/11/2016,437206,322,REVENUE,THE CAXTON PLAYERS,129590
North East Lincolnshire Council,http://statistics.data.gov.uk/id/local-authority/00FC),Chief Executive,Director Of Economy & Growth,Tourist Information Centre,Private Contractors,Third Party Prov - Private,PH101,14/11/2016,438786,668,REVENUE,CLEEFEST,121709
North East Lincolnshire Council,http://statistics.data.gov.uk/id/local-authority/00FC),Chief Executive,Director Of Economy & Growth,Tourist Information Centre,Private Contractors,Third Party Prov - Private,PH101,08/11/2016,437893,1033.5,REVENUE,GRIMSBY AUDITORIUM,128160
North East Lincolnshire Council,http://statistics.data.gov.uk/id/local-authority/00FC),Chief Executive,Director Of Economy & Growth,Tourist Information Centre,Private Contractors,Third Party Prov - Private,PH101,08/11/2016,437895,403,REVENUE,GRIMSBY AUDITORIUM,128160
North East Lincolnshire Council,http://statistics.data.gov.uk/id/local-authority/00FC),Chief Executive,Director Of Economy & Growth,Tourist Information Centre,Private Contractors,Third Party Prov - Private,PH101,07/11/2016,437193,608.5,REVENUE,GRIMSBY AUDITORIUM,128160
North East Lincolnshire Council,http://statistics.data.gov.uk/id/local-authority/00FC),Chief Executive,Director Of Economy & Growth,Tourist Information Centre,Private Contractors,Third Party Prov - Private,PH101,17/11/2016,439718,962,REVENUE,LINCOLNSHIRE VINTAGE RADIO,129749
North East Lincolnshire Council,http://statistics.data.gov.uk/id/local-authority/00FC),Chief Executive,Director Of Economy & Growth,Tourist Information Centre,Private Contractors,Third Party Prov - Private,PH101,15/11/2016,439065,1772,REVENUE,NATIONAL EXPRESS LTD,100835
North East Lincolnshire Council,http://statistics.data.gov.uk/id/local-authority/00FC),Chief Executive,Director Of Economy & Growth,Tourist Information Centre,Private Contractors,Third Party Prov - Private,PH101,15/11/2016,439066,1212,REVENUE,NATIONAL EXPRESS LTD,100835
North East Lincolnshire Council,http://statistics.data.gov.uk/id/local-authority/00FC),Chief Executive,Director Of Economy & Growth,Tourist Information Centre,Private Contractors,Third Party Prov - Private,PH101,17/11/2016,439719,812.95,REVENUE,RUSSELLS INTERNATIONAL CIRCUS,122723
North East Lincolnshire Council,http://statistics.data.gov.uk/id/local-authority/00FC),Chief Executive,Director Of Economy & Growth,Tourist Information Centre,Private Contractors,Third Party Prov - Private,PH101,17/11/2016,439270,587.5,REVENUE,GRIMSBY AUDITORIUM,128160
North East Lincolnshire Council,http://statistics.data.gov.uk/id/local-authority/00FC),Chief Executive,Director Of Economy & Growth,Tourist Information Centre,Private Contractors,Third Party Prov - Private,PH101,29/11/2016,441059,423,REVENUE,GRIMSBY AUDITORIUM,128160
North East Lincolnshire Council,http://statistics.data.gov.uk/id/local-authority/00FC),Chief Executive,Director Of Economy & Growth,Highways Plan Out Of Scope,Miscellaneous Expenses,Legal Fees - General,LL103,03/11/2016,436793,625,REVENUE,MR N A CAMERON,107309
North East Lincolnshire Council,http://statistics.data.gov.uk/id/local-authority/00FC),Chief Executive,Director Of Economy & Growth,Highways Plan Out Of Scope,Miscellaneous Expenses,Legal Fees - General,LL103,10/11/2016,438141,625,REVENUE,ANTHONY GILL,126952
North East Lincolnshire Council,http://statistics.data.gov.uk/id/local-authority/00FC),Chief Executive,Director Of Economy & Growth,Community Investment Team,Private Contractors,Third Party Prov - Private,PH101,01/11/2016,436827,-60,REVENUE,SCANIA (GREAT BRITAIN) LTD,101361
North East Lincolnshire Council,http://statistics.data.gov.uk/id/local-authority/00FC),Chief Executive,Director Of Economy & Growth,Community Investment Team,Private Contractors,Third Party Prov - Private,PH101,17/11/2016,439622,-230,REVENUE,SCANIA (GREAT BRITAIN) LTD,101361
North East Lincolnshire Council,http://statistics.data.gov.uk/id/local-authority/00FC),Chief Executive,Director Of Economy & Growth,Community Investment Team,Private Contractors,Third Party Prov - Private,PH101,28/11/2016,440894,695,REVENUE,SCANIA (GREAT BRITAIN) LTD,101361
North East Lincolnshire Council,http://statistics.data.gov.uk/id/local-authority/00FC),Chief Executive,Director Of Economy & Growth,Community Investment Team,Private Contractors,Third Party Prov - Private,PH101,28/11/2016,440895,492.42,REVENUE,SCANIA (GREAT BRITAIN) LTD,101361
North East Lincolnshire Council,http://statistics.data.gov.uk/id/local-authority/00FC),Chief Executive,Director Of Economy & Growth,Community Investment Team,Private Contractors,Third Party Prov - Private,PH101,03/11/2016,436791,290,REVENUE,SCANIA (GREAT BRITAIN) LTD,101361
North East Lincolnshire Council,http://statistics.data.gov.uk/id/local-authority/00FC),Chief Executive,Director Of Economy & Growth,Community Investment Team,Private Contractors,Third Party Prov - Private,PH101,10/11/2016,438361,-30,REVENUE,SCANIA (GREAT BRITAIN) LTD,101361
North East Lincolnshire Council,http://statistics.data.gov.uk/id/local-authority/00FC),Chief Executive,Director Of Economy & Growth,Community Investment Team,Private Contractors,Third Party Prov - Private,PH101,10/11/2016,438362,-110,REVENUE,SCANIA (GREAT BRITAIN) LTD,101361
North East Lincolnshire Council,http://statistics.data.gov.uk/id/local-authority/00FC),Chief Executive,Director Of Economy & Growth,Community Investment Team,Private Contractors,Third Party Prov - Private,PH101,14/11/2016,438375,-170,REVENUE,SCANIA (GREAT BRITAIN) LTD,101361
North East Lincolnshire Council,http://statistics.data.gov.uk/id/local-authority/00FC),Chief Executive,Director Of Economy & Growth,Community Investment Team,Private Contractors,Third Party Prov - Private,PH101,21/11/2016,439864,-110,REVENUE,SCANIA (GREAT BRITAIN) LTD,101361
North East Lincolnshire Council,http://statistics.data.gov.uk/id/local-authority/00FC),Chief Executive,Director Of Economy & Growth,Community Investment Team,Private Contractors,Third Party Prov - Private,PH101,22/11/2016,440184,-55,REVENUE,SCANIA (GREAT BRITAIN) LTD,101361
North East Lincolnshire Council,http://statistics.data.gov.uk/id/local-authority/00FC),Chief Executive,Director Of Economy & Growth,Community Investment Team,Private Contractors,Third Party Prov - Private,PH101,03/11/2016,436791,4223.44,REVENUE,SCANIA (GREAT BRITAIN) LTD,101361
North East Lincolnshire Council,http://statistics.data.gov.uk/id/local-authority/00FC),Chief Executive,Director Of Economy & Growth,Community Investment Team,Private Contractors,Third Party Prov - Private,PH101,10/11/2016,438362,-350,REVENUE,SCANIA (GREAT BRITAIN) LTD,101361
North East Lincolnshire Council,http://statistics.data.gov.uk/id/local-authority/00FC),Chief Executive,Director Of Economy & Growth,Community Investment Team,Private Contractors,Third Party Prov - Private,PH101,14/11/2016,438375,-335,REVENUE,SCANIA (GREAT BRITAIN) LTD,101361
North East Lincolnshire Council,http://statistics.data.gov.uk/id/local-authority/00FC),Chief Executive,Director Of Economy & Growth,Community Investment Team,Private Contractors,Third Party Prov - Private,PH101,14/11/2016,438376,-120,REVENUE,SCANIA (GREAT BRITAIN) LTD,101361
North East Lincolnshire Council,http://statistics.data.gov.uk/id/local-authority/00FC),Chief Executive,Director Of Economy & Growth,Community Investment Team,Private Contractors,Third Party Prov - Private,PH101,21/11/2016,439864,-350,REVENUE,SCANIA (GREAT BRITAIN) LTD,101361
North East Lincolnshire Council,http://statistics.data.gov.uk/id/local-authority/00FC),Chief Executive,Director Of Economy & Growth,Community Investment Team,Private Contractors,Third Party Prov - Private,PH101,22/11/2016,440184,-175,REVENUE,SCANIA (GREAT BRITAIN) LTD,101361
North East Lincolnshire Council,http://statistics.data.gov.uk/id/local-authority/00FC),Chief Executive,Director Of Economy & Growth,Community Investment Team,Private Contractors,Third Party Prov - Private,PH101,28/11/2016,440911,754.84,REVENUE,SCANIA (GREAT BRITAIN) LTD,101361
North East Lincolnshire Council,http://statistics.data.gov.uk/id/local-authority/00FC),Chief Executive,Director Of Economy & Growth,Community Investment Team,Private Contractors,Third Party Prov - Private,PH101,28/11/2016,440676,1500,REVENUE,LINCS ELECTRICAL WHOLESALERS LTD,103116
North East Lincolnshire Council,http://statistics.data.gov.uk/id/local-authority/00FC),Chief Executive,Director Of Economy & Growth,Community Investment Team,Private Contractors,Third Party Prov - Private,PH101,22/11/2016,439506,1500,REVENUE,DATAPLAN PAYROLL LIMITED,112647
North East Lincolnshire Council,http://statistics.data.gov.uk/id/local-authority/00FC),Chief Executive,Director Of Economy & Growth,Community Investment Team,Private Contractors,Third Party Prov - Private,PH101,17/11/2016,439617,2024.22,REVENUE,SCANIA (GREAT BRITAIN) LTD,101361
North East Lincolnshire Council,http://statistics.data.gov.uk/id/local-authority/00FC),Chief Executive,Director Of Economy & Growth,Community Investment Team,Private Contractors,Third Party Prov - Private,PH101,30/11/2016,441306,1500,REVENUE,DFDS LOGISTICS LTD,131638
North East Lincolnshire Council,http://statistics.data.gov.uk/id/local-authority/00FC),Chief Executive,Director Of Economy & Growth,Community Investment Team,Private Contractors,Third Party Prov - Private,PH101,24/11/2016,440519,1500,REVENUE,JOHN E HAITH LTD,107648
North East Lincolnshire Council,http://statistics.data.gov.uk/id/local-authority/00FC),Chief Executive,Director Of Economy & Growth,Community Investment Team,Other Agencies,Grants Pd Over To Third Party,PJ138,10/11/2016,437909,15762,REVENUE,DEPT FOR COMM & LOCAL GOVT,108784
North East Lincolnshire Council,http://statistics.data.gov.uk/id/local-authority/00FC),Chief Executive,Director Of Economy & Growth,Community Investment Team,Other Agencies,Grants Pd Over To Third Party,PJ138,07/11/2016,437819,2397.49,REVENUE,AGRIMIN LIMITED,130564
North East Lincolnshire Council,http://statistics.data.gov.uk/id/local-authority/00FC),Chief Executive,Director Of Economy & Growth,Community Investment Team,Other Agencies,Grants Pd Over To Third Party,PJ138,07/11/2016,437877,1217.89,REVENUE,WELL ABLE LTD,113542
North East Lincolnshire Council,http://statistics.data.gov.uk/id/local-authority/00FC),Chief Executive,Director Of Economy & Growth,Community Investment Team,Other Agencies,Grants Pd Over To Third Party,PJ138,24/11/2016,440212,354.79,REVENUE,VENRIDGE LIMITED T/A CONTRAC,130916
North East Lincolnshire Council,http://statistics.data.gov.uk/id/local-authority/00FC),Chief Executive,Director Of Economy & Growth,Community Investment Team,Other Agencies,Grants Pd Over To Third Party,PJ138,03/11/2016,437534,4477.2,REVENUE,SPORTS IDENTITY,122004
North East Lincolnshire Council,http://statistics.data.gov.uk/id/local-authority/00FC),Chief Executive,Director Of Economy & Growth,Community Investment Team,Other Agencies,Grants Pd Over To Third Party,PJ138,07/11/2016,437530,859.45,REVENUE,ROSINDALE & SONS LTD,131442
North East Lincolnshire Council,http://statistics.data.gov.uk/id/local-authority/00FC),Chief Executive,Director Of Economy & Growth,Community Investment Team,Other Agencies,Grants Pd Over To Third Party,PJ138,03/11/2016,437083,3381.61,REVENUE,MARTIN WILLIAMS (HULL) LTD,122299
North East Lincolnshire Council,http://statistics.data.gov.uk/id/local-authority/00FC),Chief Executive,Director Of Economy & Growth,Community Investment Team,Other Agencies,Grants Pd Over To Third Party,PJ138,07/11/2016,437538,3031.39,REVENUE,FOCUS PACKAGING & DESIGN lTD,132801
North East Lincolnshire Council,http://statistics.data.gov.uk/id/local-authority/00FC),Chief Executive,Director Of Economy & Growth,Community Investment Team,Other Agencies,Grants Pd Over To Third Party,PJ138,03/11/2016,437082,4280,REVENUE,RICK BESTWICK (NORTH) LIMITED,133698
North East Lincolnshire Council,http://statistics.data.gov.uk/id/local-authority/00FC),Chief Executive,Director Of Economy & Growth,Community Investment Team,Other Agencies,Grants Pd Over To Third Party,PJ138,28/11/2016,440724,4690.44,REVENUE,YOUNGS FOODS LTD,133319
North East Lincolnshire Council,http://statistics.data.gov.uk/id/local-authority/00FC),Chief Executive,Director Of Economy & Growth,Community Investment Team,Other Agencies,Grants Pd Over To Third Party,PJ138,30/11/2016,441305,1932.64,REVENUE,ADVANCED PLASTICS LTD,133410
North East Lincolnshire Council,http://statistics.data.gov.uk/id/local-authority/00FC),Chief Executive,Director Of Economy & Growth,Community Investment Team,Other Agencies,Grants Pd Over To Third Party,PJ138,08/11/2016,438188,6157.7,REVENUE,UMBER CREATIVE LIMITED,133869
North East Lincolnshire Council,http://statistics.data.gov.uk/id/local-authority/00FC),Chief Executive,Director Of Economy & Growth,Community Investment Team,Other Agencies,Grants Pd Over To Third Party,PJ138,01/11/2016,437079,407.65,REVENUE,LCS GROUP,128526
North East Lincolnshire Council,http://statistics.data.gov.uk/id/local-authority/00FC),Chief Executive,Director Of Economy & Growth,Community Investment Team,Other Agencies,Grants Pd Over To Third Party,PJ138,03/11/2016,437085,3572.8,REVENUE,LCS GROUP,128526
North East Lincolnshire Council,http://statistics.data.gov.uk/id/local-authority/00FC),Chief Executive,Director Of Economy & Growth,Community Investment Team,Other Agencies,Grants Pd Over To Third Party,PJ138,17/11/2016,439619,310,REVENUE,LCS GROUP,128526
North East Lincolnshire Council,http://statistics.data.gov.uk/id/local-authority/00FC),Chief Executive,Director Of Economy & Growth,Community Investment Team,Other Agencies,Grants Pd Over To Third Party,PJ138,03/11/2016,437084,6233.15,REVENUE,KINGSTON CARTON COMPANY LTD,124434
North East Lincolnshire Council,http://statistics.data.gov.uk/id/local-authority/00FC),Chief Executive,Director Of Economy & Growth,Community Investment Team,Other Agencies,Grants Pd Over To Third Party,PJ138,01/11/2016,436787,7577.73,REVENUE,MARINER PACKAGING CO LTD,134218
North East Lincolnshire Council,http://statistics.data.gov.uk/id/local-authority/00FC),Chief Executive,Director Of Economy & Growth,Community Investment Team,Other Agencies,Grants Pd Over To Third Party,PJ138,03/11/2016,437414,101255.55,REVENUE,PIPERS CRISPS LIMITED,121012
North East Lincolnshire Council,http://statistics.data.gov.uk/id/local-authority/00FC),Chief Executive,Director Of Economy & Growth,Community Investment Team,Other Agencies,Grants Pd Over To Third Party,PJ138,07/11/2016,437418,60169.71,REVENUE,PETRYL ENTERPRISES,134861
North East Lincolnshire Council,http://statistics.data.gov.uk/id/local-authority/00FC),Chief Executive,Director Of Economy & Growth,Community Investment Team,Other Agencies,Grants Pd Over To Third Party,PJ138,10/11/2016,437867,19375.86,REVENUE,THE DRAIN COMPANY (HULL) LTD,134724
North East Lincolnshire Council,http://statistics.data.gov.uk/id/local-authority/00FC),Chief Executive,Director Of Economy & Growth,Community Investment Team,Other Agencies,Grants Pd Over To Third Party,PJ138,10/11/2016,437866,11452.73,REVENUE,EAST TRANSPORTATION HOLDINGS LTD,135392
North East Lincolnshire Council,http://statistics.data.gov.uk/id/local-authority/00FC),Chief Executive,Director Of Economy & Growth,Community Investment Team,Other Agencies,Grants Pd Over To Third Party,PJ138,21/11/2016,439624,28372.62,REVENUE,EAST TRANSPORTATION HOLDINGS LTD,135392
North East Lincolnshire Council,http://statistics.data.gov.uk/id/local-authority/00FC),Chief Executive,Director Of Economy & Growth,Community Investment Team,Other Agencies,Grants Pd Over To Third Party,PJ138,17/11/2016,439616,1092,REVENUE,KEY CAMPER CONVERSION LTD,135249
North East Lincolnshire Council,http://statistics.data.gov.uk/id/local-authority/00FC),Chief Executive,Director Of Economy & Growth,Community Investment Team,Other Agencies,Grants Pd Over To Third Party,PJ138,30/11/2016,441304,4490.11,REVENUE,A W S,134512
North East Lincolnshire Council,http://statistics.data.gov.uk/id/local-authority/00FC),Chief Executive,Director Of Economy & Growth,Retained Function,Communications And Computing,Computer S/Ware - Licences,LF103,21/11/2016,439603,3675,REVENUE,BUREAU VAN DIJK ELECTRONIC PUBLISHING LTD,132648
North East Lincolnshire Council,http://statistics.data.gov.uk/id/local-authority/00FC),Chief Executive,Director Of Economy & Growth,Retained Function,Consultancy,Consultancy,PL101,24/11/2016,440338,9779.57,REVENUE,PARSONS BRINCKERHOFF,122408
North East Lincolnshire Council,http://statistics.data.gov.uk/id/local-authority/00FC),Chief Executive,Director Of Economy & Growth,Retained Function,Consultancy,Consultancy,PL101,10/11/2016,438464,53925,REVENUE,AECOM LTD,133565
North East Lincolnshire Council,http://statistics.data.gov.uk/id/local-authority/00FC),Chief Executive,Director Of Economy & Growth,Retained Function,Private Contractors,Third Party Prov - Private,PH101,10/11/2016,438093,2542.5,REVENUE,RAINBOW PRODUCTIONS LIMITED,120393
North East Lincolnshire Council,http://statistics.data.gov.uk/id/local-authority/00FC),Chief Executive,Director Of Economy & Growth,Retained Function,Private Contractors,Third Party Prov - Private,PH101,21/11/2016,439559,430,REVENUE,MARINER MEDICAL & DRIVING SERVICES LTD,110617
North East Lincolnshire Council,http://statistics.data.gov.uk/id/local-authority/00FC),Chief Executive,Director Of Economy & Growth,Retained Function,Private Contractors,Third Party Prov - Private,PH101,15/11/2016,438690,600,REVENUE,PURPLE SWIRL,135176
North East Lincolnshire Council,http://statistics.data.gov.uk/id/local-authority/00FC),Chief Executive,Director Of Economy & Growth,Retained Function,Private Contractors,Third Party Prov - Private,PH101,28/11/2016,440339,1800,REVENUE,THE CULTURE HOUSE,102644
North East Lincolnshire Council,http://statistics.data.gov.uk/id/local-authority/00FC),Chief Executive,Director Of Economy & Growth,Retained Function,Private Contractors,Third Party Prov - Private,PH101,28/11/2016,440339,1700,REVENUE,THE CULTURE HOUSE,102644
North East Lincolnshire Council,http://statistics.data.gov.uk/id/local-authority/00FC),Chief Executive,Director Of Economy & Growth,Retained Function,Private Contractors,Third Party Prov - Private,PH101,24/11/2016,440515,3333,REVENUE,KADA RESEARCH LTD,135445
North East Lincolnshire Council,http://statistics.data.gov.uk/id/local-authority/00FC),Chief Executive,Director Of Economy & Growth,In Scope Contract,Private Contractors,Contract Payments,PH105,24/11/2016,440673,89717.44,REVENUE,ENGIE SERVICES LTD,133267
North East Lincolnshire Council,http://statistics.data.gov.uk/id/local-authority/00FC),Chief Executive,Director Of Economy & Growth,In Scope Contract,Private Contractors,Contract Payments,PH105,24/11/2016,440673,297711.24,REVENUE,ENGIE SERVICES LTD,133267
North East Lincolnshire Council,http://statistics.data.gov.uk/id/local-authority/00FC),Chief Executive,Director Of Economy & Growth,In Scope Contract,Private Contractors,Contract Payments,PH105,24/11/2016,440673,14061.44,REVENUE,ENGIE SERVICES LTD,133267
North East Lincolnshire Council,http://statistics.data.gov.uk/id/local-authority/00FC),Chief Executive,Director Of Economy & Growth,In Scope Contract,Private Contractors,Contract Payments,PH105,24/11/2016,440673,474051.55,REVENUE,ENGIE SERVICES LTD,133267
North East Lincolnshire Council,http://statistics.data.gov.uk/id/local-authority/00FC),Chief Executive,Director Of Economy & Growth,In Scope Contract,Private Contractors,Contract Payments,PH105,24/11/2016,440673,5495.9,REVENUE,ENGIE SERVICES LTD,133267
North East Lincolnshire Council,http://statistics.data.gov.uk/id/local-authority/00FC),Chief Executive,Director Of Economy & Growth,In Scope Contract,Private Contractors,Contract Payments,PH105,24/11/2016,440673,72139.57,REVENUE,ENGIE SERVICES LTD,133267
North East Lincolnshire Council,http://statistics.data.gov.uk/id/local-authority/00FC),Chief Executive,Director Of Economy & Growth,In Scope Contract,Private Contractors,Contract Payments,PH105,24/11/2016,440673,35511.81,REVENUE,ENGIE SERVICES LTD,133267
North East Lincolnshire Council,http://statistics.data.gov.uk/id/local-authority/00FC),Chief Executive,Director Of Economy & Growth,Car Parks,Energy Costs,Electricity,GB102,01/11/2016,436038,-331.66,REVENUE,NPOWER LIMITED,101414
North East Lincolnshire Council,http://statistics.data.gov.uk/id/local-authority/00FC),Chief Executive,Director Of Economy & Growth,Car Parks,Rates,Rates,GD101,22/11/2016,439971,5352.13,REVENUE,NORTH EAST LINCOLNSHIRE COUNCIL,100894
North East Lincolnshire Council,http://statistics.data.gov.uk/id/local-authority/00FC),Chief Executive,Director Of Economy & Growth,Drainage & Coastal Defence,Private Contractors,Third Party Prov - Private,PH101,22/11/2016,440190,1924.23,REVENUE,NATURAL ENGLAND,133104
North East Lincolnshire Council,http://statistics.data.gov.uk/id/local-authority/00FC),Chief Executive,Director Of Economy & Growth,Drainage & Coastal Defence,Private Contractors,Third Party Prov - Private,PH101,22/11/2016,440189,1650,REVENUE,NATURAL ENGLAND,133104
North East Lincolnshire Council,http://statistics.data.gov.uk/id/local-authority/00FC),Chief Executive,Director Of Economy & Growth,Highways Dso,Dlo Holding,Depot Fuel Holding Account,LM101,08/11/2016,437449,16954.37,REVENUE,CERTAS ENERGY,124794
North East Lincolnshire Council,http://statistics.data.gov.uk/id/local-authority/00FC),Chief Executive,Director Of Economy & Growth,Highways Dso,Dlo Holding,Depot Fuel Holding Account,LM101,08/11/2016,437448,17009.93,REVENUE,CERTAS ENERGY,124794
North East Lincolnshire Council,http://statistics.data.gov.uk/id/local-authority/00FC),Chief Executive,Director Of Economy & Growth,Highways Dso,Dlo Holding,Depot Fuel Holding Account,LM101,08/11/2016,437446,1195.5,REVENUE,CERTAS ENERGY,124794
North East Lincolnshire Council,http://statistics.data.gov.uk/id/local-authority/00FC),Chief Executive,Director Of Economy & Growth,Highways Dso,Dlo Holding,Depot Fuel Holding Account,LM101,14/11/2016,438393,16934.48,REVENUE,CERTAS ENERGY,124794
North East Lincolnshire Council,http://statistics.data.gov.uk/id/local-authority/00FC),Chief Executive,Director Of Economy & Growth,Highways Dso,Dlo Holding,Depot Fuel Holding Account,LM101,17/11/2016,439348,1193.48,REVENUE,CERTAS ENERGY,124794
North East Lincolnshire Council,http://statistics.data.gov.uk/id/local-authority/00FC),Chief Executive,Director Of Economy & Growth,Highways Dso,Dlo Holding,Depot Fuel Holding Account,LM101,30/11/2016,441003,16713,REVENUE,CERTAS ENERGY,124794
North East Lincolnshire Council,http://statistics.data.gov.uk/id/local-authority/00FC),Chief Executive,Director Of Economy & Growth,Highways Management,Rep Alterations Maint Building,Road Path Drain - Maintenance,GA116,24/11/2016,440351,5850,REVENUE,ENGIE SERVICES LTD,133267
North East Lincolnshire Council,http://statistics.data.gov.uk/id/local-authority/00FC),Chief Executive,Director Of Economy & Growth,Operational Management,Equip / Furniture / Materials,Equipment - Maintenance,LA104,24/11/2016,439341,615,REVENUE,MAIN STREET SIGNS LTD,105041
North East Lincolnshire Council,http://statistics.data.gov.uk/id/local-authority/00FC),Chief Executive,Director Of Economy & Growth,Security,Rep Alterations Maint Building,Security Alarms And Cctv,GA101,10/11/2016,438759,300,REVENUE,ENGIE SERVICES LTD,133267
North East Lincolnshire Council,http://statistics.data.gov.uk/id/local-authority/00FC),Chief Executive,Director Of Economy & Growth,Street Lighting,Private Contractors,Third Party Prov - Private,PH101,24/11/2016,439524,1453.35,REVENUE,J MCCANN & CO LTD,100841
North East Lincolnshire Council,http://statistics.data.gov.uk/id/local-authority/00FC),Chief Executive,Director Of Economy & Growth,Street Lighting,Private Contractors,Third Party Prov - Private,PH101,03/11/2016,437521,2175.75,REVENUE,J MCCANN & CO LTD,100841
North East Lincolnshire Council,http://statistics.data.gov.uk/id/local-authority/00FC),Chief Executive,Director Of Economy & Growth,Street Lighting,Energy Costs,Electricity,GB102,01/11/2016,437213,2445.84,REVENUE,NPOWER LIMITED,101414
North East Lincolnshire Council,http://statistics.data.gov.uk/id/local-authority/00FC),Chief Executive,Director Of Economy & Growth,Street Lighting,Rep Alterations Maint Building,Street Lighting - Energy,GA110,01/11/2016,437213,7031.79,REVENUE,NPOWER LIMITED,101414
North East Lincolnshire Council,http://statistics.data.gov.uk/id/local-authority/00FC),Chief Executive,Director Of Economy & Growth,Street Lighting,Rep Alterations Maint Building,Street Lighting - Energy,GA110,03/11/2016,437210,423.04,REVENUE,NPOWER LIMITED,101414
North East Lincolnshire Council,http://statistics.data.gov.uk/id/local-authority/00FC),Chief Executive,Director Of Economy & Growth,Street Lighting,Rep Alterations Maint Building,Traffic Mgmt-Irrecoverable Dam,GA115,24/11/2016,439524,302.6,REVENUE,J MCCANN & CO LTD,100841
North East Lincolnshire Council,http://statistics.data.gov.uk/id/local-authority/00FC),Chief Executive,Director Of Economy & Growth,Street Lighting,Rep Alterations Maint Building,Traffic Mgmt-Irrecoverable Dam,GA115,03/11/2016,437521,1039.5,REVENUE,J MCCANN & CO LTD,100841
North East Lincolnshire Council,http://statistics.data.gov.uk/id/local-authority/00FC),Chief Executive,Director Of Economy & Growth,Street Lighting,Rep Alterations Maint Building,Traffic Signs / Signals,GA113,03/11/2016,437521,2045.59,REVENUE,J MCCANN & CO LTD,100841
North East Lincolnshire Council,http://statistics.data.gov.uk/id/local-authority/00FC),Chief Executive,Director Of Economy & Growth,Street Lighting,Private Contractors,Third Party Prov - Private,PH101,24/11/2016,439524,1192.56,REVENUE,J MCCANN & CO LTD,100841
North East Lincolnshire Council,http://statistics.data.gov.uk/id/local-authority/00FC),Chief Executive,Director Of Economy & Growth,Street Lighting,Rep Alterations Maint Building,Street Lighting - Energy,GA110,03/11/2016,437210,1269.14,REVENUE,NPOWER LIMITED,101414
North East Lincolnshire Council,http://statistics.data.gov.uk/id/local-authority/00FC),Chief Executive,Director Of Economy & Growth,Street Lighting,Rep Alterations Maint Building,Street Lighting - Energy,GA110,01/11/2016,437213,21095.38,REVENUE,NPOWER LIMITED,101414
North East Lincolnshire Council,http://statistics.data.gov.uk/id/local-authority/00FC),Chief Executive,Director Of Economy & Growth,Street Lighting,Rep Alterations Maint Building,Street Lighting-General Maint,GA111,24/11/2016,439524,5885.13,REVENUE,J MCCANN & CO LTD,100841
North East Lincolnshire Council,http://statistics.data.gov.uk/id/local-authority/00FC),Chief Executive,Director Of Economy & Growth,Street Lighting,Rep Alterations Maint Building,Street Lighting-General Maint,GA111,24/11/2016,439524,984.32,REVENUE,J MCCANN & CO LTD,100841
North East Lincolnshire Council,http://statistics.data.gov.uk/id/local-authority/00FC),Chief Executive,Director Of Economy & Growth,Street Lighting,Rep Alterations Maint Building,Street Lighting-General Maint,GA111,03/11/2016,437521,36242.53,REVENUE,J MCCANN & CO LTD,100841
North East Lincolnshire Council,http://statistics.data.gov.uk/id/local-authority/00FC),Chief Executive,Director Of Economy & Growth,Street Lighting,Rep Alterations Maint Building,Street Light-Irrecoverable Dam,GA112,24/11/2016,439524,491.68,REVENUE,J MCCANN & CO LTD,100841
North East Lincolnshire Council,http://statistics.data.gov.uk/id/local-authority/00FC),Chief Executive,Director Of Economy & Growth,Street Lighting,Rep Alterations Maint Building,Street Light-Irrecoverable Dam,GA112,03/11/2016,437521,380.88,REVENUE,J MCCANN & CO LTD,100841
North East Lincolnshire Council,http://statistics.data.gov.uk/id/local-authority/00FC),Chief Executive,Director Of Economy & Growth,Street Lighting,Rep Alterations Maint Building,Traffic Mgmt-Irrecoverable Dam,GA115,03/11/2016,437521,629.56,REVENUE,J MCCANN & CO LTD,100841
North East Lincolnshire Council,http://statistics.data.gov.uk/id/local-authority/00FC),Chief Executive,Director Of Economy & Growth,Street Lighting,Rep Alterations Maint Building,Traffic Signs / Signals,GA113,24/11/2016,439524,366.3,REVENUE,J MCCANN & CO LTD,100841
North East Lincolnshire Council,http://statistics.data.gov.uk/id/local-authority/00FC),Chief Executive,Director Of Economy & Growth,Street Lighting,Rep Alterations Maint Building,Traffic Signs / Signals,GA113,03/11/2016,437521,2846.62,REVENUE,J MCCANN & CO LTD,100841
North East Lincolnshire Council,http://statistics.data.gov.uk/id/local-authority/00FC),Chief Executive,Director Of Economy & Growth,Street Lighting,Rep Alterations Maint Building,Traffic Signs / Signals,GA113,03/11/2016,437521,450.86,REVENUE,J MCCANN & CO LTD,100841
North East Lincolnshire Council,http://statistics.data.gov.uk/id/local-authority/00FC),Chief Executive,Director Of Economy & Growth,Street Lighting,Private Contractors,Third Party Prov - Private,PH101,21/11/2016,439638,951.95,REVENUE,NORTHERN POWERGRID (YORKSHIRE) PLC,108328
North East Lincolnshire Council,http://statistics.data.gov.uk/id/local-authority/00FC),Chief Executive,Director Of Economy & Growth,Street Lighting,Private Contractors,Third Party Prov - Private,PH101,24/11/2016,439524,1402.51,REVENUE,J MCCANN & CO LTD,100841
North East Lincolnshire Council,http://statistics.data.gov.uk/id/local-authority/00FC),Chief Executive,Director Of Economy & Growth,Street Lighting,Rep Alterations Maint Building,Buildings - Repairs And Maint,GA102,24/11/2016,439524,8743.21,REVENUE,J MCCANN & CO LTD,100841
North East Lincolnshire Council,http://statistics.data.gov.uk/id/local-authority/00FC),Chief Executive,Director Of Economy & Growth,Street Lighting,Rep Alterations Maint Building,Buildings - Repairs And Maint,GA102,03/11/2016,437521,1386.01,REVENUE,J MCCANN & CO LTD,100841
North East Lincolnshire Council,http://statistics.data.gov.uk/id/local-authority/00FC),Chief Executive,Director Of Economy & Growth,Transport Policy,Private Contractors,Concessionary Fares,PH104,22/11/2016,440032,REDACTED COMMERCIALLY SENSITIVE,REVENUE,AMVALE LIMITED,101030
North East Lincolnshire Council,http://statistics.data.gov.uk/id/local-authority/00FC),Chief Executive,Director Of Economy & Growth,Transport Policy,Private Contractors,Concessionary Fares,PH104,07/11/2016,437588,REDACTED COMMERCIALLY SENSITIVE,REVENUE,GRAYSCROFT BUS SERVICES LIMITED,101786
North East Lincolnshire Council,http://statistics.data.gov.uk/id/local-authority/00FC),Chief Executive,Director Of Economy & Growth,Transport Policy,Private Contractors,Concessionary Fares,PH104,07/11/2016,435985,REDACTED COMMERCIALLY SENSITIVE,REVENUE,GY CLPS & DISTRICT DIAL A RIDE,100980
North East Lincolnshire Council,http://statistics.data.gov.uk/id/local-authority/00FC),Chief Executive,Director Of Economy & Growth,Transport Policy,Private Contractors,Concessionary Fares,PH104,24/11/2016,440072,REDACTED COMMERCIALLY SENSITIVE,REVENUE,STAGECOACH SERVICES,101404
North East Lincolnshire Council,http://statistics.data.gov.uk/id/local-authority/00FC),Chief Executive,Director Of Economy & Growth,Transport Policy,Private Contractors,Concessionary Fares,PH104,01/11/2016,436760,REDACTED COMMERCIALLY SENSITIVE,REVENUE,ARRIVA RAIL NORTH LTD,134093
North East Lincolnshire Council,http://statistics.data.gov.uk/id/local-authority/00FC),Chief Executive,Director Of Economy & Growth,Transport Policy,Private Contractors,Subsidies,PH102,24/11/2016,440070,REDACTED COMMERCIALLY SENSITIVE,REVENUE,STAGECOACH SERVICES,101404
North East Lincolnshire Council,http://statistics.data.gov.uk/id/local-authority/00FC),Chief Executive,Director Of Economy & Growth,Transport Policy,Private Contractors,Subsidies,PH102,07/11/2016,435989,REDACTED COMMERCIALLY SENSITIVE,REVENUE,STAGECOACH SERVICES,101404
North East Lincolnshire Council,http://statistics.data.gov.uk/id/local-authority/00FC),Chief Executive,Director Of Economy & Growth,Transport Policy,Private Contractors,Subsidies,PH102,22/11/2016,440113,REDACTED COMMERCIALLY SENSITIVE,REVENUE,STAGECOACH SERVICES,101404
North East Lincolnshire Council,http://statistics.data.gov.uk/id/local-authority/00FC),Chief Executive,Director Of Economy & Growth,Transport Policy,Private Contractors,Contract Payments,PH105,17/11/2016,439259,19477.02,REVENUE,ESSENTIAL FLEET SERVICES LTD,101159
North East Lincolnshire Council,http://statistics.data.gov.uk/id/local-authority/00FC),Chief Executive,Director Of Economy & Growth,Transport Policy,Private Contractors,Contract Payments,PH105,17/11/2016,439333,11508.46,REVENUE,TRAPEZE GROUP UK LTD,101970
North East Lincolnshire Council,http://statistics.data.gov.uk/id/local-authority/00FC),Chief Executive,Director Of Economy & Growth,Transport Policy,Consultancy,Consultancy,PL101,08/11/2016,435680,14000,REVENUE,HUMBER AND WOLDS RURAL COMMUNITY COUNCIL,134026
North East Lincolnshire Council,http://statistics.data.gov.uk/id/local-authority/00FC),Chief Executive,Director Of Economy & Growth,Transport Policy,Consultancy,Consultancy,PL101,28/11/2016,440373,37747.06,REVENUE,ENGIE SERVICES LTD,133267
North East Lincolnshire Council,http://statistics.data.gov.uk/id/local-authority/00FC),Chief Executive,Director Of Economy & Growth,Transport Policy,Print Stationery / Gen Off Exp,Advertising,LD104,07/11/2016,436013,1761,REVENUE,IDEAS BY NET,107022
North East Lincolnshire Council,http://statistics.data.gov.uk/id/local-authority/00FC),Chief Executive,Director Of Economy & Growth,Transport Policy,Print Stationery / Gen Off Exp,Advertising,LD104,03/11/2016,436788,430,REVENUE,RED ZULU LTD,111299
North East Lincolnshire Council,http://statistics.data.gov.uk/id/local-authority/00FC),Chief Executive,Director Of Economy & Growth,Transport Policy,Print Stationery / Gen Off Exp,Advertising,LD104,14/11/2016,438380,365,REVENUE,LOCAL WORLD LIMITED,118774
North East Lincolnshire Council,http://statistics.data.gov.uk/id/local-authority/00FC),Chief Executive,Director Of Economy & Growth,Transport Policy,Private Contractors,Subsidies,PH102,28/11/2016,440612,REDACTED COMMERCIALLY SENSITIVE,REVENUE,STAGECOACH SERVICES,101404
North East Lincolnshire Council,http://statistics.data.gov.uk/id/local-authority/00FC),Chief Executive,Director Of Economy & Growth,Transport Policy,Consultancy,Consultancy,PL101,03/11/2016,436810,2395,REVENUE,LOCAL TRANSPORT PROJECTS LTD,121248
North East Lincolnshire Council,http://statistics.data.gov.uk/id/local-authority/00FC),Chief Executive,Director Of Economy & Growth,Transport Policy,Consultancy,Consultancy,PL101,10/11/2016,438219,10544,REVENUE,ENGIE SERVICES LTD,133267
North East Lincolnshire Council,http://statistics.data.gov.uk/id/local-authority/00FC),Chief Executive,Director Of Economy & Growth,Transport Policy,Consultancy,Consultancy,PL101,14/11/2016,438400,750,REVENUE,DISTINCTIVE PUBLISHING,109196
North East Lincolnshire Council,http://statistics.data.gov.uk/id/local-authority/00FC),Chief Executive,Shared Services,Accountancy,Indirect Employee Expenses,Medical Expenses - Employees,EB112,30/11/2016,441463,5765.26,REVENUE,INTERSERVE CONSTRUCTION,128140
North East Lincolnshire Council,http://statistics.data.gov.uk/id/local-authority/00FC),Chief Executive,Shared Services,Accountancy,Indirect Employee Expenses,Staff Training,EB122,24/11/2016,439342,350,REVENUE,CIPFA BUSINESS LIMITED,102338
North East Lincolnshire Council,http://statistics.data.gov.uk/id/local-authority/00FC),Chief Executive,Shared Services,Accountancy,Government Departments,Third Party Prov - Govt Depts,PE101,22/11/2016,440202,1500,REVENUE,KPMG FEES ACCOUNT,101071
North East Lincolnshire Council,http://statistics.data.gov.uk/id/local-authority/00FC),Chief Executive,Shared Services,Accountancy,Communications And Computing,Computer S/Ware - Maintenance,LF102,01/11/2016,436815,676.65,REVENUE,WELCOM DIGITAL LIMITED,104463
North East Lincolnshire Council,http://statistics.data.gov.uk/id/local-authority/00FC),Chief Executive,Shared Services,Benefit Payments & Subsidy,Miscellaneous Income,Exp Recov - O/Side Scope Vat 4,VG107,08/11/2016,453135,1447.99,REVENUE,REDACTED PERSONAL INFORMATION,REDACTED PERSONAL INFORMATION
North East Lincolnshire Council,http://statistics.data.gov.uk/id/local-authority/00FC),Chief Executive,Shared Services,Benefit Payments & Subsidy,Miscellaneous Income,Exp Recov - O/Side Scope Vat 4,VG107,01/11/2016,451690,257.76,REVENUE,REDACTED PERSONAL INFORMATION,REDACTED PERSONAL INFORMATION
North East Lincolnshire Council,http://statistics.data.gov.uk/id/local-authority/00FC),Chief Executive,Shared Services,Benefit Payments & Subsidy,Miscellaneous Income,Exp Recov - O/Side Scope Vat 4,VG107,03/11/2016,437195,320,REVENUE,JACOBS CERTIFIED BAILIFFS,101788
North East Lincolnshire Council,http://statistics.data.gov.uk/id/local-authority/00FC),Chief Executive,Shared Services,Local Taxation & Benefits,Indirect Employee Expenses,Redundancy,EB109,17/11/2016,439717,REDACTED PERSONAL INFORMATION,REVENUE,EAST RIDING OF YORKSHIRE,100377
North East Lincolnshire Council,http://statistics.data.gov.uk/id/local-authority/00FC),Chief Executive,Shared Services,Local Taxation & Benefits,Communications And Computing,Computer S/Ware - Maintenance,LF102,01/11/2016,436021,1209.67,REVENUE,NORTHGATE PUBLIC SERVICES (UK) LTD,101841
North East Lincolnshire Council,http://statistics.data.gov.uk/id/local-authority/00FC),Chief Executive,Shared Services,Local Taxation & Benefits,Communications And Computing,Computer S/Ware - Maintenance,LF102,28/11/2016,441080,1300,REVENUE,NORTHGATE PUBLIC SERVICES (UK) LTD,101841
North East Lincolnshire Council,http://statistics.data.gov.uk/id/local-authority/00FC),Chief Executive,Shared Services,Local Taxation & Benefits,Communications And Computing,Computer S/Ware - Maintenance,LF102,29/11/2016,441030,27927,REVENUE,NORTHGATE PUBLIC SERVICES (UK) LTD,101841
North East Lincolnshire Council,http://statistics.data.gov.uk/id/local-authority/00FC),Chief Executive,Shared Services,Local Taxation & Benefits,Communications And Computing,Postage,LF111,17/11/2016,439273,7192.83,REVENUE,CAPITA BUSINESS SERVICES LTD,102314
North East Lincolnshire Council,http://statistics.data.gov.uk/id/local-authority/00FC),Chief Executive,Shared Services,Local Taxation & Benefits,Miscellaneous Expenses,Debt Recovery Costs,LL111,01/11/2016,437204,385.38,REVENUE,NEWLYN,123422
North East Lincolnshire Council,http://statistics.data.gov.uk/id/local-authority/00FC),Chief Executive,Shared Services,Local Taxation & Benefits,Miscellaneous Expenses,Debt Recovery Costs,LL111,29/11/2016,441100,408.59,REVENUE,NEWLYN,123422
North East Lincolnshire Council,http://statistics.data.gov.uk/id/local-authority/00FC),Chief Executive,Shared Services,Local Taxation & Benefits,Miscellaneous Expenses,Debt Recovery Costs,LL111,07/11/2016,437207,310,REVENUE,NEWLYN,123422
North East Lincolnshire Council,http://statistics.data.gov.uk/id/local-authority/00FC),Chief Executive,Shared Services,Shared Services Lead,Miscellaneous Expenses,Legal Fees - General,LL103,22/11/2016,439228,496,REVENUE,WILKIN CHAPMAN LLP,110675
North East Lincolnshire Council,http://statistics.data.gov.uk/id/local-authority/00FC),Chief Executive,Shared Services,I.T Shared Service,Communications And Computing,Telephones,LF112,14/11/2016,438741,5231.95,REVENUE,VIRGIN MEDIA,107612
North East Lincolnshire Council,http://statistics.data.gov.uk/id/local-authority/00FC),Chief Executive,Shared Services,I.T Shared Service,Communications And Computing,Telephones,LF112,14/11/2016,438741,319.6,REVENUE,VIRGIN MEDIA,107612
North East Lincolnshire Council,http://statistics.data.gov.uk/id/local-authority/00FC),Chief Executive,Shared Services,I.T Shared Service,Communications And Computing,Telephones,LF112,14/11/2016,438741,853.66,REVENUE,VIRGIN MEDIA,107612
North East Lincolnshire Council,http://statistics.data.gov.uk/id/local-authority/00FC),Chief Executive,Shared Services,I.T Shared Service,Communications And Computing,Telephones,LF112,28/11/2016,441122,312.45,REVENUE,BRITISH TELECOMMUNICATIONS PLC,100974
North East Lincolnshire Council,http://statistics.data.gov.uk/id/local-authority/00FC),Chief Executive,Shared Services,I.T Shared Service,Communications And Computing,Computer H/Ware - Purchases,LF105,14/11/2016,438741,250,REVENUE,VIRGIN MEDIA,107612
North East Lincolnshire Council,http://statistics.data.gov.uk/id/local-authority/00FC),Chief Executive,Shared Services,I.T Shared Service,Communications And Computing,Computer H/Ware - Purchases,LF105,14/11/2016,438741,397.2,REVENUE,VIRGIN MEDIA,107612
North East Lincolnshire Council,http://statistics.data.gov.uk/id/local-authority/00FC),Chief Executive,Shared Services,I.T Shared Service,Communications And Computing,Computer H/Ware - Purchases,LF105,28/11/2016,431182,2417.5,REVENUE,KIER BUSINESS SERVICES LIMITED (EMBED),133667
North East Lincolnshire Council,http://statistics.data.gov.uk/id/local-authority/00FC),Chief Executive,Shared Services,I.T Shared Service,Communications And Computing,Computer H/Ware - Purchases,LF105,28/11/2016,440084,1259,REVENUE,XMA LIMITED,100699
North East Lincolnshire Council,http://statistics.data.gov.uk/id/local-authority/00FC),Chief Executive,Shared Services,I.T Shared Service,Communications And Computing,Computer H/Ware - Purchases,LF105,24/11/2016,440180,1683.63,REVENUE,VODAFONE LIMITED,103661
North East Lincolnshire Council,http://statistics.data.gov.uk/id/local-authority/00FC),Chief Executive,Shared Services,I.T Shared Service,Communications And Computing,Computer H/Ware - Purchases,LF105,17/11/2016,439071,385,REVENUE,COMPUTACENTER UK LTD,101303
North East Lincolnshire Council,http://statistics.data.gov.uk/id/local-authority/00FC),Chief Executive,Shared Services,I.T Shared Service,Communications And Computing,Computer H/Ware - Purchases,LF105,15/11/2016,438739,428,REVENUE,INSIGHT DIRECT (UK) LTD,101011
North East Lincolnshire Council,http://statistics.data.gov.uk/id/local-authority/00FC),Chief Executive,Shared Services,I.T Shared Service,Communications And Computing,Computer H/Ware - Purchases,LF105,17/11/2016,439090,6060.5,REVENUE,COMPUTACENTER UK LTD,101303
North East Lincolnshire Council,http://statistics.data.gov.uk/id/local-authority/00FC),Chief Executive,Shared Services,I.T Shared Service,Communications And Computing,Computer H/Ware - Purchases,LF105,28/11/2016,440737,286.99,REVENUE,INSIGHT DIRECT (UK) LTD,101011
North East Lincolnshire Council,http://statistics.data.gov.uk/id/local-authority/00FC),Chief Executive,Shared Services,I.T Shared Service,Communications And Computing,Computer S/Ware - Licences,LF103,10/11/2016,438252,16795.79,REVENUE,PHOENIX SOFTWARE LTD,100753
North East Lincolnshire Council,http://statistics.data.gov.uk/id/local-authority/00FC),Chief Executive,Shared Services,I.T Shared Service,Communications And Computing,Computer S/Ware - Licences,LF103,01/11/2016,435719,23863.88,REVENUE,TRUSTMARQUE SOLUTIONS LTD,101275
North East Lincolnshire Council,http://statistics.data.gov.uk/id/local-authority/00FC),Chief Executive,Shared Services,I.T Shared Service,Communications And Computing,Computer S/Ware - Licences,LF103,22/11/2016,439677,11181.65,REVENUE,PHOENIX SOFTWARE LTD,100753
North East Lincolnshire Council,http://statistics.data.gov.uk/id/local-authority/00FC),Chief Executive,Shared Services,I.T Shared Service,Communications And Computing,Computer S/Ware - Licences,LF103,22/11/2016,439642,32568.54,REVENUE,PHOENIX SOFTWARE LTD,100753
North East Lincolnshire Council,http://statistics.data.gov.uk/id/local-authority/00FC),Chief Executive,Shared Services,I.T Shared Service,Communications And Computing,Computer S/Ware - Licences,LF103,22/11/2016,439642,6797.01,REVENUE,PHOENIX SOFTWARE LTD,100753
North East Lincolnshire Council,http://statistics.data.gov.uk/id/local-authority/00FC),Chief Executive,Shared Services,I.T Shared Service,Communications And Computing,Computer S/Ware - Licences,LF103,22/11/2016,439642,2721.11,REVENUE,PHOENIX SOFTWARE LTD,100753
North East Lincolnshire Council,http://statistics.data.gov.uk/id/local-authority/00FC),Chief Executive,Shared Services,I.T Shared Service,Communications And Computing,Computer S/Ware - Licences,LF103,22/11/2016,439642,6584.2,REVENUE,PHOENIX SOFTWARE LTD,100753
North East Lincolnshire Council,http://statistics.data.gov.uk/id/local-authority/00FC),Chief Executive,Shared Services,I.T Shared Service,Communications And Computing,Computer S/Ware - Licences,LF103,22/11/2016,439642,892.35,REVENUE,PHOENIX SOFTWARE LTD,100753
North East Lincolnshire Council,http://statistics.data.gov.uk/id/local-authority/00FC),Chief Executive,Shared Services,I.T Shared Service,Communications And Computing,Computer S/Ware - Licences,LF103,24/11/2016,439640,8381,REVENUE,COMPUTACENTER UK LTD,101303
North East Lincolnshire Council,http://statistics.data.gov.uk/id/local-authority/00FC),Chief Executive,Shared Services,I.T Shared Service,Communications And Computing,Computer S/Ware - Maintenance,LF102,10/11/2016,438145,2498.92,REVENUE,NATIONAL CONSORTIUM FOR EXAMINATION RESULTS,110067
North East Lincolnshire Council,http://statistics.data.gov.uk/id/local-authority/00FC),Chief Executive,Shared Services,I.T Shared Service,Communications And Computing,Computer S/Ware - Maintenance,LF102,30/11/2016,441376,3345.37,REVENUE,APD COMMUNICATIONS LTD,101972
North East Lincolnshire Council,http://statistics.data.gov.uk/id/local-authority/00FC),Chief Executive,Shared Services,I.T Shared Service,Communications And Computing,Computer S/Ware - Maintenance,LF102,10/11/2016,438144,1106.28,REVENUE,NATIONAL CONSORTIUM FOR EXAMINATION RESULTS,110067
North East Lincolnshire Council,http://statistics.data.gov.uk/id/local-authority/00FC),Chief Executive,Shared Services,I.T Shared Service,Communications And Computing,Computer S/Ware - Maintenance,LF102,10/11/2016,438144,951.65,REVENUE,NATIONAL CONSORTIUM FOR EXAMINATION RESULTS,110067
North East Lincolnshire Council,http://statistics.data.gov.uk/id/local-authority/00FC),Chief Executive,Shared Services,I.T Shared Service,Communications And Computing,Computer S/Ware - Maintenance,LF102,24/11/2016,440085,12600,REVENUE,FIRMSTEP,108310
North East Lincolnshire Council,http://statistics.data.gov.uk/id/local-authority/00FC),Chief Executive,Shared Services,I.T Shared Service,Communications And Computing,Computer S/Ware - Maintenance,LF102,24/11/2016,440085,1050,REVENUE,FIRMSTEP,108310
North East Lincolnshire Council,http://statistics.data.gov.uk/id/local-authority/00FC),Chief Executive,Shared Services,I.T Shared Service,Miscellaneous Expenses,Other Expenses General,LL119,24/11/2016,439640,1680,REVENUE,COMPUTACENTER UK LTD,101303
North East Lincolnshire Council,http://statistics.data.gov.uk/id/local-authority/00FC),Chief Executive,Shared Services,Director And Support,Miscellaneous Expenses,Other Expenses General,LL119,10/11/2016,437600,2923.97,REVENUE,WELLBEING SOLUTIONS MANAGEMENT,132439
North East Lincolnshire Council,http://statistics.data.gov.uk/id/local-authority/00FC),Chief Executive,Shared Services,Human Resources,Indirect Employee Expenses,Disclosure Checks,EB124,10/11/2016,438192,3828,REVENUE,DISCLOSURE & BARRING SERVICE,119180
North East Lincolnshire Council,http://statistics.data.gov.uk/id/local-authority/00FC),Chief Executive,Shared Services,Human Resources,Miscellaneous Expenses,Other Supplies & Services,LL110,07/11/2016,437440,3050,REVENUE,EXCITELEARNING,130001
North East Lincolnshire Council,http://statistics.data.gov.uk/id/local-authority/00FC),Chief Executive,Shared Services,Human Resources,Indirect Employee Expenses,Staff Training,EB122,15/11/2016,439214,7140,REVENUE,THE BEECH CENTRE,128323
North East Lincolnshire Council,http://statistics.data.gov.uk/id/local-authority/00FC),Chief Executive,Shared Services,Human Resources,Indirect Employee Expenses,Staff Training,EB122,29/11/2016,440581,4736,REVENUE,PAUL CARLILE,119569
North East Lincolnshire Council,http://statistics.data.gov.uk/id/local-authority/00FC),Chief Executive,Shared Services,Human Resources,Indirect Employee Expenses,Staff Training,EB122,01/11/2016,435497,540,REVENUE,FOREFRONT TRAINING LTD,105501
North East Lincolnshire Council,http://statistics.data.gov.uk/id/local-authority/00FC),Chief Executive,Shared Services,Human Resources,Indirect Employee Expenses,Staff Training,EB122,22/11/2016,440163,1322.2,REVENUE,REDACTED PERSONAL INFORMATION,REDACTED PERSONAL INFORMATION
North East Lincolnshire Council,http://statistics.data.gov.uk/id/local-authority/00FC),Chief Executive,Shared Services,Human Resources,Indirect Employee Expenses,Staff Training,EB122,22/11/2016,440176,1322.2,REVENUE,REDACTED PERSONAL INFORMATION,REDACTED PERSONAL INFORMATION
North East Lincolnshire Council,http://statistics.data.gov.uk/id/local-authority/00FC),Chief Executive,Shared Services,Human Resources,Indirect Employee Expenses,Staff Training,EB122,22/11/2016,440161,1322.2,REVENUE,REDACTED PERSONAL INFORMATION,REDACTED PERSONAL INFORMATION
North East Lincolnshire Council,http://statistics.data.gov.uk/id/local-authority/00FC),Chief Executive,Shared Services,Human Resources,Indirect Employee Expenses,Staff Training,EB122,10/11/2016,435788,3800,REVENUE,VIRTUAL COLLEGE LTD,105926
North East Lincolnshire Council,http://statistics.data.gov.uk/id/local-authority/00FC),Chief Executive,Shared Services,Human Resources,Indirect Employee Expenses,Staff Training,EB122,01/11/2016,436740,1499,REVENUE,RISK HEALTH AND SAFETY TRAINING,135302
North East Lincolnshire Council,http://statistics.data.gov.uk/id/local-authority/00FC),Chief Executive,Shared Services,Human Resources,Indirect Employee Expenses,Staff Training,EB122,21/11/2016,439001,900,REVENUE,MR MICHAEL A CHARLES,108653
North East Lincolnshire Council,http://statistics.data.gov.uk/id/local-authority/00FC),Chief Executive,Shared Services,Human Resources,Indirect Employee Expenses,Staff Training,EB122,21/11/2016,439866,1950,REVENUE,TEAM TEACH LTD,103320
North East Lincolnshire Council,http://statistics.data.gov.uk/id/local-authority/00FC),Chief Executive,Shared Services,Human Resources,Indirect Employee Expenses,Staff Training,EB122,21/11/2016,439887,695,REVENUE,BUSINESS RISK MANAGEMENT,135492
North East Lincolnshire Council,http://statistics.data.gov.uk/id/local-authority/00FC),Chief Executive,Shared Services,Human Resources,Indirect Employee Expenses,Staff Training,EB122,30/11/2016,441077,510,REVENUE,UNIVERSITY OF LINCOLN,101299
North East Lincolnshire Council,http://statistics.data.gov.uk/id/local-authority/00FC),Chief Executive,Shared Services,Human Resources,Indirect Employee Expenses,Staff Training,EB122,03/11/2016,424543,-510,REVENUE,UNIVERSITY OF LINCOLN,101299
North East Lincolnshire Council,http://statistics.data.gov.uk/id/local-authority/00FC),Chief Executive,Shared Services,Human Resources,Indirect Employee Expenses,Staff Training,EB122,14/11/2016,438695,820,REVENUE,CARE-EX SERVICES LTD,104154
North East Lincolnshire Council,http://statistics.data.gov.uk/id/local-authority/00FC),Chief Executive,Shared Services,Human Resources,Indirect Employee Expenses,Staff Training,EB122,01/11/2016,435974,600,REVENUE,WOMENS AID,100326
North East Lincolnshire Council,http://statistics.data.gov.uk/id/local-authority/00FC),Chief Executive,Shared Services,Human Resources,Indirect Employee Expenses,Staff Training,EB122,17/11/2016,438693,300,REVENUE,WOMENS AID,100326
North East Lincolnshire Council,http://statistics.data.gov.uk/id/local-authority/00FC),Chief Executive,Shared Services,Human Resources,Indirect Employee Expenses,Staff Training,EB122,10/11/2016,435724,1970.75,REVENUE,CALDER TRAINING AND CONSULTANCY LTD,134864
North East Lincolnshire Council,http://statistics.data.gov.uk/id/local-authority/00FC),Chief Executive,Shared Services,Human Resources,Indirect Employee Expenses,Staff Training,EB122,03/11/2016,436800,2160,REVENUE,UNIVERSITY OF LINCOLN,101299
North East Lincolnshire Council,http://statistics.data.gov.uk/id/local-authority/00FC),Chief Executive,Shared Services,Human Resources,Indirect Employee Expenses,Medical Expenses - Employees,EB112,08/11/2016,438060,740,REVENUE,OCCUPATIONAL HEALTH SERVICES LTD,112584
North East Lincolnshire Council,http://statistics.data.gov.uk/id/local-authority/00FC),Chief Executive,Shared Services,Human Resources,Indirect Employee Expenses,Medical Expenses - Employees,EB112,08/11/2016,437539,13200,REVENUE,DR M R EAST,109880
North East Lincolnshire Council,http://statistics.data.gov.uk/id/local-authority/00FC),Chief Executive,Shared Services,Human Resources,Indirect Employee Expenses,Medical Expenses - Employees,EB112,30/11/2016,441409,2000,REVENUE,MANOR OCCUPATIONAL HEALTH LTD,130544
North East Lincolnshire Council,http://statistics.data.gov.uk/id/local-authority/00FC),Chief Executive,Shared Services,Human Resources,Equip / Furniture / Materials,Equipment - Purchase,LA101,17/11/2016,438727,374.99,REVENUE,MAPLIN ELECTRONICS LTD,101316
North East Lincolnshire Council,http://statistics.data.gov.uk/id/local-authority/00FC),Chief Executive,Shared Services,Human Resources,Grants And Subscriptions,Subscriptions,LJ101,10/11/2016,437860,440,REVENUE,ROSPA,100697
North East Lincolnshire Council,http://statistics.data.gov.uk/id/local-authority/00FC),Chief Executive,Shared Services,Audit Shared Service,Services,Alternative Provision,LE103,01/11/2016,436808,7500,REVENUE,EAST RIDING OF YORKSHIRE,100377
North East Lincolnshire Council,http://statistics.data.gov.uk/id/local-authority/00FC),Chief Executive,Shared Services,Audit Shared Service,Services,Alternative Provision,LE103,01/11/2016,436808,543.06,REVENUE,EAST RIDING OF YORKSHIRE,100377
North East Lincolnshire Council,http://statistics.data.gov.uk/id/local-authority/00FC),Chief Executive,Shared Services,Central Commissioning & Delive,Private Contractors,Contract Payments,PH105,14/11/2016,438961,8312.98,REVENUE,MATRIX SCM LTD,108117
North East Lincolnshire Council,http://statistics.data.gov.uk/id/local-authority/00FC),Chief Executive,Shared Services,Central Commissioning & Delive,Private Contractors,Contract Payments,PH105,15/11/2016,438696,8987.84,REVENUE,MATRIX SCM LTD,108117
North East Lincolnshire Council,http://statistics.data.gov.uk/id/local-authority/00FC),Chief Executive,Shared Services,Central Commissioning & Delive,Private Contractors,Contract Payments,PH105,15/11/2016,438697,8106.08,REVENUE,MATRIX SCM LTD,108117
North East Lincolnshire Council,http://statistics.data.gov.uk/id/local-authority/00FC),Chief Executive,Shared Services,Central Commissioning & Delive,Private Contractors,Contract Payments,PH105,21/11/2016,439871,11179.66,REVENUE,MATRIX SCM LTD,108117
North East Lincolnshire Council,http://statistics.data.gov.uk/id/local-authority/00FC),Chief Executive,Shared Services,Central Commissioning & Delive,Private Contractors,Contract Payments,PH105,22/11/2016,439663,10702.85,REVENUE,MATRIX SCM LTD,108117
North East Lincolnshire Council,http://statistics.data.gov.uk/id/local-authority/00FC),Chief Executive,Shared Services,Shared Print Hub,Equip / Furniture / Materials,Equipment - Purchase,LA101,17/11/2016,435955,391.5,REVENUE,HOUND ENVELOPES LTD,110120
North East Lincolnshire Council,http://statistics.data.gov.uk/id/local-authority/00FC),Chief Executive,Shared Services,Shared Print Hub,Equip / Furniture / Materials,Equipment - Purchase,LA101,10/11/2016,435781,600,REVENUE,ELLIOTT BAXTER & COMPANY LIMITED,101996
North East Lincolnshire Council,http://statistics.data.gov.uk/id/local-authority/00FC),Chief Executive,Shared Services,Shared Print Hub,Print Stationery / Gen Off Exp,Photocopier - Running Costs,LD102,08/11/2016,436814,2500.79,REVENUE,XEROX FINANCE,100572
North East Lincolnshire Council,http://statistics.data.gov.uk/id/local-authority/00FC),Chief Executive,Shared Services,Shared Print Hub,Print Stationery / Gen Off Exp,Photocopier - Running Costs,LD102,28/11/2016,440551,1084.9,REVENUE,UNITED CARLTON OFFICE SYSTEMS LTD,101652
North East Lincolnshire Council,http://statistics.data.gov.uk/id/local-authority/00FC),Chief Executive,Shared Services,Shared Print Hub,Print Stationery / Gen Off Exp,Printing And Stationery,LD103,28/11/2016,440551,912.25,REVENUE,UNITED CARLTON OFFICE SYSTEMS LTD,101652
North East Lincolnshire Council,http://statistics.data.gov.uk/id/local-authority/00FC),Chief Executive,Shared Services,Shared Print Hub,Private Contractors,Third Party Prov - Private,PH101,17/11/2016,437114,266,REVENUE,SYSTEMATIC PRINT MANAGEMENT LTD,101147
North East Lincolnshire Council,http://statistics.data.gov.uk/id/local-authority/00FC),Chief Executive,Shared Services,Shared Print Hub,Private Contractors,Third Party Prov - Private,PH101,17/11/2016,436802,747.35,REVENUE,HOUND ENVELOPES LTD,110120
North East Lincolnshire Council,http://statistics.data.gov.uk/id/local-authority/00FC),Chief Executive,Shared Services,Shared Print Hub,Private Contractors,Third Party Prov - Private,PH101,21/11/2016,439654,592,REVENUE,DONCASTER METROPOLITAN BOROUGH COUNCIL,103098
North East Lincolnshire Council,http://statistics.data.gov.uk/id/local-authority/00FC),Chief Executive,Shared Services,Shared Print Hub,Private Contractors,Third Party Prov - Private,PH101,15/11/2016,437813,622,REVENUE,CCM PRINT & MEDIA SOLUTIONS,134586
North East Lincolnshire Council,http://statistics.data.gov.uk/id/local-authority/00FC),Chief Executive,Shared Services,Shared Print Hub,Private Contractors,Third Party Prov - Private,PH101,10/11/2016,436064,753.6,REVENUE,CCM PRINT & MEDIA SOLUTIONS,134586
North East Lincolnshire Council,http://statistics.data.gov.uk/id/local-authority/00FC),Chief Executive,Shared Services,Shared Print Hub,Print Stationery / Gen Off Exp,Photocopier - Running Costs,LD102,03/11/2016,436806,406.85,REVENUE,UNITED CARLTON OFFICE SYSTEMS LTD,101652
North East Lincolnshire Council,http://statistics.data.gov.uk/id/local-authority/00FC),Chief Executive,Shared Services,Shared Print Hub,Print Stationery / Gen Off Exp,Photocopier - Running Costs,LD102,28/11/2016,440571,376,REVENUE,UNITED CARLTON OFFICE SYSTEMS LTD,101652
North East Lincolnshire Council,http://statistics.data.gov.uk/id/local-authority/00FC),Chief Executive,Shared Services,Shared Print Hub,Print Stationery / Gen Off Exp,Photocopier - Running Costs,LD102,28/11/2016,440578,365.54,REVENUE,UNITED CARLTON OFFICE SYSTEMS LTD,101652
North East Lincolnshire Council,http://statistics.data.gov.uk/id/local-authority/00FC),Chief Executive,Shared Services,Shared Print Hub,Print Stationery / Gen Off Exp,Photocopier - Running Costs,LD102,28/11/2016,440575,276.35,REVENUE,UNITED CARLTON OFFICE SYSTEMS LTD,101652
North East Lincolnshire Council,http://statistics.data.gov.uk/id/local-authority/00FC),Chief Executive,Shared Services,Shared Print Hub,Print Stationery / Gen Off Exp,Photocopier - Running Costs,LD102,28/11/2016,440564,264.45,REVENUE,UNITED CARLTON OFFICE SYSTEMS LTD,101652
North East Lincolnshire Council,http://statistics.data.gov.uk/id/local-authority/00FC),Chief Executive,Shared Services,Shared Print Hub,Print Stationery / Gen Off Exp,Photocopier - Running Costs,LD102,29/11/2016,440586,711.87,REVENUE,UNITED CARLTON OFFICE SYSTEMS LTD,101652
North East Lincolnshire Council,http://statistics.data.gov.uk/id/local-authority/00FC),Chief Executive,Shared Services,Shared Print Hub,Print Stationery / Gen Off Exp,Photocopier - Running Costs,LD102,29/11/2016,440588,402.14,REVENUE,UNITED CARLTON OFFICE SYSTEMS LTD,101652
North East Lincolnshire Council,http://statistics.data.gov.uk/id/local-authority/00FC),Chief Executive,Shared Services,Shared Print Hub,Print Stationery / Gen Off Exp,Photocopier - Running Costs,LD102,29/11/2016,440574,285.58,REVENUE,UNITED CARLTON OFFICE SYSTEMS LTD,101652
North East Lincolnshire Council,http://statistics.data.gov.uk/id/local-authority/00FC),Chief Executive,Shared Services,Shared Print Hub,Print Stationery / Gen Off Exp,Photocopier - Running Costs,LD102,28/11/2016,440582,304.31,REVENUE,UNITED CARLTON OFFICE SYSTEMS LTD,101652
North East Lincolnshire Council,http://statistics.data.gov.uk/id/local-authority/00FC),Chief Executive,Shared Services,Shared Print Hub,Print Stationery / Gen Off Exp,Photocopier - Running Costs,LD102,24/11/2016,440614,294.09,REVENUE,UNITED CARLTON OFFICE SYSTEMS LTD,101652
North East Lincolnshire Council,http://statistics.data.gov.uk/id/local-authority/00FC),Chief Executive,Shared Services,Shared Print Hub,Print Stationery / Gen Off Exp,Printing And Stationery,LD103,29/11/2016,440569,296.62,REVENUE,UNITED CARLTON OFFICE SYSTEMS LTD,101652
North East Lincolnshire Council,http://statistics.data.gov.uk/id/local-authority/00FC),Chief Executive,Shared Services,Shared Print Hub,Print Stationery / Gen Off Exp,Printing And Stationery,LD103,29/11/2016,440586,508.3,REVENUE,UNITED CARLTON OFFICE SYSTEMS LTD,101652
North East Lincolnshire Council,http://statistics.data.gov.uk/id/local-authority/00FC),Chief Executive,Shared Services,Shared Print Hub,Print Stationery / Gen Off Exp,Printing And Stationery,LD103,29/11/2016,440574,324.67,REVENUE,UNITED CARLTON OFFICE SYSTEMS LTD,101652
North East Lincolnshire Council,http://statistics.data.gov.uk/id/local-authority/00FC),Chief Executive,Ad Governance And Democracy,Democratic Services & Scrutiny,Miscellaneous Expenses,Other Expenses General,LL119,10/11/2016,438365,330,REVENUE,FORESIGHT,114365
North East Lincolnshire Council,http://statistics.data.gov.uk/id/local-authority/00FC),Chief Executive,Ad Governance And Democracy,Registrars & Civic Services,Miscellaneous Expenses,Civic Regalia And Events,LL117,29/11/2016,441112,1000,REVENUE,STAR CABARET LTD,135584
North East Lincolnshire Council,http://statistics.data.gov.uk/id/local-authority/00FC),Chief Executive,Ad Governance And Democracy,Registrars & Civic Services,Miscellaneous Expenses,Hospitality,LL112,24/11/2016,440377,250,REVENUE,KINGSWAY HOTEL,100818
North East Lincolnshire Council,http://statistics.data.gov.uk/id/local-authority/00FC),Chief Executive,Ad Governance And Democracy,Registrars & Civic Services,Miscellaneous Expenses,Hospitality,LL112,24/11/2016,440331,250,REVENUE,KINGSWAY HOTEL,100818
North East Lincolnshire Council,http://statistics.data.gov.uk/id/local-authority/00FC),Chief Executive,Ad Governance And Democracy,Registrars & Civic Services,Miscellaneous Expenses,Hospitality,LL112,24/11/2016,440376,250,REVENUE,KINGSWAY HOTEL,100818
North East Lincolnshire Council,http://statistics.data.gov.uk/id/local-authority/00FC),Chief Executive,Ad Governance And Democracy,Ad Governance & Democracy,Contributions To Provisions,Contributions - Third Sector,LK102,10/11/2016,438085,12500,REVENUE,NEL CCG,119896
North East Lincolnshire Council,http://statistics.data.gov.uk/id/local-authority/00FC),Chief Executive,Ad Governance And Democracy,Ad Governance & Democracy,Private Contractors,Third Party Prov - Private,PH101,30/11/2016,440992,23000,REVENUE,CENTRE4 LIMITED,126893
North East Lincolnshire Council,http://statistics.data.gov.uk/id/local-authority/00FC),Chief Executive,Ad Governance And Democracy,Elections & Complaints,Rents,Rent,GC101,14/11/2016,437597,1907.2,REVENUE,ROYAL MAIL GROUP PLC,101082
North East Lincolnshire Council,http://statistics.data.gov.uk/id/local-authority/00FC),Chief Executive,Ad Governance And Democracy,Elections & Complaints,Print Stationery / Gen Off Exp,Printing And Stationery,LD103,14/11/2016,438390,2073.83,REVENUE,PRINT IMAGE NETWORK LTD,103724
North East Lincolnshire Council,http://statistics.data.gov.uk/id/local-authority/00FC),Chief Executive,Ad Governance And Democracy,Elections & Complaints,Rents,Rent,GC101,03/11/2016,437504,11919.9,REVENUE,MOBILE MINI UK LTD,105081
North East Lincolnshire Council,http://statistics.data.gov.uk/id/local-authority/00FC),Chief Executive,Ad Law,Coroners,Other Agencies,Mortuary Storage Charges,PJ156,14/11/2016,438962,5488,REVENUE,N LINCS & GOOLE HOSPITALS NHS,111074
North East Lincolnshire Council,http://statistics.data.gov.uk/id/local-authority/00FC),Chief Executive,Ad Law,Coroners,Other Agencies,Other,PJ121,03/11/2016,436726,350,REVENUE,WILKIN CHAPMAN LLP,110675
North East Lincolnshire Council,http://statistics.data.gov.uk/id/local-authority/00FC),Chief Executive,Ad Law,Coroners,Other Agencies,Post Mortems,PJ148,24/11/2016,440524,591.9,REVENUE,REDACTED PERSONAL INFORMATION,REDACTED PERSONAL INFORMATION
North East Lincolnshire Council,http://statistics.data.gov.uk/id/local-authority/00FC),Chief Executive,Ad Law,Coroners,Other Agencies,Post Mortems,PJ148,24/11/2016,440363,1161.6,REVENUE,REDACTED PERSONAL INFORMATION,REDACTED PERSONAL INFORMATION
North East Lincolnshire Council,http://statistics.data.gov.uk/id/local-authority/00FC),Chief Executive,Ad Law,Coroners,Other Agencies,Post Mortems,PJ148,01/11/2016,436759,1839.2,REVENUE,REDACTED PERSONAL INFORMATION,REDACTED PERSONAL INFORMATION
North East Lincolnshire Council,http://statistics.data.gov.uk/id/local-authority/00FC),Chief Executive,Ad Law,Coroners,Other Agencies,Post Mortems,PJ148,01/11/2016,436724,683.6,REVENUE,REDACTED PERSONAL INFORMATION,REDACTED PERSONAL INFORMATION
North East Lincolnshire Council,http://statistics.data.gov.uk/id/local-authority/00FC),Chief Executive,Ad Law,Coroners,Other Agencies,Post Mortems,PJ148,03/11/2016,436725,753.6,REVENUE,REDACTED PERSONAL INFORMATION,REDACTED PERSONAL INFORMATION
North East Lincolnshire Council,http://statistics.data.gov.uk/id/local-authority/00FC),Chief Executive,Ad Law,Coroners,Other Agencies,Post Mortems,PJ148,24/11/2016,440365,314.42,REVENUE,SHEFFIELD TEACHING HOSPITALS NHS TRUST,101211
North East Lincolnshire Council,http://statistics.data.gov.uk/id/local-authority/00FC),Chief Executive,Ad Law,Coroners,Other Agencies,Post Mortems,PJ148,08/11/2016,437450,276.9,REVENUE,MARTA COHEN LTD,110632
North East Lincolnshire Council,http://statistics.data.gov.uk/id/local-authority/00FC),Chief Executive,Ad Law,Coroners,Other Agencies,Post Mortems,PJ148,24/11/2016,440382,276.9,REVENUE,MARTA COHEN LTD,110632
North East Lincolnshire Council,http://statistics.data.gov.uk/id/local-authority/00FC),Chief Executive,Ad Law,Coroners,Other Agencies,Post Mortems,PJ148,30/11/2016,440999,276.9,REVENUE,REDACTED PERSONAL INFORMATION,REDACTED PERSONAL INFORMATION
North East Lincolnshire Council,http://statistics.data.gov.uk/id/local-authority/00FC),Chief Executive,Ad Law,Legal Services,Indirect Employee Expenses,Professional Fees - Employees,EB115,10/11/2016,454839,322,REVENUE,REDACTED PERSONAL INFORMATION,REDACTED PERSONAL INFORMATION
North East Lincolnshire Council,http://statistics.data.gov.uk/id/local-authority/00FC),Chief Executive,Ad Law,Legal Services,Indirect Employee Expenses,Professional Fees - Employees,EB115,17/11/2016,439491,322,REVENUE,MR JULIAN BAILEY,128727
North East Lincolnshire Council,http://statistics.data.gov.uk/id/local-authority/00FC),Chief Executive,Ad Law,Legal Services,Indirect Employee Expenses,Professional Fees - Employees,EB115,10/11/2016,437848,515,REVENUE,LAW SOCIETY,123683
North East Lincolnshire Council,http://statistics.data.gov.uk/id/local-authority/00FC),Chief Executive,Ad Law,Legal Services,Miscellaneous Expenses,Legal Fees - General,LL103,24/11/2016,440539,400,REVENUE,COURT OF PROTECTION,135146
North East Lincolnshire Council,http://statistics.data.gov.uk/id/local-authority/00FC),Chief Executive,Ad Law,Legal Services,Miscellaneous Expenses,Legal Fees - General,LL103,24/11/2016,440538,400,REVENUE,COURT OF PROTECTION,135146
North East Lincolnshire Council,http://statistics.data.gov.uk/id/local-authority/00FC),Chief Executive,Ad Law,Legal Services,Miscellaneous Expenses,Legal Fees - General,LL103,24/11/2016,440534,400,REVENUE,COURT OF PROTECTION,135146
North East Lincolnshire Council,http://statistics.data.gov.uk/id/local-authority/00FC),Chief Executive,Ad Law,Legal Services,Miscellaneous Expenses,Legal Fees - General,LL103,24/11/2016,440541,400,REVENUE,COURT OF PROTECTION,135146
North East Lincolnshire Council,http://statistics.data.gov.uk/id/local-authority/00FC),Chief Executive,Ad Law,Legal Services,Miscellaneous Expenses,Legal Fees - General,LL103,24/11/2016,440540,400,REVENUE,COURT OF PROTECTION,135146
North East Lincolnshire Council,http://statistics.data.gov.uk/id/local-authority/00FC),Chief Executive,Ad Law,Legal Services,Consultancy,Consultancy,PL101,03/11/2016,432682,1465,REVENUE,BOND DICKINSON LLP,121775
North East Lincolnshire Council,http://statistics.data.gov.uk/id/local-authority/00FC),Chief Executive,Ad Law,Legal Services,Consultancy,Consultancy,PL101,03/11/2016,437089,2758,REVENUE,BOND DICKINSON LLP,121775
North East Lincolnshire Council,http://statistics.data.gov.uk/id/local-authority/00FC),Chief Executive,Ad Law,Legal Services,Miscellaneous Expenses,Legal Fees - General,LL103,24/11/2016,440421,279,REVENUE,MR ALASTAIR W MACDONALD,135540
North East Lincolnshire Council,http://statistics.data.gov.uk/id/local-authority/00FC),Chief Executive,Ad Law,Legal Services,Miscellaneous Expenses,Legal Fees - General,LL103,17/11/2016,439353,433.17,REVENUE,PROFESSOR ANN M MORTIMER,111064
North East Lincolnshire Council,http://statistics.data.gov.uk/id/local-authority/00FC),Chief Executive,Ad Law,Legal Services,Miscellaneous Expenses,Legal Fees - General,LL103,21/11/2016,439359,595,REVENUE,MS LINDA CAINS,126873
North East Lincolnshire Council,http://statistics.data.gov.uk/id/local-authority/00FC),Chief Executive,Ad Law,Legal Services,Miscellaneous Expenses,Legal Fees - General,LL103,15/11/2016,438760,336.28,REVENUE,MR PAUL D HUNT,107261
North East Lincolnshire Council,http://statistics.data.gov.uk/id/local-authority/00FC),Chief Executive,Ad Law,Legal Services,Miscellaneous Expenses,Legal Fees - General,LL103,10/11/2016,434104,1575,REVENUE,MISS JACQUI THOMAS,129005
North East Lincolnshire Council,http://statistics.data.gov.uk/id/local-authority/00FC),Chief Executive,Ad Law,Legal Services,Miscellaneous Expenses,Legal Fees - General,LL103,28/11/2016,436622,566.93,REVENUE,BG SOLICITORS LLP,100514
North East Lincolnshire Council,http://statistics.data.gov.uk/id/local-authority/00FC),Chief Executive,Ad Law,Legal Services,Miscellaneous Expenses,Legal Fees - General,LL103,07/11/2016,437502,2052.5,REVENUE,MR MICHAEL S BURDON,104432
North East Lincolnshire Council,http://statistics.data.gov.uk/id/local-authority/00FC),Chief Executive,Ad Law,Legal Services,Miscellaneous Expenses,Legal Fees - General,LL103,03/11/2016,437499,4525,REVENUE,MR MARK WATTERSON,109973
North East Lincolnshire Council,http://statistics.data.gov.uk/id/local-authority/00FC),Chief Executive,Ad Law,Legal Services,Miscellaneous Expenses,Legal Fees - General,LL103,07/11/2016,437501,1258,REVENUE,MR JONATHAN C WILSON,123960
North East Lincolnshire Council,http://statistics.data.gov.uk/id/local-authority/00FC),Chief Executive,Ad Law,Legal Services,Miscellaneous Expenses,Legal Fees - General,LL103,08/11/2016,437519,825,REVENUE,REAGAN PERSAUD,135194
North East Lincolnshire Council,http://statistics.data.gov.uk/id/local-authority/00FC),Chief Executive,Ad Law,Legal Services,Miscellaneous Expenses,Legal Fees - General,LL103,07/11/2016,437515,620,REVENUE,REAGAN PERSAUD,135194
North East Lincolnshire Council,http://statistics.data.gov.uk/id/local-authority/00FC),Chief Executive,Ad Law,Legal Services,Miscellaneous Expenses,Legal Fees - General,LL103,07/11/2016,437490,450,REVENUE,ELLA ANDERSON,135195
North East Lincolnshire Council,http://statistics.data.gov.uk/id/local-authority/00FC),Chief Executive,Ad Law,Legal Services,Miscellaneous Expenses,Legal Fees - General,LL103,08/11/2016,437491,280,REVENUE,MISS JACQUI THOMAS,129005
North East Lincolnshire Council,http://statistics.data.gov.uk/id/local-authority/00FC),Chief Executive,Ad Law,Legal Services,Miscellaneous Expenses,Legal Fees - General,LL103,08/11/2016,437426,266.22,REVENUE,J L HARPHAM LTD,112780
North East Lincolnshire Council,http://statistics.data.gov.uk/id/local-authority/00FC),Chief Executive,Ad Law,Legal Services,Miscellaneous Expenses,Legal Fees - General,LL103,08/11/2016,437480,632.12,REVENUE,"RICHARD SHEPHERD BSc,MB,BS,DMJ,FRCPATH,FFFLM",111444
North East Lincolnshire Council,http://statistics.data.gov.uk/id/local-authority/00FC),Chief Executive,Ad Law,Legal Services,Miscellaneous Expenses,Legal Fees - General,LL103,03/11/2016,437492,530,REVENUE,MR MARK WATTERSON,109973
North East Lincolnshire Council,http://statistics.data.gov.uk/id/local-authority/00FC),Chief Executive,Ad Law,Legal Services,Miscellaneous Expenses,Legal Fees - General,LL103,07/11/2016,437488,261.25,REVENUE,REAGAN PERSAUD,135194
North East Lincolnshire Council,http://statistics.data.gov.uk/id/local-authority/00FC),Chief Executive,Ad Law,Legal Services,Miscellaneous Expenses,Legal Fees - General,LL103,08/11/2016,437485,1026,REVENUE,DR RUSSELL AUSTIN,126865
North East Lincolnshire Council,http://statistics.data.gov.uk/id/local-authority/00FC),Chief Executive,Ad Law,Legal Services,Miscellaneous Expenses,Legal Fees - General,LL103,10/11/2016,438072,510,REVENUE,MR JAMES A GOODWIN,123497
North East Lincolnshire Council,http://statistics.data.gov.uk/id/local-authority/00FC),Chief Executive,Ad Law,Legal Services,Miscellaneous Expenses,Legal Fees - General,LL103,15/11/2016,438055,1840,REVENUE,DR ELLIS MOSLEY,104893
North East Lincolnshire Council,http://statistics.data.gov.uk/id/local-authority/00FC),Chief Executive,Ad Law,Legal Services,Miscellaneous Expenses,Legal Fees - General,LL103,10/11/2016,438081,762,REVENUE,DR GUPTA,126708
North East Lincolnshire Council,http://statistics.data.gov.uk/id/local-authority/00FC),Chief Executive,Ad Law,Legal Services,Miscellaneous Expenses,Legal Fees - General,LL103,10/11/2016,438077,270,REVENUE,MISS JACQUI THOMAS,129005
North East Lincolnshire Council,http://statistics.data.gov.uk/id/local-authority/00FC),Chief Executive,Ad Law,Legal Services,Miscellaneous Expenses,Legal Fees - General,LL103,10/11/2016,438078,560,REVENUE,MISS JACQUI THOMAS,129005
North East Lincolnshire Council,http://statistics.data.gov.uk/id/local-authority/00FC),Chief Executive,Ad Law,Legal Services,Miscellaneous Expenses,Legal Fees - General,LL103,10/11/2016,438073,424,REVENUE,LEXTOX DRUG & ALCOHOL TESTING,125634
North East Lincolnshire Council,http://statistics.data.gov.uk/id/local-authority/00FC),Chief Executive,Ad Law,Legal Services,Miscellaneous Expenses,Legal Fees - General,LL103,10/11/2016,438069,474,REVENUE,LEXTOX DRUG & ALCOHOL TESTING,125634
North East Lincolnshire Council,http://statistics.data.gov.uk/id/local-authority/00FC),Chief Executive,Ad Law,Legal Services,Miscellaneous Expenses,Legal Fees - General,LL103,10/11/2016,438087,469.71,REVENUE,J L HARPHAM LTD,112780
North East Lincolnshire Council,http://statistics.data.gov.uk/id/local-authority/00FC),Chief Executive,Ad Law,Legal Services,Miscellaneous Expenses,Legal Fees - General,LL103,10/11/2016,438071,279.7,REVENUE,JOHN BARKERS SOLICITORS,100928
North East Lincolnshire Council,http://statistics.data.gov.uk/id/local-authority/00FC),Chief Executive,Ad Law,Legal Services,Miscellaneous Expenses,Legal Fees - General,LL103,15/11/2016,438057,795,REVENUE,MR MICHAEL S BURDON,104432
North East Lincolnshire Council,http://statistics.data.gov.uk/id/local-authority/00FC),Chief Executive,Ad Law,Legal Services,Miscellaneous Expenses,Legal Fees - General,LL103,10/11/2016,438191,350,REVENUE,REAGAN PERSAUD,135194
North East Lincolnshire Council,http://statistics.data.gov.uk/id/local-authority/00FC),Chief Executive,Ad Law,Legal Services,Miscellaneous Expenses,Legal Fees - General,LL103,10/11/2016,438195,440,REVENUE,REAGAN PERSAUD,135194
North East Lincolnshire Council,http://statistics.data.gov.uk/id/local-authority/00FC),Chief Executive,Ad Law,Legal Services,Miscellaneous Expenses,Legal Fees - General,LL103,14/11/2016,438749,8223.63,REVENUE,MISS TARYN LEE QC,127409
North East Lincolnshire Council,http://statistics.data.gov.uk/id/local-authority/00FC),Chief Executive,Ad Law,Legal Services,Miscellaneous Expenses,Legal Fees - General,LL103,15/11/2016,438743,365.38,REVENUE,PROFESSOR ANN M MORTIMER,111064
North East Lincolnshire Council,http://statistics.data.gov.uk/id/local-authority/00FC),Chief Executive,Ad Law,Legal Services,Miscellaneous Expenses,Legal Fees - General,LL103,15/11/2016,438745,450,REVENUE,DAVID PHILLIPS,103505
North East Lincolnshire Council,http://statistics.data.gov.uk/id/local-authority/00FC),Chief Executive,Ad Law,Legal Services,Miscellaneous Expenses,Legal Fees - General,LL103,15/11/2016,439011,6786.74,REVENUE,MR DARREN HOWE QC,130272
North East Lincolnshire Council,http://statistics.data.gov.uk/id/local-authority/00FC),Deputy Chief Executive,Ad Early Intervention,Integrated Youth Services,Contributions To Provisions,Contributions - Third Sector,LK102,14/11/2016,438406,999.5,REVENUE,GHETTOPARK LIMITED,123682
North East Lincolnshire Council,http://statistics.data.gov.uk/id/local-authority/00FC),Deputy Chief Executive,Ad Early Intervention,Integrated Youth Services,Contributions To Provisions,Contributions - Third Sector,LK102,14/11/2016,438408,1600,REVENUE,GHETTOPARK LIMITED,123682
North East Lincolnshire Council,http://statistics.data.gov.uk/id/local-authority/00FC),Deputy Chief Executive,Ad Early Intervention,Integrated Youth Services,Contributions To Provisions,Contributions - Third Sector,LK102,10/11/2016,438412,600,REVENUE,GHETTOPARK LIMITED,123682
North East Lincolnshire Council,http://statistics.data.gov.uk/id/local-authority/00FC),Deputy Chief Executive,Ad Early Intervention,Integrated Youth Services,Indirect Employee Expenses,Staff Training,EB122,10/11/2016,437617,595,REVENUE,UNITAS,114657
North East Lincolnshire Council,http://statistics.data.gov.uk/id/local-authority/00FC),Deputy Chief Executive,Ad Early Intervention,Integrated Youth Services,Rents,Room Hire,GC103,15/11/2016,438746,270,REVENUE,CPO MEDIA,102186
North East Lincolnshire Council,http://statistics.data.gov.uk/id/local-authority/00FC),Deputy Chief Executive,Ad Early Intervention,Integrated Youth Services,Catering,Provisions,LB101,03/11/2016,437086,529.95,REVENUE,YOUTH OFFENDING SERVICES,110694
North East Lincolnshire Council,http://statistics.data.gov.uk/id/local-authority/00FC),Deputy Chief Executive,Ad Early Intervention,Integrated Youth Services,Contributions To Provisions,Contributions - Other,LK103,15/11/2016,437629,700,REVENUE,MA COUNSELLING,133564
North East Lincolnshire Council,http://statistics.data.gov.uk/id/local-authority/00FC),Deputy Chief Executive,Ad Early Intervention,Integrated Youth Services,Voluntary Associations,Third Pp - Third Sector,PF101,15/11/2016,438691,767.69,REVENUE,VOLUNTARY ACTION NORTH EAST LINCOLNSHIRE,103631
North East Lincolnshire Council,http://statistics.data.gov.uk/id/local-authority/00FC),Deputy Chief Executive,Ad Early Intervention,Childrens Health,Equip / Furniture / Materials,Office Equipment - Purchase,LA110,08/11/2016,438189,876,REVENUE,COMPLETE OFFICE SOLUTIONS (UK) LTD,123664
North East Lincolnshire Council,http://statistics.data.gov.uk/id/local-authority/00FC),Deputy Chief Executive,Ad Early Intervention,Childrens Health,Communications And Computing,Computer H/Ware - Purchases,LF105,08/11/2016,437850,295.8,REVENUE,COMPUTACENTER UK LTD,101303
North East Lincolnshire Council,http://statistics.data.gov.uk/id/local-authority/00FC),Deputy Chief Executive,Ad Early Intervention,Childrens Health,Private Contractors,Third Party Prov - Private,PH101,17/11/2016,439073,4165,REVENUE,APT TRAINING & CONSULTANCY LTD,133138
North East Lincolnshire Council,http://statistics.data.gov.uk/id/local-authority/00FC),Deputy Chief Executive,Ad Early Intervention,Childrens Health,Private Contractors,Third Party Prov - Private,PH101,17/11/2016,439088,5907.2,REVENUE,LEICESTERSHIRE HEALTH INFORMATICS SERVICE,132969
North East Lincolnshire Council,http://statistics.data.gov.uk/id/local-authority/00FC),Deputy Chief Executive,Ad Early Intervention,Childrens Health,Private Contractors,Third Party Prov - Private,PH101,14/11/2016,438396,2985,REVENUE,APT TRAINING & CONSULTANCY LTD,133138
North East Lincolnshire Council,http://statistics.data.gov.uk/id/local-authority/00FC),Deputy Chief Executive,Ad Early Intervention,Childrens Health,Private Contractors,Third Party Prov - Private,PH101,14/11/2016,438395,4165,REVENUE,APT TRAINING & CONSULTANCY LTD,133138
North East Lincolnshire Council,http://statistics.data.gov.uk/id/local-authority/00FC),Deputy Chief Executive,Ad Early Intervention,Childrens Health,Private Contractors,Third Party Prov - Private,PH101,14/11/2016,438394,2985,REVENUE,APT TRAINING & CONSULTANCY LTD,133138
North East Lincolnshire Council,http://statistics.data.gov.uk/id/local-authority/00FC),Deputy Chief Executive,Ad Early Intervention,Childrens Health,Private Contractors,Third Party Prov - Private,PH101,28/11/2016,440968,2985,REVENUE,APT TRAINING & CONSULTANCY LTD,133138
North East Lincolnshire Council,http://statistics.data.gov.uk/id/local-authority/00FC),Deputy Chief Executive,Ad Early Intervention,Childrens Health,Communications And Computing,Computer H/Ware - Purchases,LF105,08/11/2016,437851,591.6,REVENUE,COMPUTACENTER UK LTD,101303
North East Lincolnshire Council,http://statistics.data.gov.uk/id/local-authority/00FC),Deputy Chief Executive,Ad Early Intervention,Childrens Health,Communications And Computing,Telephones,LF112,24/11/2016,440674,730.54,REVENUE,ETS COMMUNICATION LTD,105452
North East Lincolnshire Council,http://statistics.data.gov.uk/id/local-authority/00FC),Deputy Chief Executive,Ad Early Intervention,Childrens Health,Communications And Computing,Telephones,LF112,24/11/2016,440742,-690.17,REVENUE,ETS COMMUNICATION LTD,105452
North East Lincolnshire Council,http://statistics.data.gov.uk/id/local-authority/00FC),Deputy Chief Executive,Ad Early Intervention,Childrens Health,Communications And Computing,Telephones,LF112,10/11/2016,437177,690.17,REVENUE,ETS COMMUNICATION LTD,105452
North East Lincolnshire Council,http://statistics.data.gov.uk/id/local-authority/00FC),Deputy Chief Executive,Ad Early Intervention,Childrens Health,Miscellaneous Expenses,Other Expenses General,LL119,17/11/2016,439060,535,REVENUE,W R CULLUM,100811
North East Lincolnshire Council,http://statistics.data.gov.uk/id/local-authority/00FC),Deputy Chief Executive,Ad Early Intervention,Childrens Health,Miscellaneous Expenses,Legal Fees - General,LL103,08/11/2016,438066,350,REVENUE,BG SOLICITORS LLP,100514
North East Lincolnshire Council,http://statistics.data.gov.uk/id/local-authority/00FC),Deputy Chief Executive,Ad Early Intervention,Childrens Health,Private Contractors,Third Party Prov - Private,PH101,28/11/2016,431589,16000,REVENUE,KIER BUSINESS SERVICES LIMITED (EMBED),133667
North East Lincolnshire Council,http://statistics.data.gov.uk/id/local-authority/00FC),Deputy Chief Executive,Ad Early Intervention,Childrens Health,Private Contractors,Contract Payments,PH105,24/11/2016,440389,1057,REVENUE,N LINCS & GOOLE HOSPITALS NHS,111074
North East Lincolnshire Council,http://statistics.data.gov.uk/id/local-authority/00FC),Deputy Chief Executive,Ad Early Intervention,Family Hubs,Other Agencies,Other,PJ121,14/11/2016,438370,1078,REVENUE,N LINCS & GOOLE HOSPITALS NHS,111074
North East Lincolnshire Council,http://statistics.data.gov.uk/id/local-authority/00FC),Deputy Chief Executive,Ad Early Intervention,Family Hubs,Energy Costs,Electricity,GB102,14/11/2016,437605,1222.12,REVENUE,REYNOLDS PRIMARY ACADEMY,122175
North East Lincolnshire Council,http://statistics.data.gov.uk/id/local-authority/00FC),Deputy Chief Executive,Ad Early Intervention,Family Hubs,Energy Costs,Gas,GB101,10/11/2016,437604,338.88,REVENUE,REYNOLDS PRIMARY ACADEMY,122175
North East Lincolnshire Council,http://statistics.data.gov.uk/id/local-authority/00FC),Deputy Chief Executive,Ad Early Intervention,Family Hubs,Rates,Rates,GD101,24/11/2016,440425,10188.5,REVENUE,NELC,103022
North East Lincolnshire Council,http://statistics.data.gov.uk/id/local-authority/00FC),Deputy Chief Executive,Ad Early Intervention,Family Hubs,Water Services,Water,GE101,14/11/2016,437602,459,REVENUE,REYNOLDS PRIMARY ACADEMY,122175
North East Lincolnshire Council,http://statistics.data.gov.uk/id/local-authority/00FC),Deputy Chief Executive,Ad Early Intervention,Family Hubs,Cleaning And Domestic Supplies,Cleaning - Services,GH102,21/11/2016,439889,310,REVENUE,LLEWELLYN LTD,135410
North East Lincolnshire Council,http://statistics.data.gov.uk/id/local-authority/00FC),Deputy Chief Executive,Ad Early Intervention,Family Hubs,Equip / Furniture / Materials,Non-Teaching Resources,LA118,28/11/2016,438744,303.68,REVENUE,FINDEL EDUCATION LTD,101237
North East Lincolnshire Council,http://statistics.data.gov.uk/id/local-authority/00FC),Deputy Chief Executive,Ad Early Intervention,Family Hubs,Equip / Furniture / Materials,Non-Teaching Resources,LA118,10/11/2016,437583,400,REVENUE,BOOKPOINT LIMITED,100664
North East Lincolnshire Council,http://statistics.data.gov.uk/id/local-authority/00FC),Deputy Chief Executive,Ad Early Intervention,Family Hubs,Other Agencies,Educational Visits,PJ152,15/11/2016,438708,1130,REVENUE,MILLMAN COACHES,100700
North East Lincolnshire Council,http://statistics.data.gov.uk/id/local-authority/00FC),Deputy Chief Executive,Ad Early Intervention,Family Hubs,Equip / Furniture / Materials,Non-Teaching Resources,LA118,03/11/2016,433234,460.4,REVENUE,DOLLYWOOD FOUNDATION OF THE UK,129658
North East Lincolnshire Council,http://statistics.data.gov.uk/id/local-authority/00FC),Deputy Chief Executive,Ad Early Intervention,Family Hubs,Other Agencies,Child Care Payments,PJ104,24/11/2016,440388,704.8,REVENUE,IMMINGHAM DAY NURSERY,100998
North East Lincolnshire Council,http://statistics.data.gov.uk/id/local-authority/00FC),Deputy Chief Executive,Ad Early Intervention,Family Hubs,Catering,Provisions,LB101,08/11/2016,438162,420,REVENUE,MOISERS (GRIMSBY) LTD,100746
North East Lincolnshire Council,http://statistics.data.gov.uk/id/local-authority/00FC),Deputy Chief Executive,Ad Early Intervention,Family Hubs,Other Agencies,Further Ed Emp & Training,PJ130,10/11/2016,438224,780,REVENUE,FOREFRONT TRAINING LTD,105501
North East Lincolnshire Council,http://statistics.data.gov.uk/id/local-authority/00FC),Deputy Chief Executive,Ad Early Intervention,Family Hubs,Catering,Provisions,LB101,28/11/2016,439651,1000,REVENUE,TESCO STORES LIMITED,102576
North East Lincolnshire Council,http://statistics.data.gov.uk/id/local-authority/00FC),Deputy Chief Executive,Ad Early Intervention,Family Hubs,Other Agencies,Child Care Payments,PJ104,03/11/2016,437176,1172,REVENUE,CLEETHORPES CHILDCARE,101591
North East Lincolnshire Council,http://statistics.data.gov.uk/id/local-authority/00FC),Deputy Chief Executive,Ad Early Intervention,Community Learning Services,Direct Employee Expenses,Pay,EA101,03/11/2016,437577,767.69,REVENUE,VOLUNTARY ACTION NORTH EAST LINCOLNSHIRE,103631
North East Lincolnshire Council,http://statistics.data.gov.uk/id/local-authority/00FC),Deputy Chief Executive,Ad Early Intervention,Community Learning Services,Voluntary Associations,Third Pp - Third Sector,PF101,22/11/2016,440407,767.69,REVENUE,VOLUNTARY ACTION NORTH EAST LINCOLNSHIRE,103631
North East Lincolnshire Council,http://statistics.data.gov.uk/id/local-authority/00FC),Deputy Chief Executive,Ad Early Intervention,Community Learning Services,Miscellaneous Expenses,Activities - Service Users,LL114,24/11/2016,440640,1938,REVENUE,REDACTED PERSONAL INFORMATION,REDACTED PERSONAL INFORMATION
North East Lincolnshire Council,http://statistics.data.gov.uk/id/local-authority/00FC),Deputy Chief Executive,Ad Early Intervention,Community Learning Services,Miscellaneous Expenses,Activities - Service Users,LL114,24/11/2016,440656,1938,REVENUE,REDACTED PERSONAL INFORMATION,REDACTED PERSONAL INFORMATION
North East Lincolnshire Council,http://statistics.data.gov.uk/id/local-authority/00FC),Deputy Chief Executive,Ad Early Intervention,Community Learning Services,Miscellaneous Expenses,Activities - Service Users,LL114,17/11/2016,439529,660,REVENUE,STAGECOACH SERVICES,101404
North East Lincolnshire Council,http://statistics.data.gov.uk/id/local-authority/00FC),Deputy Chief Executive,Ad Early Intervention,Community Learning Services,Private Contractors,Third Party Prov - Private,PH101,03/11/2016,437529,1440,REVENUE,IMMINGHAM DAY NURSERY,100998
North East Lincolnshire Council,http://statistics.data.gov.uk/id/local-authority/00FC),Deputy Chief Executive,Ad Early Intervention,Community Learning Services,Private Contractors,Third Party Prov - Private,PH101,03/11/2016,437531,1800,REVENUE,IMMINGHAM DAY NURSERY,100998
North East Lincolnshire Council,http://statistics.data.gov.uk/id/local-authority/00FC),Deputy Chief Executive,Ad Early Intervention,Community Learning Services,Rents,Room Hire,GC103,14/11/2016,437578,952.7,REVENUE,CENTRE4 LIMITED,126893
North East Lincolnshire Council,http://statistics.data.gov.uk/id/local-authority/00FC),Deputy Chief Executive,Ad Early Intervention,Community Learning Services,Equip / Furniture / Materials,Vending Machines,LA115,22/11/2016,440405,303,REVENUE,SIEMENS FINANCIAL SERVICES LTD,101161
North East Lincolnshire Council,http://statistics.data.gov.uk/id/local-authority/00FC),Deputy Chief Executive,Ad Early Intervention,Community Learning Services,Communications And Computing,Computer S/Ware - Licences,LF103,24/11/2016,440647,15575,REVENUE,TRIBAL EDUCATION LIMITED,103641
North East Lincolnshire Council,http://statistics.data.gov.uk/id/local-authority/00FC),Deputy Chief Executive,Ad Early Intervention,Community Learning Services,Miscellaneous Expenses,Exam Fees,LL115,01/11/2016,436765,490.5,REVENUE,ASSESSMENT AND QUALIFICATIONS ALLIANCE,101139
North East Lincolnshire Council,http://statistics.data.gov.uk/id/local-authority/00FC),Deputy Chief Executive,Ad Early Intervention,Community Learning Services,Miscellaneous Expenses,Exam Fees,LL115,28/11/2016,440690,-200,REVENUE,CITY & GUILDS,100645
North East Lincolnshire Council,http://statistics.data.gov.uk/id/local-authority/00FC),Deputy Chief Executive,Ad Early Intervention,Community Learning Services,Miscellaneous Expenses,Exam Fees,LL115,24/11/2016,440665,-20,REVENUE,NCFE-CACHE,103423
North East Lincolnshire Council,http://statistics.data.gov.uk/id/local-authority/00FC),Deputy Chief Executive,Ad Early Intervention,Community Learning Services,Miscellaneous Expenses,Exam Fees,LL115,24/11/2016,440667,-20,REVENUE,NCFE-CACHE,103423
North East Lincolnshire Council,http://statistics.data.gov.uk/id/local-authority/00FC),Deputy Chief Executive,Ad Early Intervention,Community Learning Services,Miscellaneous Expenses,Exam Fees,LL115,24/11/2016,440691,-170.9,REVENUE,OCR,101048
North East Lincolnshire Council,http://statistics.data.gov.uk/id/local-authority/00FC),Deputy Chief Executive,Ad Early Intervention,Integ Local Service Delivery,Other Agencies,Nursery Educ Fund - Standard,PJ139,07/11/2016,437575,499.2,REVENUE,WALTHAM LEAS PRE-SCHOOL,108236
North East Lincolnshire Council,http://statistics.data.gov.uk/id/local-authority/00FC),Deputy Chief Executive,Ad Early Intervention,Integ Local Service Delivery,Other Agencies,Nursery Educ Fund - Standard,PJ139,01/11/2016,436019,1619.1,REVENUE,PRECIOUS TIMES CHILDCARE SERVICES,101420
North East Lincolnshire Council,http://statistics.data.gov.uk/id/local-authority/00FC),Deputy Chief Executive,Ad Early Intervention,Integ Local Service Delivery,Other Agencies,Nursery Educ Fund - Standard,PJ139,22/11/2016,457155,953.55,REVENUE,REDACTED PERSONAL INFORMATION,REDACTED PERSONAL INFORMATION
North East Lincolnshire Council,http://statistics.data.gov.uk/id/local-authority/00FC),Deputy Chief Executive,Ad Early Intervention,Integ Local Service Delivery,Private Contractors,Third Party Prov - Private,PH101,28/11/2016,440733,330,REVENUE,T G FIELD,107781
North East Lincolnshire Council,http://statistics.data.gov.uk/id/local-authority/00FC),Deputy Chief Executive,Ad Early Intervention,Child Protection / Safeguardin,Private Contractors,Third Party Prov - Private,PH101,24/11/2016,440356,509.21,REVENUE,HE WORDS,122711
North East Lincolnshire Council,http://statistics.data.gov.uk/id/local-authority/00FC),Deputy Chief Executive,Ad Early Intervention,Ad Early Intervention,Expenses,Course/Conf Accom - Employees,LH102,14/11/2016,438425,1155,REVENUE,MA EDUCATION LTD,105566
North East Lincolnshire Council,http://statistics.data.gov.uk/id/local-authority/00FC),Deputy Chief Executive,Ad Early Intervention,Palliative / Complex Care,Private Contractors,Third Party Prov - Private,PH101,10/11/2016,434857,5120,REVENUE,ST ANDREWS HOSPICE,103069
North East Lincolnshire Council,http://statistics.data.gov.uk/id/local-authority/00FC),Deputy Chief Executive,Ad Early Intervention,Palliative / Complex Care,Private Contractors,Third Party Prov - Private,PH101,10/11/2016,434998,842.82,REVENUE,THORNBURY NURSING SERVICES,133994
North East Lincolnshire Council,http://statistics.data.gov.uk/id/local-authority/00FC),Deputy Chief Executive,Ad Early Intervention,Palliative / Complex Care,Private Contractors,Third Party Prov - Private,PH101,10/11/2016,434996,847.3,REVENUE,THORNBURY NURSING SERVICES,133994
North East Lincolnshire Council,http://statistics.data.gov.uk/id/local-authority/00FC),Deputy Chief Executive,Ad Early Intervention,Palliative / Complex Care,Private Contractors,Third Party Prov - Private,PH101,10/11/2016,434989,893.14,REVENUE,THORNBURY NURSING SERVICES,133994
North East Lincolnshire Council,http://statistics.data.gov.uk/id/local-authority/00FC),Deputy Chief Executive,Ad Early Intervention,Palliative / Complex Care,Private Contractors,Third Party Prov - Private,PH101,10/11/2016,435338,890.42,REVENUE,THORNBURY NURSING SERVICES,133994
North East Lincolnshire Council,http://statistics.data.gov.uk/id/local-authority/00FC),Deputy Chief Executive,Ad Early Intervention,Palliative / Complex Care,Private Contractors,Third Party Prov - Private,PH101,10/11/2016,438089,841.7,REVENUE,THORNBURY NURSING SERVICES,133994
North East Lincolnshire Council,http://statistics.data.gov.uk/id/local-authority/00FC),Deputy Chief Executive,Ad Early Intervention,Palliative / Complex Care,Private Contractors,Third Party Prov - Private,PH101,10/11/2016,438088,867.79,REVENUE,THORNBURY NURSING SERVICES,133994
North East Lincolnshire Council,http://statistics.data.gov.uk/id/local-authority/00FC),Deputy Chief Executive,Ad Early Intervention,Palliative / Complex Care,Private Contractors,Third Party Prov - Private,PH101,10/11/2016,438092,840.86,REVENUE,THORNBURY NURSING SERVICES,133994
North East Lincolnshire Council,http://statistics.data.gov.uk/id/local-authority/00FC),Deputy Chief Executive,Ad Early Intervention,Palliative / Complex Care,Private Contractors,Third Party Prov - Private,PH101,10/11/2016,438091,838.62,REVENUE,THORNBURY NURSING SERVICES,133994
North East Lincolnshire Council,http://statistics.data.gov.uk/id/local-authority/00FC),Deputy Chief Executive,Ad Early Intervention,Palliative / Complex Care,Private Contractors,Third Party Prov - Private,PH101,10/11/2016,438095,819.3,REVENUE,THORNBURY NURSING SERVICES,133994
North East Lincolnshire Council,http://statistics.data.gov.uk/id/local-authority/00FC),Deputy Chief Executive,Ad Early Intervention,Palliative / Complex Care,Private Contractors,Third Party Prov - Private,PH101,21/11/2016,438155,1952,REVENUE,THE ROWAN MANAGED ACCOUNT,127025
North East Lincolnshire Council,http://statistics.data.gov.uk/id/local-authority/00FC),Deputy Chief Executive,Ad Early Intervention,Palliative / Complex Care,Private Contractors,Third Party Prov - Private,PH101,17/11/2016,439343,1376.64,REVENUE,ST ANDREWS HOSPICE,103069
North East Lincolnshire Council,http://statistics.data.gov.uk/id/local-authority/00FC),Deputy Chief Executive,Ad Early Intervention,Palliative / Complex Care,Private Contractors,Third Party Prov - Private,PH101,17/11/2016,439343,3399.2,REVENUE,ST ANDREWS HOSPICE,103069
North East Lincolnshire Council,http://statistics.data.gov.uk/id/local-authority/00FC),Deputy Chief Executive,Ad Early Intervention,Palliative / Complex Care,Private Contractors,Third Party Prov - Private,PH101,28/11/2016,440686,257.28,REVENUE,OPTIONS BARTON,105590
North East Lincolnshire Council,http://statistics.data.gov.uk/id/local-authority/00FC),Deputy Chief Executive,Ad Early Intervention,Palliative / Complex Care,Private Contractors,Third Party Prov - Private,PH101,28/11/2016,440689,514.56,REVENUE,OPTIONS BARTON,105590
North East Lincolnshire Council,http://statistics.data.gov.uk/id/local-authority/00FC),Deputy Chief Executive,Ad Early Intervention,Childrens Social Care Innov,Direct Employee Expenses,Agency Staff,EA105,08/11/2016,438038,1747.95,REVENUE,VOLUNTARY ACTION NORTH EAST LINCOLNSHIRE,103631
North East Lincolnshire Council,http://statistics.data.gov.uk/id/local-authority/00FC),Deputy Chief Executive,Ad Early Intervention,Childrens Social Care Innov,Equip / Furniture / Materials,Office Equipment - Teaching,LA112,01/11/2016,436714,13797.64,REVENUE,TRACEY HILL TRAINING & CONSULTANCY LIMITED,121786
North East Lincolnshire Council,http://statistics.data.gov.uk/id/local-authority/00FC),Deputy Chief Executive,Ad Early Intervention,Childrens Social Care Innov,Equip / Furniture / Materials,Teaching Materials,LA117,07/11/2016,435716,4504.05,REVENUE,EJH TRAINING SERVICES LTD,131815
North East Lincolnshire Council,http://statistics.data.gov.uk/id/local-authority/00FC),Deputy Chief Executive,Ad Early Intervention,Childrens Social Care Innov,Equip / Furniture / Materials,Teaching Materials,LA117,03/11/2016,436801,5612.92,REVENUE,BEST WESTERN OAKLANDS HALL HOTEL,125098
North East Lincolnshire Council,http://statistics.data.gov.uk/id/local-authority/00FC),Deputy Chief Executive,Ad Early Intervention,Childrens Social Care Innov,Equip / Furniture / Materials,Teaching Materials,LA117,24/11/2016,440669,1038.5,REVENUE,BEST WESTERN OAKLANDS HALL HOTEL,125098
North East Lincolnshire Council,http://statistics.data.gov.uk/id/local-authority/00FC),Deputy Chief Executive,Ad Early Intervention,Childrens Social Care Innov,Equip / Furniture / Materials,Teaching Materials,LA117,10/11/2016,438108,8880,REVENUE,THE RESTORATIVE FOUNDATION,131005
North East Lincolnshire Council,http://statistics.data.gov.uk/id/local-authority/00FC),Deputy Chief Executive,Ad Early Intervention,Childrens Social Care Innov,Equip / Furniture / Materials,Teaching Materials,LA117,17/11/2016,439338,1561.2,REVENUE,MARK FINNIS TRAINING & CONSULTANCY LTD,133739
North East Lincolnshire Council,http://statistics.data.gov.uk/id/local-authority/00FC),Deputy Chief Executive,Ad Early Intervention,Childrens Social Care Innov,Contributions To Provisions,Contributions - Other,LK103,24/11/2016,440391,3922.87,REVENUE,VSC PLUS LTD,127816
North East Lincolnshire Council,http://statistics.data.gov.uk/id/local-authority/00FC),Deputy Chief Executive,Ad Early Intervention,Childrens Social Care Innov,Private Contractors,Third Party Prov - Private,PH101,07/11/2016,437590,11500,REVENUE,YORK CONSULTING,131585
North East Lincolnshire Council,http://statistics.data.gov.uk/id/local-authority/00FC),Deputy Chief Executive,Ad Early Intervention,Childrens Social Care Innov,Consultancy,Consultancy,PL101,10/11/2016,438079,2250,REVENUE,KATIE SMITH,134036
North East Lincolnshire Council,http://statistics.data.gov.uk/id/local-authority/00FC),Deputy Chief Executive,Ad Early Intervention,Childrens Social Care Innov,Consultancy,Consultancy,PL101,10/11/2016,438082,2250,REVENUE,KATE GENEVER,134306
North East Lincolnshire Council,http://statistics.data.gov.uk/id/local-authority/00FC),Deputy Chief Executive,Ad Early Intervention,Camhs Commissioned,Expenses,Course/Conf Accom - Employees,LH102,10/11/2016,438263,945.93,REVENUE,SIMUL LTD,122141
North East Lincolnshire Council,http://statistics.data.gov.uk/id/local-authority/00FC),Deputy Chief Executive,Ad Early Intervention,Camhs Commissioned,Private Contractors,Contract Payments,PH105,01/11/2016,436733,5803,REVENUE,LINCOLNSHIRE PARTNERSHIP NHS FOUNDATION TRUST,105021
North East Lincolnshire Council,http://statistics.data.gov.uk/id/local-authority/00FC),Deputy Chief Executive,Ad Early Intervention,Camhs Commissioned,Private Contractors,Third Party Prov - Private,PH101,08/11/2016,437861,190194.83,REVENUE,LINCOLNSHIRE PARTNERSHIP NHS FOUNDATION TRUST,105021
North East Lincolnshire Council,http://statistics.data.gov.uk/id/local-authority/00FC),Deputy Chief Executive,Ad Childrens Services,Access And Education Services,Contract Hire-Operating Leases,Vehicles - Contract Hire,JC101,22/11/2016,440012,550,REVENUE,LINKS TAXIS,100546
North East Lincolnshire Council,http://statistics.data.gov.uk/id/local-authority/00FC),Deputy Chief Executive,Ad Childrens Services,Access And Education Services,Contract Hire-Operating Leases,Vehicles - Contract Hire,JC101,24/11/2016,440009,495,REVENUE,LINKS TAXIS,100546
North East Lincolnshire Council,http://statistics.data.gov.uk/id/local-authority/00FC),Deputy Chief Executive,Ad Childrens Services,Access And Education Services,Contract Hire-Operating Leases,Vehicles - Contract Hire,JC101,24/11/2016,440017,710,REVENUE,LINKS TAXIS,100546
North East Lincolnshire Council,http://statistics.data.gov.uk/id/local-authority/00FC),Deputy Chief Executive,Ad Childrens Services,Access And Education Services,Contract Hire-Operating Leases,Vehicles - Contract Hire,JC101,24/11/2016,440005,660,REVENUE,LINKS TAXIS,100546
North East Lincolnshire Council,http://statistics.data.gov.uk/id/local-authority/00FC),Deputy Chief Executive,Ad Childrens Services,Access And Education Services,Contract Hire-Operating Leases,Vehicles - Contract Hire,JC101,24/11/2016,440076,420,REVENUE,COXONS CARS LIMITED,100578
North East Lincolnshire Council,http://statistics.data.gov.uk/id/local-authority/00FC),Deputy Chief Executive,Ad Childrens Services,Access And Education Services,Contract Hire-Operating Leases,Vehicles - Contract Hire,JC101,22/11/2016,440018,300,REVENUE,LINKS TAXIS,100546
North East Lincolnshire Council,http://statistics.data.gov.uk/id/local-authority/00FC),Deputy Chief Executive,Ad Childrens Services,Access And Education Services,Contract Hire-Operating Leases,Vehicles - Contract Hire,JC101,22/11/2016,439988,912,REVENUE,LINKS TAXIS,100546
North East Lincolnshire Council,http://statistics.data.gov.uk/id/local-authority/00FC),Deputy Chief Executive,Ad Childrens Services,Access And Education Services,Contract Hire-Operating Leases,Vehicles - Contract Hire,JC101,22/11/2016,439989,757.5,REVENUE,LINKS TAXIS,100546
North East Lincolnshire Council,http://statistics.data.gov.uk/id/local-authority/00FC),Deputy Chief Executive,Ad Childrens Services,Access And Education Services,Contract Hire-Operating Leases,Vehicles - Contract Hire,JC101,22/11/2016,440019,1235,REVENUE,LINKS TAXIS,100546
North East Lincolnshire Council,http://statistics.data.gov.uk/id/local-authority/00FC),Deputy Chief Executive,Ad Childrens Services,Access And Education Services,Contract Hire-Operating Leases,Vehicles - Contract Hire,JC101,10/11/2016,438117,350,REVENUE,WHEELCHAIR FRIENDLY TAXI SERVICE,101915
North East Lincolnshire Council,http://statistics.data.gov.uk/id/local-authority/00FC),Deputy Chief Executive,Ad Childrens Services,Access And Education Services,Contract Hire-Operating Leases,Vehicles - Contract Hire,JC101,10/11/2016,438126,630,REVENUE,REDACTED PERSONAL INFORMATION,REDACTED PERSONAL INFORMATION
North East Lincolnshire Council,http://statistics.data.gov.uk/id/local-authority/00FC),Deputy Chief Executive,Ad Childrens Services,Access And Education Services,Contract Hire-Operating Leases,Vehicles - Contract Hire,JC101,10/11/2016,438119,985,REVENUE,WHEELCHAIR FRIENDLY TAXI SERVICE,101915
North East Lincolnshire Council,http://statistics.data.gov.uk/id/local-authority/00FC),Deputy Chief Executive,Ad Childrens Services,Access And Education Services,Contract Hire-Operating Leases,Vehicles - Contract Hire,JC101,22/11/2016,440153,1230,REVENUE,AA RADIO CARS LTD,101222
North East Lincolnshire Council,http://statistics.data.gov.uk/id/local-authority/00FC),Deputy Chief Executive,Ad Childrens Services,Access And Education Services,Contract Hire-Operating Leases,Vehicles - Contract Hire,JC101,22/11/2016,440025,617.5,REVENUE,LINKS TAXIS,100546
North East Lincolnshire Council,http://statistics.data.gov.uk/id/local-authority/00FC),Deputy Chief Executive,Ad Childrens Services,Access And Education Services,Contract Hire-Operating Leases,Vehicles - Contract Hire,JC101,10/11/2016,438118,672,REVENUE,WHEELCHAIR FRIENDLY TAXI SERVICE,101915
North East Lincolnshire Council,http://statistics.data.gov.uk/id/local-authority/00FC),Deputy Chief Executive,Ad Childrens Services,Access And Education Services,Contract Hire-Operating Leases,Vehicles - Contract Hire,JC101,30/11/2016,441552,720,REVENUE,MINICABS CLEETHORPES (LINCS) LTD,102124
North East Lincolnshire Council,http://statistics.data.gov.uk/id/local-authority/00FC),Deputy Chief Executive,Ad Childrens Services,Access And Education Services,Contract Hire-Operating Leases,Vehicles - Contract Hire,JC101,22/11/2016,439984,630,REVENUE,COXONS CARS LIMITED,100578
North East Lincolnshire Council,http://statistics.data.gov.uk/id/local-authority/00FC),Deputy Chief Executive,Ad Childrens Services,Access And Education Services,Contract Hire-Operating Leases,Vehicles - Contract Hire,JC101,22/11/2016,440001,880,REVENUE,LINKS TAXIS,100546
North East Lincolnshire Council,http://statistics.data.gov.uk/id/local-authority/00FC),Deputy Chief Executive,Ad Childrens Services,Access And Education Services,Contract Hire-Operating Leases,Vehicles - Contract Hire,JC101,24/11/2016,440010,640,REVENUE,LINKS TAXIS,100546
North East Lincolnshire Council,http://statistics.data.gov.uk/id/local-authority/00FC),Deputy Chief Executive,Ad Childrens Services,Access And Education Services,Contract Hire-Operating Leases,Vehicles - Contract Hire,JC101,24/11/2016,440011,1040,REVENUE,LINKS TAXIS,100546
North East Lincolnshire Council,http://statistics.data.gov.uk/id/local-authority/00FC),Deputy Chief Executive,Ad Childrens Services,Access And Education Services,Contract Hire-Operating Leases,Vehicles - Contract Hire,JC101,22/11/2016,439997,450,REVENUE,LINKS TAXIS,100546
North East Lincolnshire Council,http://statistics.data.gov.uk/id/local-authority/00FC),Deputy Chief Executive,Ad Childrens Services,Access And Education Services,Contract Hire-Operating Leases,Vehicles - Contract Hire,JC101,22/11/2016,439985,336,REVENUE,COXONS CARS LIMITED,100578
North East Lincolnshire Council,http://statistics.data.gov.uk/id/local-authority/00FC),Deputy Chief Executive,Ad Childrens Services,Access And Education Services,Contract Hire-Operating Leases,Vehicles - Contract Hire,JC101,22/11/2016,440152,504,REVENUE,AA RADIO CARS LTD,101222
North East Lincolnshire Council,http://statistics.data.gov.uk/id/local-authority/00FC),Deputy Chief Executive,Ad Childrens Services,Access And Education Services,Private Contractors,Concessionary Fares,PH104,24/11/2016,440341,1227.4,REVENUE,STAGECOACH SERVICES,101404
North East Lincolnshire Council,http://statistics.data.gov.uk/id/local-authority/00FC),Deputy Chief Executive,Ad Childrens Services,Access And Education Services,Contract Hire-Operating Leases,Vehicles - Contract Hire,JC101,22/11/2016,440052,1904,REVENUE,AMVALE MEDICAL TRANSPORT LTD,130777
North East Lincolnshire Council,http://statistics.data.gov.uk/id/local-authority/00FC),Deputy Chief Executive,Ad Childrens Services,Access And Education Services,Contract Hire-Operating Leases,Vehicles - Contract Hire,JC101,22/11/2016,440051,1872,REVENUE,AMVALE MEDICAL TRANSPORT LTD,130777
North East Lincolnshire Council,http://statistics.data.gov.uk/id/local-authority/00FC),Deputy Chief Executive,Ad Childrens Services,Access And Education Services,Contract Hire-Operating Leases,Vehicles - Contract Hire,JC101,24/11/2016,440340,800,REVENUE,MINICABS CLEETHORPES (LINCS) LTD,102124
North East Lincolnshire Council,http://statistics.data.gov.uk/id/local-authority/00FC),Deputy Chief Executive,Ad Childrens Services,Access And Education Services,Contract Hire-Operating Leases,Vehicles - Contract Hire,JC101,24/11/2016,440039,455,REVENUE,FISHERS OF GRIMSBY,111965
North East Lincolnshire Council,http://statistics.data.gov.uk/id/local-authority/00FC),Deputy Chief Executive,Ad Childrens Services,Access And Education Services,Contract Hire-Operating Leases,Vehicles - Contract Hire,JC101,10/11/2016,438130,531.25,REVENUE,GRIMSBY MINIBUSES LTD,121524
North East Lincolnshire Council,http://statistics.data.gov.uk/id/local-authority/00FC),Deputy Chief Executive,Ad Childrens Services,Access And Education Services,Contract Hire-Operating Leases,Vehicles - Contract Hire,JC101,22/11/2016,439975,360,REVENUE,COXONS CARS LIMITED,100578
North East Lincolnshire Council,http://statistics.data.gov.uk/id/local-authority/00FC),Deputy Chief Executive,Ad Childrens Services,Access And Education Services,Contract Hire-Operating Leases,Vehicles - Contract Hire,JC101,14/11/2016,438067,1878,REVENUE,MILLMAN COACHES,100700
North East Lincolnshire Council,http://statistics.data.gov.uk/id/local-authority/00FC),Deputy Chief Executive,Ad Childrens Services,Access And Education Services,Contract Hire-Operating Leases,Vehicles - Contract Hire,JC101,22/11/2016,440154,750,REVENUE,AA RADIO CARS LTD,101222
North East Lincolnshire Council,http://statistics.data.gov.uk/id/local-authority/00FC),Deputy Chief Executive,Ad Childrens Services,Access And Education Services,Contract Hire-Operating Leases,Vehicles - Contract Hire,JC101,24/11/2016,440046,2480,REVENUE,FISHERS OF GRIMSBY,111965
North East Lincolnshire Council,http://statistics.data.gov.uk/id/local-authority/00FC),Deputy Chief Executive,Ad Childrens Services,Access And Education Services,Contract Hire-Operating Leases,Vehicles - Contract Hire,JC101,22/11/2016,439974,352,REVENUE,COXONS CARS LIMITED,100578
North East Lincolnshire Council,http://statistics.data.gov.uk/id/local-authority/00FC),Deputy Chief Executive,Ad Childrens Services,Access And Education Services,Private Contractors,Concessionary Fares,PH104,24/11/2016,440341,724.5,REVENUE,STAGECOACH SERVICES,101404
North East Lincolnshire Council,http://statistics.data.gov.uk/id/local-authority/00FC),Deputy Chief Executive,Ad Childrens Services,Access And Education Services,Contract Hire-Operating Leases,Vehicles - Contract Hire,JC101,24/11/2016,440042,1250,REVENUE,MINICABS CLEETHORPES (LINCS) LTD,102124
North East Lincolnshire Council,http://statistics.data.gov.uk/id/local-authority/00FC),Deputy Chief Executive,Ad Childrens Services,Access And Education Services,Contract Hire-Operating Leases,Vehicles - Contract Hire,JC101,22/11/2016,440031,880,REVENUE,MINICABS CLEETHORPES (LINCS) LTD,102124
North East Lincolnshire Council,http://statistics.data.gov.uk/id/local-authority/00FC),Deputy Chief Executive,Ad Childrens Services,Access And Education Services,Contract Hire-Operating Leases,Vehicles - Contract Hire,JC101,22/11/2016,440030,605,REVENUE,MINICABS CLEETHORPES (LINCS) LTD,102124
North East Lincolnshire Council,http://statistics.data.gov.uk/id/local-authority/00FC),Deputy Chief Executive,Ad Childrens Services,Access And Education Services,Contract Hire-Operating Leases,Vehicles - Contract Hire,JC101,22/11/2016,440155,268,REVENUE,AA RADIO CARS LTD,101222
North East Lincolnshire Council,http://statistics.data.gov.uk/id/local-authority/00FC),Deputy Chief Executive,Ad Childrens Services,Access And Education Services,Contract Hire-Operating Leases,Vehicles - Contract Hire,JC101,22/11/2016,440037,445.44,REVENUE,REVELLS TAXIS (ED/SOC SERV),100559
North East Lincolnshire Council,http://statistics.data.gov.uk/id/local-authority/00FC),Deputy Chief Executive,Ad Childrens Services,Access And Education Services,Contract Hire-Operating Leases,Vehicles - Contract Hire,JC101,24/11/2016,439977,528,REVENUE,COXONS CARS LIMITED,100578
North East Lincolnshire Council,http://statistics.data.gov.uk/id/local-authority/00FC),Deputy Chief Executive,Ad Childrens Services,Access And Education Services,Contract Hire-Operating Leases,Vehicles - Contract Hire,JC101,24/11/2016,440067,880,REVENUE,MINICABS CLEETHORPES (LINCS) LTD,102124
North East Lincolnshire Council,http://statistics.data.gov.uk/id/local-authority/00FC),Deputy Chief Executive,Ad Childrens Services,Access And Education Services,Contract Hire-Operating Leases,Vehicles - Contract Hire,JC101,22/11/2016,440069,1904,REVENUE,AMVALE MEDICAL TRANSPORT LTD,130777
North East Lincolnshire Council,http://statistics.data.gov.uk/id/local-authority/00FC),Deputy Chief Executive,Ad Childrens Services,Access And Education Services,Contract Hire-Operating Leases,Vehicles - Contract Hire,JC101,22/11/2016,440044,816,REVENUE,REVELLS TAXIS (ED/SOC SERV),100559
North East Lincolnshire Council,http://statistics.data.gov.uk/id/local-authority/00FC),Deputy Chief Executive,Ad Childrens Services,Access And Education Services,Contract Hire-Operating Leases,Vehicles - Contract Hire,JC101,15/11/2016,438146,1680,REVENUE,HANSONS AIRPORT EXPRESS,111879
North East Lincolnshire Council,http://statistics.data.gov.uk/id/local-authority/00FC),Deputy Chief Executive,Ad Childrens Services,Access And Education Services,Contract Hire-Operating Leases,Vehicles - Contract Hire,JC101,22/11/2016,440053,1872,REVENUE,AMVALE MEDICAL TRANSPORT LTD,130777
North East Lincolnshire Council,http://statistics.data.gov.uk/id/local-authority/00FC),Deputy Chief Executive,Ad Childrens Services,Access And Education Services,Contract Hire-Operating Leases,Vehicles - Contract Hire,JC101,22/11/2016,440068,1152,REVENUE,MINICABS CLEETHORPES (LINCS) LTD,102124
North East Lincolnshire Council,http://statistics.data.gov.uk/id/local-authority/00FC),Deputy Chief Executive,Ad Childrens Services,Access And Education Services,Contract Hire-Operating Leases,Vehicles - Contract Hire,JC101,10/11/2016,438140,1680,REVENUE,REDACTED PERSONAL INFORMATION,REDACTED PERSONAL INFORMATION
North East Lincolnshire Council,http://statistics.data.gov.uk/id/local-authority/00FC),Deputy Chief Executive,Ad Childrens Services,Access And Education Services,Contract Hire-Operating Leases,Vehicles - Contract Hire,JC101,22/11/2016,440047,336.34,REVENUE,AA RADIO CARS LTD,101222
North East Lincolnshire Council,http://statistics.data.gov.uk/id/local-authority/00FC),Deputy Chief Executive,Ad Childrens Services,Access And Education Services,Contract Hire-Operating Leases,Vehicles - Contract Hire,JC101,22/11/2016,440079,620,REVENUE,LINKS TAXIS,100546
North East Lincolnshire Council,http://statistics.data.gov.uk/id/local-authority/00FC),Deputy Chief Executive,Ad Childrens Services,Access And Education Services,Contract Hire-Operating Leases,Vehicles - Contract Hire,JC101,22/11/2016,439995,1184,REVENUE,LINKS TAXIS,100546
North East Lincolnshire Council,http://statistics.data.gov.uk/id/local-authority/00FC),Deputy Chief Executive,Ad Childrens Services,Access And Education Services,Contract Hire-Operating Leases,Vehicles - Contract Hire,JC101,22/11/2016,440057,2064,REVENUE,AMVALE MEDICAL TRANSPORT LTD,130777
North East Lincolnshire Council,http://statistics.data.gov.uk/id/local-authority/00FC),Deputy Chief Executive,Ad Childrens Services,Access And Education Services,Contract Hire-Operating Leases,Vehicles - Contract Hire,JC101,22/11/2016,440056,2320,REVENUE,AMVALE MEDICAL TRANSPORT LTD,130777
North East Lincolnshire Council,http://statistics.data.gov.uk/id/local-authority/00FC),Deputy Chief Executive,Ad Childrens Services,Access And Education Services,Contract Hire-Operating Leases,Vehicles - Contract Hire,JC101,10/11/2016,438129,2252.8,REVENUE,GRIMSBY MINIBUSES LTD,121524
North East Lincolnshire Council,http://statistics.data.gov.uk/id/local-authority/00FC),Deputy Chief Executive,Ad Childrens Services,Access And Education Services,Contract Hire-Operating Leases,Vehicles - Contract Hire,JC101,10/11/2016,438128,2244.8,REVENUE,GRIMSBY MINIBUSES LTD,121524
North East Lincolnshire Council,http://statistics.data.gov.uk/id/local-authority/00FC),Deputy Chief Executive,Ad Childrens Services,Access And Education Services,Contract Hire-Operating Leases,Vehicles - Contract Hire,JC101,22/11/2016,440021,330,REVENUE,LINKS TAXIS,100546
North East Lincolnshire Council,http://statistics.data.gov.uk/id/local-authority/00FC),Deputy Chief Executive,Ad Childrens Services,Access And Education Services,Contract Hire-Operating Leases,Vehicles - Contract Hire,JC101,22/11/2016,440066,2310,REVENUE,AMVALE MEDICAL TRANSPORT LTD,130777
North East Lincolnshire Council,http://statistics.data.gov.uk/id/local-authority/00FC),Deputy Chief Executive,Ad Childrens Services,Access And Education Services,Contract Hire-Operating Leases,Vehicles - Contract Hire,JC101,10/11/2016,438115,1920,REVENUE,THE BUS RUN,101522
North East Lincolnshire Council,http://statistics.data.gov.uk/id/local-authority/00FC),Deputy Chief Executive,Ad Childrens Services,Access And Education Services,Contract Hire-Operating Leases,Vehicles - Contract Hire,JC101,22/11/2016,440048,504,REVENUE,AA RADIO CARS LTD,101222
North East Lincolnshire Council,http://statistics.data.gov.uk/id/local-authority/00FC),Deputy Chief Executive,Ad Childrens Services,Access And Education Services,Contract Hire-Operating Leases,Vehicles - Contract Hire,JC101,24/11/2016,439979,432,REVENUE,COXONS CARS LIMITED,100578
North East Lincolnshire Council,http://statistics.data.gov.uk/id/local-authority/00FC),Deputy Chief Executive,Ad Childrens Services,Access And Education Services,Contract Hire-Operating Leases,Vehicles - Contract Hire,JC101,22/11/2016,440054,1904,REVENUE,AMVALE MEDICAL TRANSPORT LTD,130777
North East Lincolnshire Council,http://statistics.data.gov.uk/id/local-authority/00FC),Deputy Chief Executive,Ad Childrens Services,Access And Education Services,Contract Hire-Operating Leases,Vehicles - Contract Hire,JC101,22/11/2016,440035,960,REVENUE,MINICABS CLEETHORPES (LINCS) LTD,102124
North East Lincolnshire Council,http://statistics.data.gov.uk/id/local-authority/00FC),Deputy Chief Executive,Ad Childrens Services,Access And Education Services,Contract Hire-Operating Leases,Vehicles - Contract Hire,JC101,24/11/2016,439976,544.5,REVENUE,COXONS CARS LIMITED,100578
North East Lincolnshire Council,http://statistics.data.gov.uk/id/local-authority/00FC),Deputy Chief Executive,Ad Childrens Services,Access And Education Services,Contract Hire-Operating Leases,Vehicles - Contract Hire,JC101,22/11/2016,439991,704,REVENUE,LINKS TAXIS,100546
North East Lincolnshire Council,http://statistics.data.gov.uk/id/local-authority/00FC),Deputy Chief Executive,Ad Childrens Services,Access And Education Services,Contract Hire-Operating Leases,Vehicles - Contract Hire,JC101,10/11/2016,438139,1833.6,REVENUE,GRIMSBY MINIBUSES LTD,121524
North East Lincolnshire Council,http://statistics.data.gov.uk/id/local-authority/00FC),Deputy Chief Executive,Ad Childrens Services,Access And Education Services,Contract Hire-Operating Leases,Vehicles - Contract Hire,JC101,22/11/2016,440055,2145,REVENUE,AMVALE MEDICAL TRANSPORT LTD,130777
North East Lincolnshire Council,http://statistics.data.gov.uk/id/local-authority/00FC),Deputy Chief Executive,Ad Childrens Services,Access And Education Services,Contract Hire-Operating Leases,Vehicles - Contract Hire,JC101,24/11/2016,440036,944,REVENUE,MINICABS CLEETHORPES (LINCS) LTD,102124
North East Lincolnshire Council,http://statistics.data.gov.uk/id/local-authority/00FC),Deputy Chief Executive,Ad Childrens Services,Access And Education Services,Contract Hire-Operating Leases,Vehicles - Contract Hire,JC101,24/11/2016,439981,704,REVENUE,COXONS CARS LIMITED,100578
North East Lincolnshire Council,http://statistics.data.gov.uk/id/local-authority/00FC),Deputy Chief Executive,Ad Childrens Services,Access And Education Services,Contract Hire-Operating Leases,Vehicles - Contract Hire,JC101,22/11/2016,439996,560,REVENUE,LINKS TAXIS,100546
